Service Area,Service Division,Expense Type,Expense Code,Detailed Expense Type,Payment Date,Transaction Number,Amount Exc Vat,Supplier Name
Regeneration and Local Services,Spatial Policy Planning Assets & Environment,Supplies and Services,364999,Grants to Voluntary Organisations,01-Jun-2017,3290390-RED-05-2017-257,500.00,REDACTED - PAYMENT TO INDIVIDUAL
Regeneration and Local Services,Culture & Sport,Supplies and Services,384199,Miscellaneous Expenses,01-Jun-2017,3290190-GALA2017MAY,675.48,REDACTED - PAYMENT TO INDIVIDUAL
Regeneration and Local Services,Projects and Business services,Premises,125009,Rents,01-Jun-2017,3290463-A969,"3,000.00",REDACTED - PAYMENT TO INDIVIDUAL
Adult and Health Services,Head of Adults,Transport,230005,Contract Hire,01-Jun-2017,3289987-51713,576.00,24/7 TAXI SERVICES LTD.
Adult and Health Services,Head of Adults,Transport,230005,Contract Hire,01-Jun-2017,3290014-DCC6FEB17,"2,306.50",ATLAS TAXIS BISHOP AUCKLAND.
Adult and Health Services,Head of Adults,Transport,230005,Contract Hire,01-Jun-2017,3290158-DW108-24/5/17,"1,020.00",HIPPY`S TAXI.
Adult and Health Services,Head of Adults,Transport,230005,Contract Hire,01-Jun-2017,3290184-1126,880.00,JDS PRIVATE HIRE DURHAM.
Adult and Health Services,Head of Adults,Transport,230005,Contract Hire,01-Jun-2017,3290184-1131,"1,700.50",JDS PRIVATE HIRE DURHAM.
Adult and Health Services,Head of Adults,Transport,230005,Contract Hire,01-Jun-2017,3290349-0546,924.00,PETER`S PRIVATE HIRE/PETER BEST.
Adult and Health Services,Commissioning inc Supporting People,Third Party Payments,473111,Purchase of Care,01-Jun-2017,3290018-ARTWORKSHOPS9/5/17,"3,072.00",BEARPARK COMMUNITY MAG.
Adult and Health Services,Head of Adults,Supplies and Services,338089,Services,01-Jun-2017,3290078-3037701,"3,700.00",DAC BEACHCROFT LLP.
Adult and Health Services,Planning & Service Strategy,Supplies and Services,338089,Services,01-Jun-2017,3290399-4220,900.00,SIGNIS LTD.
Children and Young Peoples Services,Childrens Services,Employees,080025,Agency Staff,01-Jun-2017,3290086-1000966,"133,667.74",DE POEL MANAGED SERVICES LTD.
Children and Young Peoples Services,Childrens Services,Transport,240045,Car Allowances,01-Jun-2017,3290417-7082,"73,963.77",SUPPORTIVE SRC LTD.
Children and Young Peoples Services,Childrens Services,Supplies and Services,342051,Computers and Communications,01-Jun-2017,3290039-477898,"2,772.48",BYTES SOFTWARE SERVICES LTD.
Children and Young Peoples Services,Education,Transport,230007,Contract Hire,01-Jun-2017,3290061-967,940.00,CLIVE HUBERY.
Children and Young Peoples Services,Education,Transport,230007,Contract Hire,01-Jun-2017,3290184-1125,874.00,JDS PRIVATE HIRE DURHAM.
Children and Young Peoples Services,Education,Transport,230007,Contract Hire,01-Jun-2017,3290184-1133,988.00,JDS PRIVATE HIRE DURHAM.
Children and Young Peoples Services,Education,Transport,230003,Contract Hire,01-Jun-2017,3290339-7013,"1,021.25",OVERLANDER LTD.
Children and Young Peoples Services,Education,Transport,230009,Contract Hire,01-Jun-2017,3290194-723109,"1,520.00",JOVIAL PRIVATE HIRE.
Children and Young Peoples Services,Education,Transport,230006,Contract Hire,01-Jun-2017,3289987-51710,919.37,24/7 TAXI SERVICES LTD.
Children and Young Peoples Services,Education,Transport,230006,Contract Hire,01-Jun-2017,3289987-51714,"1,515.00",24/7 TAXI SERVICES LTD.
Children and Young Peoples Services,Education,Transport,230006,Contract Hire,01-Jun-2017,3290143-052,"1,468.50",GMC TAXIS NORTH EAST.
Children and Young Peoples Services,Education,Transport,230012,Contract Hire,01-Jun-2017,3289987-51709,"1,432.03",24/7 TAXI SERVICES LTD.
Children and Young Peoples Services,Education,Transport,230012,Contract Hire,01-Jun-2017,3290187-N078-MAY17,950.00,JMR TAXIS.
Children and Young Peoples Services,Education,Transport,230008,Contract Hire,01-Jun-2017,3289987-51707,"1,615.00",24/7 TAXI SERVICES LTD.
Children and Young Peoples Services,Education,Transport,230008,Contract Hire,01-Jun-2017,3289987-51708,"1,763.00",24/7 TAXI SERVICES LTD.
Children and Young Peoples Services,Education,Transport,230008,Contract Hire,01-Jun-2017,3289987-51711,"1,995.00",24/7 TAXI SERVICES LTD.
Children and Young Peoples Services,Education,Transport,230008,Contract Hire,01-Jun-2017,3289987-51712,950.00,24/7 TAXI SERVICES LTD.
Children and Young Peoples Services,Education,Transport,230008,Contract Hire,01-Jun-2017,3289987-51716,"1,906.65",24/7 TAXI SERVICES LTD.
Children and Young Peoples Services,Education,Transport,230008,Contract Hire,01-Jun-2017,3290083-3112555,"3,218.34",DARLINGTON BOROUGH COUNCIL.
Children and Young Peoples Services,Education,Transport,230008,Contract Hire,01-Jun-2017,3290145-000032,"1,620.00",GP TAXIS.
Children and Young Peoples Services,Education,Transport,230008,Contract Hire,01-Jun-2017,3290184-1119,"1,401.44",JDS PRIVATE HIRE DURHAM.
Children and Young Peoples Services,Education,Transport,230008,Contract Hire,01-Jun-2017,3290184-1120,"1,679.41",JDS PRIVATE HIRE DURHAM.
Children and Young Peoples Services,Education,Transport,230008,Contract Hire,01-Jun-2017,3290184-1121,"1,317.27",JDS PRIVATE HIRE DURHAM.
Children and Young Peoples Services,Education,Transport,230008,Contract Hire,01-Jun-2017,3290184-1122,"1,641.79",JDS PRIVATE HIRE DURHAM.
Children and Young Peoples Services,Education,Transport,230008,Contract Hire,01-Jun-2017,3290184-1123,"1,102.00",JDS PRIVATE HIRE DURHAM.
Children and Young Peoples Services,Education,Transport,230008,Contract Hire,01-Jun-2017,3290184-1127,"2,280.00",JDS PRIVATE HIRE DURHAM.
Children and Young Peoples Services,Education,Transport,230008,Contract Hire,01-Jun-2017,3290184-1129,"2,470.00",JDS PRIVATE HIRE DURHAM.
Children and Young Peoples Services,Education,Transport,230008,Contract Hire,01-Jun-2017,3290184-1130,"2,470.00",JDS PRIVATE HIRE DURHAM.
Children and Young Peoples Services,Education,Transport,230008,Contract Hire,01-Jun-2017,3290184-1132,"1,824.00",JDS PRIVATE HIRE DURHAM.
Children and Young Peoples Services,Education,Transport,230008,Contract Hire,01-Jun-2017,3290184-1134,"1,615.00",JDS PRIVATE HIRE DURHAM.
Children and Young Peoples Services,Education,Transport,230008,Contract Hire,01-Jun-2017,3290194-M03631,931.00,JOVIAL PRIVATE HIRE.
Children and Young Peoples Services,Education,Transport,230008,Contract Hire,01-Jun-2017,3290194-N03031,"1,577.00",JOVIAL PRIVATE HIRE.
Children and Young Peoples Services,Education,Transport,230008,Contract Hire,01-Jun-2017,3290285-KDC-010517,"3,211.00",MJ TIMNEY T/A KDC & C&M TAXIS.
Children and Young Peoples Services,Education,Transport,230008,Contract Hire,01-Jun-2017,3290315-031,"1,080.00",NEIL PASSMOOR T/A NEIL`S TAXI.
Children and Young Peoples Services,Education,Transport,230008,Contract Hire,01-Jun-2017,3290315-31,"1,615.00",NEIL PASSMOOR T/A NEIL`S TAXI.
Children and Young Peoples Services,Education,Transport,230008,Contract Hire,01-Jun-2017,3290349-0545,"2,052.00",PETER`S PRIVATE HIRE/PETER BEST.
Children and Young Peoples Services,Education,Transport,230008,Contract Hire,01-Jun-2017,3290349-0547,"2,052.00",PETER`S PRIVATE HIRE/PETER BEST.
Children and Young Peoples Services,Education,Transport,230008,Contract Hire,01-Jun-2017,3290349-0549,"2,071.00",PETER`S PRIVATE HIRE/PETER BEST.
Children and Young Peoples Services,Education,Transport,230008,Contract Hire,01-Jun-2017,3290349-0550,"1,995.00",PETER`S PRIVATE HIRE/PETER BEST.
Children and Young Peoples Services,Education,Transport,230008,Contract Hire,01-Jun-2017,3290350-20131,592.00,PHOENIX TAXIS T/A PRATT`S TAXIS.
Children and Young Peoples Services,Childrens Services,Supplies and Services,377015,County Durham Development,01-Jun-2017,3290343-23392882,980.00,PARK RETAIL LTD.
Children and Young Peoples Services,Education,Supplies and Services,304040,Equipment and Materials,01-Jun-2017,3290338-23883,"1,400.00",ONE AWARDS.
Children and Young Peoples Services,Childrens Services,Supplies and Services,384641,Miscellaneous Expenses,01-Jun-2017,3290461-APRILMAY2017PALIN,"1,323.00",WESTFIELD HOUSE NURSERY.
Children and Young Peoples Services,Childrens Services,Supplies and Services,384199,Miscellaneous Expenses,01-Jun-2017,3290181-21/3/17,560.00,JANE SKITTRALL INDEPENDENT SOCIAL WORKER).
Children and Young Peoples Services,Education,Supplies and Services,324117,Provisions,01-Jun-2017,3290420-9410579892,565.65,TCHIBO COFFEE INTERNATIONAL LTD.
Children and Young Peoples Services,Education,Supplies and Services,338001,Services,01-Jun-2017,3290013-17003946,"18,100.00",ATKINS GLOBAL.
Children and Young Peoples Services,Childrens Services,Supplies and Services,338035,Services,01-Jun-2017,3290338-23889,600.00,ONE AWARDS.
Children and Young Peoples Services,Education,Supplies and Services,338094,Services,01-Jun-2017,3290216-SI-003302,"1,980.00",LEISUREWORKS.
Children and Young Peoples Services,Education,Supplies and Services,372009,Subscriptions,01-Jun-2017,3290321-49606,950.00,NGA.
Children and Young Peoples Services,Childrens Services,Supplies and Services,344033,Telephones,01-Jun-2017,3290450-203522,572.70,UNIFY BUSINESS SOLUTIONS LTD.
Dedicated Schools Grant,Dedicated Schools Grant,Transport,230011,Contract Hire,01-Jun-2017,3289987-51706,644.00,24/7 TAXI SERVICES LTD.
Dedicated Schools Grant,Dedicated Schools Grant,Third Party Payments,440080,Other Third Party Payments,01-Jun-2017,3290084-SLINV/00001390,"1,634.21",DARLINGTON COLLEGE.
Dedicated Schools Grant,Dedicated Schools Grant,Third Party Payments,410037,Rendered by Other Local Authorities,01-Jun-2017,3290083-3058010,"2,078.31",DARLINGTON BOROUGH COUNCIL.
Regeneration and Local Services,Economic Development and Housing,Cap Exp on Grants & Other Financial Assistance (REFCUS),918401,Capital grants,01-Jun-2017,3290329-RED-05-2017-220,"10,000.00",NORTH EAST PROPERTY PARTNERS (NEPP).
Regeneration and Local Services,Direct Services,Premises,106099,Centrally Controlled Rep and Maint,01-Jun-2017,3290386-3258,580.16,SAFE STRIP UK LTD.
Regeneration and Local Services,Culture & Sport,Supplies and Services,352001,Conference Expenses,01-Jun-2017,3290405-17/094,525.00,SOCIETY OF CHIEF LIBRARIANS.
Regeneration and Local Services,Technical Services,Construction Work,908105,Construction work,01-Jun-2017,3290173-20374,"4,399.34",JACK COUPE & SONS LTD T/A COUPE LINE.
Regeneration and Local Services,Technical Services,Construction Work,908105,Construction work,01-Jun-2017,3290173-20412,"1,921.48",JACK COUPE & SONS LTD T/A COUPE LINE.
Regeneration and Local Services,Technical Services,Construction Work,908105,Construction work,01-Jun-2017,3290173-20413,"1,445.99",JACK COUPE & SONS LTD T/A COUPE LINE.
Regeneration and Local Services,Projects and Business services,Premises,120009,Energy Costs,01-Jun-2017,3290460-MI00118155,825.01,WESTERN POWER DISTRIBUTION.
Regeneration and Local Services,Technical Services,Supplies and Services,304221,Equipment and Materials,01-Jun-2017,3289997-24838239,"1,223.90",AGGREGATE INDUSTRIES UK LTD.
Regeneration and Local Services,Technical Services,Supplies and Services,304221,Equipment and Materials,01-Jun-2017,3289997-24838240,572.68,AGGREGATE INDUSTRIES UK LTD.
Regeneration and Local Services,Technical Services,Supplies and Services,304221,Equipment and Materials,01-Jun-2017,3289997-24838241,"2,788.79",AGGREGATE INDUSTRIES UK LTD.
Regeneration and Local Services,Technical Services,Supplies and Services,304221,Equipment and Materials,01-Jun-2017,3289997-24838242,667.58,AGGREGATE INDUSTRIES UK LTD.
Regeneration and Local Services,Direct Services,Supplies and Services,304221,Equipment and Materials,01-Jun-2017,3290059-5061,792.00,CITY FABRICATIONS LTD.
Regeneration and Local Services,Technical Services,Supplies and Services,304221,Equipment and Materials,01-Jun-2017,3290178-00129562,"3,425.28",JAMES A JOBLING & CO LTD T/A JOBLING PURSER LTD.
Regeneration and Local Services,Technical Services,Supplies and Services,304221,Equipment and Materials,01-Jun-2017,3290196-BI1223225,828.40,JT DOVE LTD.
Regeneration and Local Services,Direct Services,Supplies and Services,304221,Equipment and Materials,01-Jun-2017,3290196-NBI187765,"1,667.63",JT DOVE LTD.
Regeneration and Local Services,Technical Services,Supplies and Services,304221,Equipment and Materials,01-Jun-2017,3290359-97752,550.00,PROTECTOR SECURITY GROUP LTD.
Regeneration and Local Services,Technical Services,Supplies and Services,304221,Equipment and Materials,01-Jun-2017,3290413-093423,"1,313.00",STONEGRAVE AGGREGATES LTD.
Regeneration and Local Services,Technical Services,Supplies and Services,304221,Equipment and Materials,01-Jun-2017,3290448-173291,673.81,TYNEDALE ROADSTONE LTD.
Regeneration and Local Services,Technical Services,Supplies and Services,304221,Equipment and Materials,01-Jun-2017,3290448-173720,884.68,TYNEDALE ROADSTONE LTD.
Regeneration and Local Services,Direct Services,Supplies and Services,304259,Equipment and Materials,01-Jun-2017,3290004-0000015919,"4,584.90",AMBEROL LTD.
Regeneration and Local Services,Direct Services,Supplies and Services,304259,Equipment and Materials,01-Jun-2017,3290397-CD970491759,"1,183.60",SHERRIFF AMENITY.
Regeneration and Local Services,Transport and Contracted Services,Supplies and Services,304259,Equipment and Materials,01-Jun-2017,3290449-35819,"4,545.37",UK TELEMATICS LTD.
Regeneration and Local Services,Direct Services,Supplies and Services,304259,Equipment and Materials,01-Jun-2017,3290464-43666,"1,187.59",WILLOWCRETE MANUFACTURING COMPANY LTD (MFG).
Regeneration and Local Services,Technical Services,Supplies and Services,304358,Equipment and Materials,01-Jun-2017,3290050-1646,"8,344.40",CG SIMPSON & SON.
Regeneration and Local Services,Technical Services,Supplies and Services,304358,Equipment and Materials,01-Jun-2017,3290171-0015/2017,"1,485.50",J & JG GILL & SONS LTD.
Regeneration and Local Services,Technical Services,Supplies and Services,304358,Equipment and Materials,01-Jun-2017,3290171-0016/2017,"1,485.50",J & JG GILL & SONS LTD.
Regeneration and Local Services,Technical Services,Supplies and Services,304358,Equipment and Materials,01-Jun-2017,3290171-0041/2017,744.00,J & JG GILL & SONS LTD.
Regeneration and Local Services,Technical Services,Supplies and Services,304358,Equipment and Materials,01-Jun-2017,3290171-0082/2017,804.00,J & JG GILL & SONS LTD.
Regeneration and Local Services,Spatial Policy Planning Assets & Environment,Supplies and Services,384956,Miscellaneous Expenses,01-Jun-2017,3290040-253552,"3,000.00",CACI LTD.
Regeneration and Local Services,Economic Development and Housing,Supplies and Services,384700,Miscellaneous Expenses,01-Jun-2017,3290357-MMB001,"9,873.00",PRINCE BISHOPS COMMUNITY BANK.
Regeneration and Local Services,Economic Development and Housing,Supplies and Services,384700,Miscellaneous Expenses,01-Jun-2017,3290426-RED-05-2017-221,"1,000.00",THE BIGNALL GROUP LTD T/A BIGNALL LUBRITEC.
Regeneration and Local Services,Culture & Sport,Supplies and Services,384199,Miscellaneous Expenses,01-Jun-2017,3290319-792,"130,000.00",NEW WRITING NORTH LTD.
Regeneration and Local Services,Culture & Sport,Supplies and Services,384199,Miscellaneous Expenses,01-Jun-2017,3290356-144826,500.00,PREMIER TRAFFIC MANAGEMENT LTD.
Regeneration and Local Services,Culture & Sport,Supplies and Services,384237,Miscellaneous Expenses,01-Jun-2017,3290083-3101211,500.00,DARLINGTON BOROUGH COUNCIL.
Regeneration and Local Services,Economic Development and Housing,Supplies and Services,324117,Provisions,01-Jun-2017,3290023-74592681,709.97,BIDFOOD.
Regeneration and Local Services,Direct Services,Vehicles Equipment Furniture and Fittings,912529,Purchase-equipment,01-Jun-2017,3290411-1005,"28,987.20",STEVEN HEWISON T/A SPORTS LIGHTING COMPANY LTD.
Regeneration and Local Services,Technical Services,Third Party Payments,430127,Rendered by Private Contractors,01-Jun-2017,3290140-14742,876.00,GJ CONTRACTORS.
Regeneration and Local Services,Direct Services,Third Party Payments,430100,Rendered by Private Contractors,01-Jun-2017,3290149-41193,"8,323.25",HALL CONSTRUCTION SERVICES LTD.
Regeneration and Local Services,Technical Services,Third Party Payments,430100,Rendered by Private Contractors,01-Jun-2017,3290156-2646,"14,737.23",HIGHWAY CONSTRUCTION SERVICES LTD.
Regeneration and Local Services,Direct Services,Third Party Payments,430100,Rendered by Private Contractors,01-Jun-2017,3290183-14660,584.80,JC MAINTENANCE SERVICES LTD.
Regeneration and Local Services,Technical Services,Third Party Payments,430100,Rendered by Private Contractors,01-Jun-2017,3290359-97442,550.00,PROTECTOR SECURITY GROUP LTD.
Regeneration and Local Services,Technical Services,Third Party Payments,430100,Rendered by Private Contractors,01-Jun-2017,3290360-97715,550.00,PROTECTOR SECURITY GROUP LTD.
Regeneration and Local Services,Direct Services,Transport,215005,Running Costs of Vehicles,01-Jun-2017,3290334-244916,"11,016.00",OIL NRG LTD.
Regeneration and Local Services,Direct Services,Transport,215022,Running Costs of Vehicles,01-Jun-2017,3290334-239362,548.29,OIL NRG LTD.
Regeneration and Local Services,Direct Services,Transport,215022,Running Costs of Vehicles,01-Jun-2017,3290334-244657,"1,717.49",OIL NRG LTD.
Regeneration and Local Services,Culture & Sport,Supplies and Services,338047,Services,01-Jun-2017,3290065-5514,616.00,COMMUNITY NEWSPAPER SUPPORT CIC.
Regeneration and Local Services,Spatial Policy Planning Assets & Environment,Supplies and Services,338066,Services,01-Jun-2017,3290469-16/144,"1,940.67",XSITE ARCHITECTURE LLP.
Regeneration and Local Services,Technical Services,Stock,926900,Stock in hand-Inventory system,01-Jun-2017,3290027-8418936,737.54,BOLD NU TEC INSULATION PRODUCTS & SERVICES LTD.
Regeneration and Local Services,Technical Services,Stock,926900,Stock in hand-Inventory system,01-Jun-2017,3290353-10091,519.50,PLYTECH UK LTD.
Regeneration and Local Services,Technical Services,Stock,926900,Stock in hand-Inventory system,01-Jun-2017,3290361-39186,"1,149.00",PROTEUS EQUIPMENT LTD.
Regeneration and Local Services,Technical Services,Stock,926900,Stock in hand-Inventory system,01-Jun-2017,3290404-190360,"4,267.20",SNAPFAST.
Regeneration and Local Services,Technical Services,Stock,926900,Stock in hand-Inventory system,01-Jun-2017,3290433-N/IN196801,822.77,THOMAS OWEN & SONS (NEWCASTLE) LTD.
Regeneration and Local Services,Spatial Policy Planning Assets & Environment,Supplies and Services,372009,Subscriptions,01-Jun-2017,3290008-1718/437,"2,000.00",APSE.
Resources,I.C.T. Services,Supplies and Services,342033,Computers and Communications,01-Jun-2017,3290075-1603600,"3,344.00",CRITICAL POWER SUPPLIES LTD.
Resources,Legal & Democratic Services,Creditors,952027,Creditor-lab grp-deds frm memb all,01-Jun-2017,3290098-RES-05-2017-099,"1,190.00",DURHAM COUNTY COUNCIL LABOUR GROUP.*
Resources,Legal & Democratic Services,Supplies and Services,332047,Printing Stationery and Gen Off Exps,01-Jun-2017,3290167-3371856,576.75,INSIGHT DIRECT (UK) LTD.
Resources,Legal & Democratic Services,Employees,040149,Recruitment Instruction and Training,01-Jun-2017,3290425-21107,942.00,THE ASSOCIATION OF ELECTORAL ADMINISTRATORS.
Resources,Legal & Democratic Services,Supplies and Services,338042,Services,01-Jun-2017,3290090-321778/INVFM198,"3,420.00",DERE STREET BARRISTERS.
Resources,Legal & Democratic Services,Supplies and Services,338042,Services,01-Jun-2017,3290090-324775/INVSPA153,540.00,DERE STREET BARRISTERS.
Resources,Legal & Democratic Services,Supplies and Services,338042,Services,01-Jun-2017,3290090-327216/INVSPA154,540.00,DERE STREET BARRISTERS.
Resources,Legal & Democratic Services,Supplies and Services,338042,Services,01-Jun-2017,3290090-327798/INVSW461,"1,020.00",DERE STREET BARRISTERS.
Resources,Legal & Democratic Services,Supplies and Services,338042,Services,01-Jun-2017,3290090-328464/INVSPA155,540.00,DERE STREET BARRISTERS.
Resources,Legal & Democratic Services,Supplies and Services,338042,Services,01-Jun-2017,3290090-328751/INVFM199,"1,020.00",DERE STREET BARRISTERS.
Resources,Legal & Democratic Services,Supplies and Services,338042,Services,01-Jun-2017,3290090-328751/INVLW122,"1,020.00",DERE STREET BARRISTERS.
Resources,Legal & Democratic Services,Supplies and Services,338042,Services,01-Jun-2017,3290090-330512/INVMC20,600.00,DERE STREET BARRISTERS.
Resources - C A C,Centrally Administered costs,Supplies and Services,338013,Services,01-Jun-2017,3290247-1287603,"25,068.00",MAZARS LLP.
Transformation and Partnerships,Policy & Communications Division,Supplies and Services,336005,Advertising,01-Jun-2017,3290123-174488,570.00,ENCOMPASSED MEDIA GROUP T/A SPORTWISE.
Transformation and Partnerships,Partnerships & Community Engagement Div.,Cap Exp on Grants & Other Financial Assistance (REFCUS),918004,Contributions to other bodies,01-Jun-2017,3290441-VOUCHER16NB-3TWN037,"2,010.00",TOW LAW COMMUNITY ASSOCIATION.
Transformation and Partnerships,Partnerships & Community Engagement Div.,Supplies and Services,384086,Miscellaneous Expenses,01-Jun-2017,3290020-VOUCHER16NB-DVLY024PROJECT1,"2,000.00",BENFIELDSIDE BLACKHILL BRIDGEHILL & SHOTLEY BRIDGE COMMUNITY PARTNERSHIP.
Transformation and Partnerships,Partnerships & Community Engagement Div.,Supplies and Services,384700,Miscellaneous Expenses,01-Jun-2017,3290096-MAY17/07,"25,000.00",DURHAM COMMUNITY ACTION LTD.
Regeneration and Local Services,Culture & Sport,Supplies and Services,384199,Miscellaneous Expenses,02-Jun-2017,3290677-63,"1,562.74",REDACTED - PAYMENT TO INDIVIDUAL
Adult and Health Services,Head of Adults,Transport,230005,Contract Hire,02-Jun-2017,3290493-17MAR17,"3,789.25",ATLAS TAXIS BISHOP AUCKLAND.
Adult and Health Services,Head of Adults,Transport,230005,Contract Hire,02-Jun-2017,3290493-DCC6APR17,"1,482.75",ATLAS TAXIS BISHOP AUCKLAND.
Adult and Health Services,Head of Adults,Transport,230005,Contract Hire,02-Jun-2017,3290493-DCC6MAY17,"2,965.50",ATLAS TAXIS BISHOP AUCKLAND.
Adult and Health Services,Public Health,Third Party Payments,460803,Contract Payments,02-Jun-2017,3290839-SI-TPL-00023135,"3,710.00",TURNING POINT (SERVICES) LTD.
Adult and Health Services,EnvironmentHealth & Consumer Protection,Income,720330,Fees and Charges,02-Jun-2017,3290852-18857,"2,043.11",VIP SYSTEM LTD.
Adult and Health Services,Head of Adults,Third Party Payments,470101,Purchase of Care,02-Jun-2017,3290522-024/18,"1,110.00",BUTTERWICK HOSPICE RETAIL LTD.
Adult and Health Services,Head of Adults,Third Party Payments,470101,Purchase of Care,02-Jun-2017,3290612-WI7388,"21,194.43",HESLEY CARE GROUP LTD.
Adult and Health Services,Head of Adults,Third Party Payments,478151,Purchase of Care,02-Jun-2017,3290580-080517KW-VOIDS,"3,810.21",EMBRACING CARE.
Children and Young Peoples Services,Childrens Services,Employees,080025,Agency Staff,02-Jun-2017,3290524-03939132,547.50,CAPITA RESOURCING LTD T/A CAPITA EDUCATION RESOURCING.
Children and Young Peoples Services,Childrens Services,Employees,080025,Agency Staff,02-Jun-2017,3290524-03939134,718.00,CAPITA RESOURCING LTD T/A CAPITA EDUCATION RESOURCING.
Children and Young Peoples Services,Education,Supplies and Services,352001,Conference Expenses,02-Jun-2017,3290518-4208297925,600.00,BRIGHTON & HOVE CITY COUNCIL.
Children and Young Peoples Services,Education,Transport,230013,Contract Hire,02-Jun-2017,3290802-170515,950.00,STEVEN PRATT T/A PTL TAXIS DURHAM.
Children and Young Peoples Services,Education,Transport,230007,Contract Hire,02-Jun-2017,3290655-3590,"2,567.47",LEE`S COACHES LTD.
Children and Young Peoples Services,Education,Transport,230007,Contract Hire,02-Jun-2017,3290655-3592,"11,875.00",LEE`S COACHES LTD.
Children and Young Peoples Services,Education,Transport,230007,Contract Hire,02-Jun-2017,3290747-337,665.00,PREMIER PRIVATE HIRE.
Children and Young Peoples Services,Education,Transport,230007,Contract Hire,02-Jun-2017,3290809-4116WS,684.00,T MOORE & SON.
Children and Young Peoples Services,Education,Transport,230007,Contract Hire,02-Jun-2017,3290809-4127PA,600.40,T MOORE & SON.
Children and Young Peoples Services,Education,Transport,230007,Contract Hire,02-Jun-2017,3290809-4138SB,"1,520.00",T MOORE & SON.
Children and Young Peoples Services,Education,Transport,230007,Contract Hire,02-Jun-2017,3290859-1055,950.00,WE CONNOR.
Children and Young Peoples Services,Education,Transport,230006,Contract Hire,02-Jun-2017,3290675-25A,"1,777.45",MICHAEL A BODDY T/A MBS TAXIS.
Children and Young Peoples Services,Education,Transport,230012,Contract Hire,02-Jun-2017,3290688-N053/05/17,"1,805.00",MR M ALLISON T/A MACBETH TAXIS/COACHES.
Children and Young Peoples Services,Education,Transport,230012,Contract Hire,02-Jun-2017,3290744-1244,"1,178.00",PODA LTD.
Children and Young Peoples Services,Education,Transport,230008,Contract Hire,02-Jun-2017,3290479-09/17A,"2,356.00",ADVANCE TRAVEL.
Children and Young Peoples Services,Education,Transport,230008,Contract Hire,02-Jun-2017,3290541-INV-005,"1,444.00",CLARE LYNSEY STEWART T/A K&C TAXIS.
Children and Young Peoples Services,Education,Transport,230008,Contract Hire,02-Jun-2017,3290602-009,"2,145.00",GMC TAXIS NORTH EAST.
Children and Young Peoples Services,Education,Transport,230008,Contract Hire,02-Jun-2017,3290673-MCD36123,"1,950.50",MCDONALD TRAVEL.
Children and Young Peoples Services,Education,Transport,230008,Contract Hire,02-Jun-2017,3290686-SFB/05/17,"1,596.00",MR J AGAR T/A PARK TAXIS.
Children and Young Peoples Services,Education,Transport,230008,Contract Hire,02-Jun-2017,3290688-A057/05/17,"1,596.00",MR M ALLISON T/A MACBETH TAXIS/COACHES.
Children and Young Peoples Services,Education,Transport,230008,Contract Hire,02-Jun-2017,3290723-7014,"1,714.60",OVERLANDER LTD.
Children and Young Peoples Services,Education,Transport,230008,Contract Hire,02-Jun-2017,3290732-DCC148,"2,660.00",PAUL`S TAXIS..
Children and Young Peoples Services,Education,Transport,230008,Contract Hire,02-Jun-2017,3290744-1242,855.00,PODA LTD.
Children and Young Peoples Services,Education,Transport,230008,Contract Hire,02-Jun-2017,3290744-1243,"1,737.00",PODA LTD.
Children and Young Peoples Services,Education,Transport,230008,Contract Hire,02-Jun-2017,3290772-S017/09,"1,836.00",S & S TRAVEL LTD.
Children and Young Peoples Services,Education,Transport,230008,Contract Hire,02-Jun-2017,3290772-W052/09-MAY17,"1,805.00",S & S TRAVEL LTD.
Children and Young Peoples Services,Education,Transport,230008,Contract Hire,02-Jun-2017,3290772-W067/19-MAY17,"2,139.00",S & S TRAVEL LTD.
Children and Young Peoples Services,Education,Transport,230008,Contract Hire,02-Jun-2017,3290799-9,"1,330.00",STEELYS TAXIS.
Children and Young Peoples Services,Education,Transport,230008,Contract Hire,02-Jun-2017,3290802-170513,"1,080.00",STEVEN PRATT T/A PTL TAXIS DURHAM.
Children and Young Peoples Services,Education,Transport,230008,Contract Hire,02-Jun-2017,3290809-4091OS,"1,509.55",T MOORE & SON.
Children and Young Peoples Services,Education,Transport,230008,Contract Hire,02-Jun-2017,3290833-93,"1,805.00",TRIDENT TAXIS.
Children and Young Peoples Services,Childrens Services,Transport,230005,Contract Hire,02-Jun-2017,3290543-CLUB1717L,660.00,CLUBMAN CABS.
Children and Young Peoples Services,Childrens Services,Transport,230005,Contract Hire,02-Jun-2017,3290555-INV-100044,717.32,CROFT BUSINESS SERVICES (UK) LTD T/A CROFT TAXIS.
Children and Young Peoples Services,Childrens Services,Transport,230005,Contract Hire,02-Jun-2017,3290555-INV-100046,556.36,CROFT BUSINESS SERVICES (UK) LTD T/A CROFT TAXIS.
Children and Young Peoples Services,Childrens Services,Transport,230005,Contract Hire,02-Jun-2017,3290555-INV-100111,594.56,CROFT BUSINESS SERVICES (UK) LTD T/A CROFT TAXIS.
Children and Young Peoples Services,Childrens Services,Transport,230005,Contract Hire,02-Jun-2017,3290660-3309,800.00,LOCAL TRANSPORT LTD.
Children and Young Peoples Services,Childrens Services,Transport,230005,Contract Hire,02-Jun-2017,3290660-3313,"1,088.00",LOCAL TRANSPORT LTD.
Children and Young Peoples Services,Childrens Services,Transport,230005,Contract Hire,02-Jun-2017,3290680-KDC020417,945.00,MJ TIMNEY T/A KDC & C&M TAXIS.
Children and Young Peoples Services,Childrens Services,Supplies and Services,304259,Equipment and Materials,02-Jun-2017,3290478-35272512-61,"1,730.72",ADT FIRE & SECURITY PLC.
Children and Young Peoples Services,Education,Supplies and Services,304259,Equipment and Materials,02-Jun-2017,3290872-499371860,"1,412.50",YORKSHIRE PURCHASING ORGANISATION.
Children and Young Peoples Services,Childrens Services,Supplies and Services,364310,Grants to Voluntary Organisations,02-Jun-2017,3290801-CAS-06-2017-008,"1,272.32",REDACTED - PAYMENT TO INDIVIDUAL
Children and Young Peoples Services,Childrens Services,Premises,155001,Insurance of Premises,02-Jun-2017,3290834-LINV808425,800.01,TRINITY MEDICAL PROPERTIES LTD.
Children and Young Peoples Services,Education,Supplies and Services,384199,Miscellaneous Expenses,02-Jun-2017,3290655-3563,"1,049.00",LEE`S COACHES LTD.
Children and Young Peoples Services,Education,Supplies and Services,384199,Miscellaneous Expenses,02-Jun-2017,3290655-3605,"1,588.00",LEE`S COACHES LTD.
Children and Young Peoples Services,Education,Third Party Payments,440999,Other Third Party Payments,02-Jun-2017,3290526-178,"1,049.34",CAPITAL 4 TRAINING LTD
Children and Young Peoples Services,Education,Third Party Payments,440999,Other Third Party Payments,02-Jun-2017,3290759-4100559613,"4,973.93",REAL LIVES REAL CHOICES.
Children and Young Peoples Services,Education,Third Party Payments,440999,Other Third Party Payments,02-Jun-2017,3290759-4100559613-10/5/17,"7,652.20",REAL LIVES REAL CHOICES.
Children and Young Peoples Services,Childrens Services,Third Party Payments,425020,Rendered by Voluntary Organisations,02-Jun-2017,3290522-014/18,740.00,BUTTERWICK HOSPICE RETAIL LTD.
Children and Young Peoples Services,Childrens Services,Third Party Payments,425020,Rendered by Voluntary Organisations,02-Jun-2017,3290522-016/18,740.00,BUTTERWICK HOSPICE RETAIL LTD.
Children and Young Peoples Services,Childrens Services,Third Party Payments,425020,Rendered by Voluntary Organisations,02-Jun-2017,3290522-017/18,740.00,BUTTERWICK HOSPICE RETAIL LTD.
Children and Young Peoples Services,Childrens Services,Third Party Payments,425020,Rendered by Voluntary Organisations,02-Jun-2017,3290522-020/18,"1,110.00",BUTTERWICK HOSPICE RETAIL LTD.
Children and Young Peoples Services,Childrens Services,Third Party Payments,425020,Rendered by Voluntary Organisations,02-Jun-2017,3290522-023/18,740.00,BUTTERWICK HOSPICE RETAIL LTD.
Children and Young Peoples Services,Education,Transfer Payments,510026,School Children,02-Jun-2017,3290717-01LC-MAY17,878.40,NURSERY TIME.
Children and Young Peoples Services,Education,Supplies and Services,338032,Services,02-Jun-2017,3290871-05-17-01,"9,690.00",YORK CONSULTING LLP.
Children and Young Peoples Services,Childrens Services,Supplies and Services,344033,Telephones,02-Jun-2017,3290844-203605,572.70,UNIFY BUSINESS SOLUTIONS LTD.
Dedicated Schools Grant,Dedicated Schools Grant,Transport,230010,Contract Hire,02-Jun-2017,3290649-2-26/5/17,"1,330.00",KT TAXIS.
Dedicated Schools Grant,Dedicated Schools Grant,Transport,230010,Contract Hire,02-Jun-2017,3290686-DB/05/17,"1,246.00",MR J AGAR T/A PARK TAXIS.
Dedicated Schools Grant,Dedicated Schools Grant,Central Support and Capital,615208,Support Services,02-Jun-2017,3290700-RES-05-2017-100,"2,991.60",NEW COLLEGE ACADEMIES TRUST - CONSETT ACADEMY.
Regeneration and Local Services,Technical Services,Construction Work,908105,Construction work,02-Jun-2017,3290629-20406,"3,278.38",JACK COUPE & SONS LTD T/A COUPE LINE.
Regeneration and Local Services,Technical Services,Construction Work,908105,Construction work,02-Jun-2017,3290629-20419,"1,063.91",JACK COUPE & SONS LTD T/A COUPE LINE.
Regeneration and Local Services,Economic Development and Housing,Cap Exp on Grants & Other Financial Assistance (REFCUS),918004,Contributions to other bodies,02-Jun-2017,3290693-RED-05-2017-266,"7,574.00",MRS PAULA CAMPBELL  T/A PAWS PRIDE & GROOM.
Regeneration and Local Services,Direct Services,Debtors,930046,Debtor-leasing,02-Jun-2017,3290601-271638,"25,225.00",GM COACHWORK LTD.
Regeneration and Local Services,Direct Services,Debtors,930046,Debtor-leasing,02-Jun-2017,3290601-271641,"25,225.00",GM COACHWORK LTD.
Regeneration and Local Services,Direct Services,Debtors,930046,Debtor-leasing,02-Jun-2017,3290601-271642,"25,225.00",GM COACHWORK LTD.
Regeneration and Local Services,Economic Development and Housing,Premises,120009,Energy Costs,02-Jun-2017,3290716-NNO7YYPQ,"5,418.81",NPOWER.
Regeneration and Local Services,Economic Development and Housing,Premises,120009,Energy Costs,02-Jun-2017,3290716-NNO7YYPV,"8,350.42",NPOWER.
Regeneration and Local Services,Economic Development and Housing,Premises,120009,Energy Costs,02-Jun-2017,3290716-NNO7YYPW,"6,491.37",NPOWER.
Regeneration and Local Services,Economic Development and Housing,Premises,120009,Energy Costs,02-Jun-2017,3290716-NNO7YYPX,"2,696.70",NPOWER.
Regeneration and Local Services,Culture & Sport,Supplies and Services,304337,Equipment and Materials,02-Jun-2017,3290819-236831,710.00,THE CAROLE GROUP LTD.
Regeneration and Local Services,Technical Services,Supplies and Services,304221,Equipment and Materials,02-Jun-2017,3290481-24844910,"1,243.97",AGGREGATE INDUSTRIES UK LTD.
Regeneration and Local Services,Technical Services,Supplies and Services,304221,Equipment and Materials,02-Jun-2017,3290481-24844911,"1,945.29",AGGREGATE INDUSTRIES UK LTD.
Regeneration and Local Services,Technical Services,Supplies and Services,304221,Equipment and Materials,02-Jun-2017,3290481-24844912,738.59,AGGREGATE INDUSTRIES UK LTD.
Regeneration and Local Services,Direct Services,Supplies and Services,304221,Equipment and Materials,02-Jun-2017,3290508-B93846,"3,815.65",BIDDLE AIR SYSTEMS LTD.
Regeneration and Local Services,Technical Services,Supplies and Services,304221,Equipment and Materials,02-Jun-2017,3290536-3009605095,639.13,CEMEX UK MATERIALS LTD.
Regeneration and Local Services,Direct Services,Supplies and Services,304221,Equipment and Materials,02-Jun-2017,3290574-059-205501,"1,200.30",EDMUNDSON ELECTRICAL LTD.
Regeneration and Local Services,Direct Services,Supplies and Services,304221,Equipment and Materials,02-Jun-2017,3290605-06/633714,"20,310.84",GREENHAM TRADING LTD.
Regeneration and Local Services,Direct Services,Supplies and Services,304221,Equipment and Materials,02-Jun-2017,3290641-BI1223368,724.36,JT DOVE LTD.
Regeneration and Local Services,Technical Services,Supplies and Services,304221,Equipment and Materials,02-Jun-2017,3290650-1959,"49,027.02",L & G PLANT HIRE & SALES LTD.
Regeneration and Local Services,Technical Services,Supplies and Services,304221,Equipment and Materials,02-Jun-2017,3290803-093539,"1,085.68",STONEGRAVE AGGREGATES LTD.
Regeneration and Local Services,Direct Services,Supplies and Services,304221,Equipment and Materials,02-Jun-2017,3290808-2226175,650.78,T CROSSLING & CO LTD.
Regeneration and Local Services,Technical Services,Supplies and Services,304221,Equipment and Materials,02-Jun-2017,3290841-173335,669.85,TYNEDALE ROADSTONE LTD.
Regeneration and Local Services,Direct Services,Supplies and Services,304221,Equipment and Materials,02-Jun-2017,3290866-42802435,577.06,WOLSELEY UK LTD.
Regeneration and Local Services,Economic Development and Housing,Supplies and Services,304259,Equipment and Materials,02-Jun-2017,3290848-109051,"1,445.00",USE 161828 ANGEL SPRINGS LTD (HEPSCOTT WATER SYSTEMS LTD).
Regeneration and Local Services,Technical Services,Supplies and Services,304358,Equipment and Materials,02-Jun-2017,3290499-MG05399,550.00,BAILEY CONCRETE PUMPING LTD.
Regeneration and Local Services,Technical Services,Supplies and Services,304358,Equipment and Materials,02-Jun-2017,3290638-26626,"1,189.50",JOHN R BUTTERFIELD LTD.
Regeneration and Local Services,Technical Services,Supplies and Services,304358,Equipment and Materials,02-Jun-2017,3290638-26661,"1,362.00",JOHN R BUTTERFIELD LTD.
Regeneration and Local Services,Technical Services,Supplies and Services,304358,Equipment and Materials,02-Jun-2017,3290638-26682,953.00,JOHN R BUTTERFIELD LTD.
Regeneration and Local Services,Technical Services,Supplies and Services,304358,Equipment and Materials,02-Jun-2017,3290638-26696,929.20,JOHN R BUTTERFIELD LTD.
Regeneration and Local Services,Technical Services,Supplies and Services,304358,Equipment and Materials,02-Jun-2017,3290638-26701,"1,609.00",JOHN R BUTTERFIELD LTD.
Regeneration and Local Services,Technical Services,Supplies and Services,304358,Equipment and Materials,02-Jun-2017,3290638-26722,"1,619.25",JOHN R BUTTERFIELD LTD.
Regeneration and Local Services,Technical Services,Supplies and Services,304358,Equipment and Materials,02-Jun-2017,3290638-26723,775.00,JOHN R BUTTERFIELD LTD.
Regeneration and Local Services,Technical Services,Supplies and Services,304358,Equipment and Materials,02-Jun-2017,3290638-26725,589.00,JOHN R BUTTERFIELD LTD.
Regeneration and Local Services,Technical Services,Supplies and Services,304358,Equipment and Materials,02-Jun-2017,3290638-26728,765.40,JOHN R BUTTERFIELD LTD.
Regeneration and Local Services,Technical Services,Supplies and Services,304358,Equipment and Materials,02-Jun-2017,3290638-26729,765.40,JOHN R BUTTERFIELD LTD.
Regeneration and Local Services,Technical Services,Supplies and Services,304358,Equipment and Materials,02-Jun-2017,3290638-26731,"1,534.50",JOHN R BUTTERFIELD LTD.
Regeneration and Local Services,Technical Services,Supplies and Services,304358,Equipment and Materials,02-Jun-2017,3290638-26732,548.70,JOHN R BUTTERFIELD LTD.
Regeneration and Local Services,Technical Services,Supplies and Services,304358,Equipment and Materials,02-Jun-2017,3290638-26733,"1,281.00",JOHN R BUTTERFIELD LTD.
Regeneration and Local Services,Technical Services,Supplies and Services,304358,Equipment and Materials,02-Jun-2017,3290638-26734,548.70,JOHN R BUTTERFIELD LTD.
Regeneration and Local Services,Technical Services,Supplies and Services,304358,Equipment and Materials,02-Jun-2017,3290638-26753,985.00,JOHN R BUTTERFIELD LTD.
Regeneration and Local Services,Technical Services,Supplies and Services,304358,Equipment and Materials,02-Jun-2017,3290638-26754,741.00,JOHN R BUTTERFIELD LTD.
Regeneration and Local Services,Technical Services,Supplies and Services,304358,Equipment and Materials,02-Jun-2017,3290638-26755,948.90,JOHN R BUTTERFIELD LTD.
Regeneration and Local Services,Technical Services,Supplies and Services,304358,Equipment and Materials,02-Jun-2017,3290638-26756,725.40,JOHN R BUTTERFIELD LTD.
Regeneration and Local Services,Technical Services,Supplies and Services,304358,Equipment and Materials,02-Jun-2017,3290638-26760,668.00,JOHN R BUTTERFIELD LTD.
Regeneration and Local Services,Technical Services,Supplies and Services,304358,Equipment and Materials,02-Jun-2017,3290638-26761,688.20,JOHN R BUTTERFIELD LTD.
Regeneration and Local Services,Technical Services,Supplies and Services,304358,Equipment and Materials,02-Jun-2017,3290638-26762,"1,659.00",JOHN R BUTTERFIELD LTD.
Regeneration and Local Services,Technical Services,Supplies and Services,304358,Equipment and Materials,02-Jun-2017,3290638-26763,688.20,JOHN R BUTTERFIELD LTD.
Regeneration and Local Services,Technical Services,Supplies and Services,304358,Equipment and Materials,02-Jun-2017,3290638-26766,522.80,JOHN R BUTTERFIELD LTD.
Regeneration and Local Services,Technical Services,Supplies and Services,304358,Equipment and Materials,02-Jun-2017,3290638-26786,589.00,JOHN R BUTTERFIELD LTD.
Regeneration and Local Services,Transport and Contracted Services,Supplies and Services,304245,Equipment and Materials,02-Jun-2017,3290837-3IN/10297369,"1,100.00",TUNSTALL HEALTHCARE (UK) LTD.
Regeneration and Local Services,Economic Development and Housing,Supplies and Services,384437,Miscellaneous Expenses,02-Jun-2017,3290728-F44699929/1,712.00,P & O FERRIES HOLDINGS LTD.
Regeneration and Local Services,Economic Development and Housing,Supplies and Services,384437,Miscellaneous Expenses,02-Jun-2017,3290728-F44700045/1,712.00,P & O FERRIES HOLDINGS LTD.
Regeneration and Local Services,Economic Development and Housing,Supplies and Services,384437,Miscellaneous Expenses,02-Jun-2017,3290728-F44702176/1,712.00,P & O FERRIES HOLDINGS LTD.
Regeneration and Local Services,Economic Development and Housing,Supplies and Services,384700,Miscellaneous Expenses,02-Jun-2017,3290591-RED-05-2017-268,"2,000.00",FLAME & FRAGRANCE COLLECTABLES .
Regeneration and Local Services,Direct Services,Supplies and Services,384999,Miscellaneous Expenses,02-Jun-2017,3290525-6002004448,"3,300.00",CAPITA TREASURY SOLUTIONS LTD T/A CAPITA ASSET SERVICES.*
Regeneration and Local Services,Culture & Sport,Supplies and Services,324001,Provisions,02-Jun-2017,3290528-843794237,735.19,CARLSBERG UK LTD.
Regeneration and Local Services,Culture & Sport,Supplies and Services,324001,Provisions,02-Jun-2017,3290528-843795907,"2,465.64",CARLSBERG UK LTD.
Regeneration and Local Services,Direct Services,Vehicles Equipment Furniture and Fittings,912529,Purchase-equipment,02-Jun-2017,3290861-INVOICE,"34,875.00",WICKSTEED LEISURE LTD.
Regeneration and Local Services,Transport and Contracted Services,Third Party Payments,430106,Rendered by Private Contractors,02-Jun-2017,3290588-PUBLICSERVICE-APR/MAY17,"5,435.00",FERRYHILL VILLAGE TRAVEL.
Regeneration and Local Services,Transport and Contracted Services,Third Party Payments,430106,Rendered by Private Contractors,02-Jun-2017,3290604-90/028,"6,929.52",GRAHAMS MOTOR SERVICES.
Regeneration and Local Services,Transport and Contracted Services,Third Party Payments,430106,Rendered by Private Contractors,02-Jun-2017,3290604-90/029,"6,390.00",GRAHAMS MOTOR SERVICES.
Regeneration and Local Services,Transport and Contracted Services,Third Party Payments,430106,Rendered by Private Contractors,02-Jun-2017,3290604-90/030,"9,093.20",GRAHAMS MOTOR SERVICES.
Regeneration and Local Services,Transport and Contracted Services,Third Party Payments,430106,Rendered by Private Contractors,02-Jun-2017,3290604-90/031,"3,264.36",GRAHAMS MOTOR SERVICES.
Regeneration and Local Services,Transport and Contracted Services,Third Party Payments,430106,Rendered by Private Contractors,02-Jun-2017,3290604-90/032,"6,879.67",GRAHAMS MOTOR SERVICES.
Regeneration and Local Services,Direct Services,Third Party Payments,430100,Rendered by Private Contractors,02-Jun-2017,3290519-82583425,658.22,BRISTOL STREET MOTORS.
Regeneration and Local Services,Direct Services,Third Party Payments,430100,Rendered by Private Contractors,02-Jun-2017,3290630-5109,"2,617.51",JAMES INGLEFORD SCAFFOLDING LTD.
Regeneration and Local Services,Technical Services,Third Party Payments,430100,Rendered by Private Contractors,02-Jun-2017,3290748-144845,"17,757.40",PREMIER TRAFFIC MANAGEMENT LTD.
Regeneration and Local Services,Direct Services,Third Party Payments,430100,Rendered by Private Contractors,02-Jun-2017,3290843-INV-0275,"1,674.00",UK VENTILATION LTD.
Regeneration and Local Services,Direct Services,Third Party Payments,430100,Rendered by Private Contractors,02-Jun-2017,3290868-C364/830,"1,187.50",WRAM FABRICATIONS LTD.
Regeneration and Local Services,Direct Services,Third Party Payments,430101,Rendered by Private Contractors,02-Jun-2017,3290563-IV885806,"1,769.45",DIRECT TYRE MANAGEMENT (DTM).
Regeneration and Local Services,Direct Services,Transport,210057,Repair and Maintenance of Vehicles,02-Jun-2017,3290476-597934,"1,094.59",AALCO NEWCASTLE.
Regeneration and Local Services,Direct Services,Transport,210057,Repair and Maintenance of Vehicles,02-Jun-2017,3290510-50239,513.00,BJ LUKE NIELSEN DIRECT.
Regeneration and Local Services,Direct Services,Transport,210057,Repair and Maintenance of Vehicles,02-Jun-2017,3290724-SIP067863,590.00,OWEN SPRINGS LTD.
Regeneration and Local Services,Direct Services,Transport,215005,Running Costs of Vehicles,02-Jun-2017,3290721-244906,"32,944.86",OIL NRG LTD.
Regeneration and Local Services,Culture & Sport,Supplies and Services,338047,Services,02-Jun-2017,3290509-13300,"7,613.89",BIRMINGHAM ROYAL BALLET.
Regeneration and Local Services,Direct Services,Stock,926004,Stock,02-Jun-2017,3290698-INVDUR00312851,693.79,NE TRUCK SPARES LTD.
Regeneration and Local Services,Technical Services,Stock,926900,Stock in hand-Inventory system,02-Jun-2017,3290521-INV209705,651.00,BROXAP LTD.
Regeneration and Local Services,Technical Services,Stock,926900,Stock in hand-Inventory system,02-Jun-2017,3290622-582030,"2,424.80",INSTARMAC GROUP PLC.
Regeneration and Local Services,Direct Services,Stock,926900,Stock in hand-Inventory system,02-Jun-2017,3290646-SI02-0145068,"1,155.60",KILLGERM CHEMICALS LTD.
Regeneration and Local Services,Technical Services,Stock,926900,Stock in hand-Inventory system,02-Jun-2017,3290731-XL199552,"1,960.80",PARK ELECTRICAL DISTRIBUTORS LTD.
Regeneration and Local Services,Technical Services,Stock,926900,Stock in hand-Inventory system,02-Jun-2017,3290751-229297,"1,078.80",PUDSEY DIAMOND ENGINEERING LTD.
Regeneration and Local Services,Technical Services,Stock,926900,Stock in hand-Inventory system,02-Jun-2017,3290827-N/IN196914,534.16,THOMAS OWEN & SONS (NEWCASTLE) LTD.
Regeneration and Local Services,Spatial Policy Planning Assets & Environment,Supplies and Services,372009,Subscriptions,02-Jun-2017,3290610-50096578,"2,842.00",HAYMARKET MEDIA GROUP LTD.
Regeneration and Local Services,Economic Development and Housing,Supplies and Services,348037,Subsistence,02-Jun-2017,3290642-MAIEXHIBI260617,548.00,JURYS HOTEL MANAGEMENT LTD T/A JURYS INN.
Regeneration and Local Services,Economic Development and Housing,Supplies and Services,344033,Telephones,02-Jun-2017,3290593-136423,"1,033.07",FREEDOM COMMUNICATIONS (UK) LTD.
Resources,I.C.T. Services,Supplies and Services,342107,Computers and Communications,02-Jun-2017,3290760-SIN050719,888.40,REDWAY NETWORKS LTD.
Resources,Financial Services,Supplies and Services,384197,Miscellaneous Expenses,02-Jun-2017,3290620-2126,"1,500.00",INGRAMS REMOVERS & STORERS.
Resources,I.C.T. Services,Supplies and Services,332029,Printing Stationery and Gen Off Exps,02-Jun-2017,3290746-644346,533.00,POTTS PRINTERS LTD.
Resources,Legal & Democratic Services,Supplies and Services,338042,Services,02-Jun-2017,3290562-327439/INVCSM274,540.00,DERE STREET BARRISTERS.
Resources,I.C.T. Services,Supplies and Services,344015,Telephones,02-Jun-2017,3290856-KC24689,"1,440.00",VODAFONE LTD.
Transformation and Partnerships,Partnerships & Community Engagement Div.,Supplies and Services,308011,Furniture,02-Jun-2017,3290585-SIN005829,"1,198.83",FAMILY FUND TRADING LTD T/A FAMILY FUND BUSINESS SERVICES.
Transformation and Partnerships,Partnerships & Community Engagement Div.,Supplies and Services,384086,Miscellaneous Expenses,02-Jun-2017,3290568-VOUCHER16NB-BASH071,"10,755.00",DURHAM MARKETS CO.
Adult and Health Services,Public Health,Third Party Payments,460803,Contract Payments,05-Jun-2017,3291221-9100068244,"2,917.00",UNIVERSITY OF NEWCASTLE UPON TYNE.
Adult and Health Services,Head of Adults,Supplies and Services,338366,Services,05-Jun-2017,3290947-40410,"2,486.00",CARE ABILITY.
Adult and Health Services,Head of Adults,Supplies and Services,338366,Services,05-Jun-2017,3290947-40564,"2,016.25",CARE ABILITY.
Children and Young Peoples Services,Education,Premises,106082,Centrally Controlled Rep and Maint,05-Jun-2017,3291078-48752,550.00,LUCION ENVIRONMENTAL LLP LTD.
Children and Young Peoples Services,Childrens Services,Premises,145015,Cleaning and Domestic Supplies,05-Jun-2017,3291209-120848,552.89,TP ELECTRICAL SUPPLIES & FIXINGS LTD.
Children and Young Peoples Services,Education,Transport,230003,Contract Hire,05-Jun-2017,3291157-3208/09,"1,691.00",S & S TRAVEL LTD.
Children and Young Peoples Services,Education,Supplies and Services,304259,Equipment and Materials,05-Jun-2017,3291104-INV1092852,"2,649.00",NORMANS (BURTON ON TRENT) LTD.
Children and Young Peoples Services,Childrens Services,Supplies and Services,364352,Grants to Voluntary Organisations,05-Jun-2017,3291091-RENT22MARTO22APR,855.84,MOVING ON DURHAM.
Children and Young Peoples Services,Childrens Services,Third Party Payments,440037,Other Third Party Payments,05-Jun-2017,3290972-CAS-06-2017-006,500.00,CORECARE FISHBURN LTD.
Children and Young Peoples Services,Education,Employees,040001,Recruitment Instruction and Training,05-Jun-2017,3291197-INVTES0030663,710.10,TES GLOBAL LTD.
Children and Young Peoples Services,Childrens Services,Premises,108099,Service Repairs and Maintenance,05-Jun-2017,3290917-11933,"4,076.50",ASTRAL CONTROL SERVICES LTD.
Children and Young Peoples Services,Education,Supplies and Services,338001,Services,05-Jun-2017,3290918-17004337,"4,200.00",ATKINS GLOBAL.
Children and Young Peoples Services,Childrens Services,Supplies and Services,338078,Services,05-Jun-2017,3290903-06848,"1,503.60",ALL EVENTS SECURITY LTD (AES).
Children and Young Peoples Services,Childrens Services,Supplies and Services,338078,Services,05-Jun-2017,3290903-06863,"1,503.60",ALL EVENTS SECURITY LTD (AES).
Dedicated Schools Grant,Dedicated Schools Grant,Third Party Payments,440080,Other Third Party Payments,05-Jun-2017,3291129-SIN033715,"64,799.22",PORTLAND COLLEGE.
Regeneration and Local Services,Spatial Policy Planning Assets & Environment,Supplies and Services,336005,Advertising,05-Jun-2017,3291103-20085669,773.14,NEWSQUEST (YORKSHIRE & NORTH EAST) LTD.
Regeneration and Local Services,Transport and Contracted Services,Supplies and Services,336005,Advertising,05-Jun-2017,3291192-115652,609.50,TEESDALE MERCURY LTD.
Regeneration and Local Services,Spatial Policy Planning Assets & Environment,Supplies and Services,336005,Advertising,05-Jun-2017,3291192-115653,"1,590.00",TEESDALE MERCURY LTD.
Regeneration and Local Services,Culture & Sport,Premises,106080,Centrally Controlled Rep and Maint,05-Jun-2017,3291133-RI5534,"7,503.00",PROMANEX (TOTAL FM & ENVIRONMENTAL SERVICES) LTD.
Regeneration and Local Services,Culture & Sport,Premises,106082,Centrally Controlled Rep and Maint,05-Jun-2017,3290917-11845,"4,654.50",ASTRAL CONTROL SERVICES LTD.
Regeneration and Local Services,Direct Services,Premises,106082,Centrally Controlled Rep and Maint,05-Jun-2017,3290917-11894,"1,610.00",ASTRAL CONTROL SERVICES LTD.
Regeneration and Local Services,Direct Services,Premises,106082,Centrally Controlled Rep and Maint,05-Jun-2017,3291222-2014,585.00,VENTILATION HYGIENE SPECIALISTS (VHS) LTD.
Regeneration and Local Services,Direct Services,Premises,106082,Centrally Controlled Rep and Maint,05-Jun-2017,3291222-2017,680.00,VENTILATION HYGIENE SPECIALISTS (VHS) LTD.
Regeneration and Local Services,Culture & Sport,Premises,145023,Cleaning and Domestic Supplies,05-Jun-2017,3291030-06/643258,628.00,GREENHAM TRADING LTD.
Regeneration and Local Services,Direct Services,Premises,145023,Cleaning and Domestic Supplies,05-Jun-2017,3291030-06/643434,"1,468.00",GREENHAM TRADING LTD.
Regeneration and Local Services,Transport and Contracted Services,Supplies and Services,342053,Computers and Communications,05-Jun-2017,3291090-IN000000559,"28,647.26",MOBISOFT (UK) LTD.
Regeneration and Local Services,Technical Services,Construction Work,908105,Construction work,05-Jun-2017,3291049-20425,663.95,JACK COUPE & SONS LTD T/A COUPE LINE.
Regeneration and Local Services,Direct Services,Construction Work,908105,Construction work,05-Jun-2017,3291052-00507,"4,640.00",JN KEARTON.
Regeneration and Local Services,Economic Development and Housing,Fees,901002,Professional fees,05-Jun-2017,3290919-ANL2017/56,"13,017.92",AURA NEWCASTLE LTD.
Regeneration and Local Services,Technical Services,Third Party Payments,460503,Contract Payments,05-Jun-2017,3291105-17129,549.00,NORTH EAST TRAFFIC DATA COLLECTION LTD.
Regeneration and Local Services,Technical Services,Supplies and Services,304221,Equipment and Materials,05-Jun-2017,3290899-24852365,"1,240.21",AGGREGATE INDUSTRIES UK LTD.
Regeneration and Local Services,Technical Services,Supplies and Services,304221,Equipment and Materials,05-Jun-2017,3290899-24852366,"2,439.71",AGGREGATE INDUSTRIES UK LTD.
Regeneration and Local Services,Technical Services,Supplies and Services,304221,Equipment and Materials,05-Jun-2017,3290899-24852367,750.28,AGGREGATE INDUSTRIES UK LTD.
Regeneration and Local Services,Technical Services,Supplies and Services,304221,Equipment and Materials,05-Jun-2017,3290899-24852368,888.53,AGGREGATE INDUSTRIES UK LTD.
Regeneration and Local Services,Technical Services,Supplies and Services,304221,Equipment and Materials,05-Jun-2017,3290899-24852369,979.75,AGGREGATE INDUSTRIES UK LTD.
Regeneration and Local Services,Technical Services,Supplies and Services,304221,Equipment and Materials,05-Jun-2017,3290899-24859008,"1,247.73",AGGREGATE INDUSTRIES UK LTD.
Regeneration and Local Services,Technical Services,Supplies and Services,304221,Equipment and Materials,05-Jun-2017,3290899-24859010,"2,378.56",AGGREGATE INDUSTRIES UK LTD.
Regeneration and Local Services,Technical Services,Supplies and Services,304221,Equipment and Materials,05-Jun-2017,3290899-24859011,750.96,AGGREGATE INDUSTRIES UK LTD.
Regeneration and Local Services,Technical Services,Supplies and Services,304221,Equipment and Materials,05-Jun-2017,3290899-24859012,983.54,AGGREGATE INDUSTRIES UK LTD.
Regeneration and Local Services,Technical Services,Supplies and Services,304221,Equipment and Materials,05-Jun-2017,3290951-3009611367,"1,199.61",CEMEX UK MATERIALS LTD.
Regeneration and Local Services,Direct Services,Supplies and Services,304221,Equipment and Materials,05-Jun-2017,3290952-9950/01745341,655.80,CERAMIC TILE DISTRIBUTORS (CTD).
Regeneration and Local Services,Technical Services,Supplies and Services,304221,Equipment and Materials,05-Jun-2017,3290993-158241,"1,520.00",DUNHOUSE QUARRY CO LTD.
Regeneration and Local Services,Direct Services,Supplies and Services,304221,Equipment and Materials,05-Jun-2017,3291003-059-204233,"4,400.06",EDMUNDSON ELECTRICAL LTD.
Regeneration and Local Services,Direct Services,Supplies and Services,304221,Equipment and Materials,05-Jun-2017,3291003-059-204519,546.14,EDMUNDSON ELECTRICAL LTD.
Regeneration and Local Services,Direct Services,Supplies and Services,304221,Equipment and Materials,05-Jun-2017,3291003-059-204600,"2,169.46",EDMUNDSON ELECTRICAL LTD.
Regeneration and Local Services,Direct Services,Supplies and Services,304221,Equipment and Materials,05-Jun-2017,3291057-BII223449,678.84,JT DOVE LTD.
Regeneration and Local Services,Direct Services,Supplies and Services,304221,Equipment and Materials,05-Jun-2017,3291057-BII223595,"1,435.80",JT DOVE LTD.
Regeneration and Local Services,Technical Services,Supplies and Services,304221,Equipment and Materials,05-Jun-2017,3291060-10081,552.20,KEN THOMAS (SITE CLEARANCE LTD).
Regeneration and Local Services,Direct Services,Supplies and Services,304221,Equipment and Materials,05-Jun-2017,3291070-60618,570.00,LEISURETEQ.
Regeneration and Local Services,Direct Services,Supplies and Services,304221,Equipment and Materials,05-Jun-2017,3291072-INV-5568972,551.47,LINDAB LTD.
Regeneration and Local Services,Technical Services,Supplies and Services,304221,Equipment and Materials,05-Jun-2017,3291134-97443,550.00,PROTECTOR SECURITY GROUP LTD.
Regeneration and Local Services,Direct Services,Supplies and Services,304221,Equipment and Materials,05-Jun-2017,3291169-81/22,"1,950.00",SMITH TIMBER SUPPLIES LTD.
Regeneration and Local Services,Technical Services,Supplies and Services,304221,Equipment and Materials,05-Jun-2017,3291181-093587,"1,073.80",STONEGRAVE AGGREGATES LTD.
Regeneration and Local Services,Direct Services,Supplies and Services,304221,Equipment and Materials,05-Jun-2017,3291185-2354202,"1,087.32",T CROSSLING & CO LTD.
Regeneration and Local Services,Direct Services,Supplies and Services,304221,Equipment and Materials,05-Jun-2017,3291185-2355521,"1,357.08",T CROSSLING & CO LTD.
Regeneration and Local Services,Direct Services,Supplies and Services,304221,Equipment and Materials,05-Jun-2017,3291185-2359695,"2,513.42",T CROSSLING & CO LTD.
Regeneration and Local Services,Direct Services,Supplies and Services,304221,Equipment and Materials,05-Jun-2017,3291185-2364271,"12,560.00",T CROSSLING & CO LTD.
Regeneration and Local Services,Technical Services,Supplies and Services,304221,Equipment and Materials,05-Jun-2017,3291187-9036034956,678.00,TARMAC TRADING LTD.
Regeneration and Local Services,Technical Services,Supplies and Services,304221,Equipment and Materials,05-Jun-2017,3291187-9036204495,618.24,TARMAC TRADING LTD.
Regeneration and Local Services,Technical Services,Supplies and Services,304221,Equipment and Materials,05-Jun-2017,3291187-9036221370,613.20,TARMAC TRADING LTD.
Regeneration and Local Services,Technical Services,Supplies and Services,304221,Equipment and Materials,05-Jun-2017,3291213-SIN440492,"1,117.80",TRIMLINE.
Regeneration and Local Services,Technical Services,Supplies and Services,304221,Equipment and Materials,05-Jun-2017,3291216-173478,616.56,TYNEDALE ROADSTONE LTD.
Regeneration and Local Services,Direct Services,Supplies and Services,304221,Equipment and Materials,05-Jun-2017,3291237-045399-001,"3,732.17",XTRALITE (ROOFLIGHTS) LTD.
Regeneration and Local Services,Spatial Policy Planning Assets & Environment,Supplies and Services,304259,Equipment and Materials,05-Jun-2017,3290973-85001,997.32,CORPORATE COMPUTER SUPPLIES LTD.
Regeneration and Local Services,Direct Services,Supplies and Services,304259,Equipment and Materials,05-Jun-2017,3291055-1110461,906.50,JOHNSONS OF WHIXLEY LTD.
Regeneration and Local Services,Direct Services,Supplies and Services,304259,Equipment and Materials,05-Jun-2017,3291055-1110775,"4,104.00",JOHNSONS OF WHIXLEY LTD.
Regeneration and Local Services,Economic Development and Housing,Supplies and Services,304259,Equipment and Materials,05-Jun-2017,3291183-9020211,"1,387.38",SUPPLIES TEAM LTD NOW KNOWN AS BANNER GROUP LTD.
Regeneration and Local Services,Direct Services,Supplies and Services,304259,Equipment and Materials,05-Jun-2017,3291206-29481,"2,712.50",TODDS HIGHWAY MAINTENANCE LTD.
Regeneration and Local Services,Technical Services,Supplies and Services,304357,Equipment and Materials,05-Jun-2017,3291021-DCC140517,"16,858.50",GAP GROUP LTD.
Regeneration and Local Services,Culture & Sport,Income,720810,Fees and Charges,05-Jun-2017,3290969-PSINV02001,"19,860.33",COMPETITION LINE UK LTD.
Regeneration and Local Services,Culture & Sport,Income,720810,Fees and Charges,05-Jun-2017,3290969-PSINV02002,"26,331.14",COMPETITION LINE UK LTD.
Regeneration and Local Services,Culture & Sport,Income,720810,Fees and Charges,05-Jun-2017,3290969-PSINV02003,"4,760.39",COMPETITION LINE UK LTD.
Regeneration and Local Services,Direct Services,Supplies and Services,308013,Furniture,05-Jun-2017,3290921-77015,562.34,BAILEYS BLINDS LTD.
Regeneration and Local Services,Culture & Sport,Supplies and Services,384956,Miscellaneous Expenses,05-Jun-2017,3291136-6868,"1,150.00",QUEST & NBS.
Regeneration and Local Services,Culture & Sport,Supplies and Services,384199,Miscellaneous Expenses,05-Jun-2017,3290962-INV-5008,"7,050.00",CLOWN & BEAR LTD.
Regeneration and Local Services,Economic Development and Housing,Supplies and Services,384199,Miscellaneous Expenses,05-Jun-2017,3291172-853381,"4,424.46",SP SERVICES (UK) LTD.
Regeneration and Local Services,Spatial Policy Planning Assets & Environment,Supplies and Services,384199,Miscellaneous Expenses,05-Jun-2017,3291195-INV038,"1,050.00",TELFORD`S COUNTRYSIDE & LANDSCAPE CONTRACTORS.
Regeneration and Local Services,Transport and Contracted Services,Third Party Payments,430109,Rendered by Private Contractors,05-Jun-2017,3290990-DRA629,"15,918.00",DRAKEWELL LTD.
Regeneration and Local Services,Spatial Policy Planning Assets & Environment,Third Party Payments,430105,Rendered by Private Contractors,05-Jun-2017,3291156-24261,709.12,S & S SITE SERVICES LTD.
Regeneration and Local Services,Technical Services,Third Party Payments,430127,Rendered by Private Contractors,05-Jun-2017,3291155-1174,"3,002.50",S & R LANDSCAPES.
Regeneration and Local Services,Culture & Sport,Third Party Payments,430100,Rendered by Private Contractors,05-Jun-2017,3290969-PSINV01999,"32,296.85",COMPETITION LINE UK LTD.
Regeneration and Local Services,Culture & Sport,Third Party Payments,430100,Rendered by Private Contractors,05-Jun-2017,3290969-PSINV02000,"8,038.28",COMPETITION LINE UK LTD.
Regeneration and Local Services,Direct Services,Third Party Payments,430100,Rendered by Private Contractors,05-Jun-2017,3291058-820,"20,759.00",KARLIN TIMBER FRAME (NE) LTD.
Regeneration and Local Services,Direct Services,Third Party Payments,430100,Rendered by Private Contractors,05-Jun-2017,3291061-INV02560,"4,999.00",KEPPIE DESIGN LTD.
Regeneration and Local Services,Technical Services,Third Party Payments,430100,Rendered by Private Contractors,05-Jun-2017,3291107-DI20270438,"1,561.87",NORTHERN POWERGRID (NORTHEAST) LTD.
Regeneration and Local Services,Technical Services,Third Party Payments,430100,Rendered by Private Contractors,05-Jun-2017,3291107-DI20270439,944.15,NORTHERN POWERGRID (NORTHEAST) LTD.
Regeneration and Local Services,Direct Services,Third Party Payments,430100,Rendered by Private Contractors,05-Jun-2017,3291127-18860,"2,982.54",POLAR (NE) LTD.
Regeneration and Local Services,Technical Services,Third Party Payments,430100,Rendered by Private Contractors,05-Jun-2017,3291134-97560,550.00,PROTECTOR SECURITY GROUP LTD.
Regeneration and Local Services,Direct Services,Third Party Payments,430100,Rendered by Private Contractors,05-Jun-2017,3291218-INV-0276,671.00,UK VENTILATION LTD.
Regeneration and Local Services,Direct Services,Premises,125009,Rents,05-Jun-2017,3290964-PR1416,"1,568.93",COAL INDUSTRY SOCIAL WELFARE ORGANISATION.
Regeneration and Local Services,Direct Services,Premises,108099,Service Repairs and Maintenance,05-Jun-2017,3291034-7049878,"1,365.73",HCS DRAIN SERVICES LTD.
Regeneration and Local Services,Technical Services,Supplies and Services,338027,Services,05-Jun-2017,3290918-17004287,"7,500.00",ATKINS GLOBAL.
Regeneration and Local Services,Culture & Sport,Supplies and Services,338027,Services,05-Jun-2017,3291138-INV-0048,750.00,RACHEL COCHRANE T/A LISTENUPNORTH.
Regeneration and Local Services,Technical Services,Stock,926900,Stock in hand-Inventory system,05-Jun-2017,3290938-8419210,"1,120.00",BOLD NU TEC INSULATION PRODUCTS & SERVICES LTD.
Regeneration and Local Services,Technical Services,Stock,926900,Stock in hand-Inventory system,05-Jun-2017,3290938-8419211,770.00,BOLD NU TEC INSULATION PRODUCTS & SERVICES LTD.
Regeneration and Local Services,Technical Services,Stock,926900,Stock in hand-Inventory system,05-Jun-2017,3291030-06/643561,"1,057.21",GREENHAM TRADING LTD.
Regeneration and Local Services,Technical Services,Stock,926900,Stock in hand-Inventory system,05-Jun-2017,3291057-STI457521,519.25,JT DOVE LTD.
Regeneration and Local Services,Technical Services,Stock,926900,Stock in hand-Inventory system,05-Jun-2017,3291118-XL199666,"1,249.95",PARK ELECTRICAL DISTRIBUTORS LTD.
Resources,I.C.T. Services,Supplies and Services,342033,Computers and Communications,05-Jun-2017,3291043-3375784,"1,439.66",INSIGHT DIRECT (UK) LTD.
Resources,I.C.T. Services,Supplies and Services,342051,Computers and Communications,05-Jun-2017,3290896-ANS4546,"1,000.00",ADVANCED NETWORK SECURITY LTD.
Resources,Financial Services,Supplies and Services,342051,Computers and Communications,05-Jun-2017,3291098-E953533,630.00,NCC SERVICES LTD.
Resources,Financial Services,Supplies and Services,342051,Computers and Communications,05-Jun-2017,3291098-E953535,630.00,NCC SERVICES LTD.
Resources,I.C.T. Services,Supplies and Services,342051,Computers and Communications,05-Jun-2017,3291171-INV01622893,"1,195.50",SOFTCAT LTD.
Resources,I.C.T. Services,Supplies and Services,304303,Equipment and Materials,05-Jun-2017,3291088-0000094487,"3,642.00",MILLENNIUM BUSINESS SYSTEMS LTD.
Resources,Legal & Democratic Services,Transport,245007,Members etc Travelling,05-Jun-2017,3291074-40153403,"3,815.00",LOCAL GOVERNMENT ASSOCIATION.
Resources,I.C.T. Services,Supplies and Services,384956,Miscellaneous Expenses,05-Jun-2017,3291171-INV01621748,"1,390.20",SOFTCAT LTD.
Resources,I.C.T. Services,Supplies and Services,340001,Postages,05-Jun-2017,3291151-9054239902,"19,632.36",ROYAL MAIL GROUP PLC.
Resources,Legal & Democratic Services,Supplies and Services,340001,Postages,05-Jun-2017,3291151-9054283558,"29,486.17",ROYAL MAIL GROUP PLC.
Resources,I.C.T. Services,Employees,040149,Recruitment Instruction and Training,05-Jun-2017,3291159-I17050019,990.00,SAPPHIRE TECHNOLOGIES LTD.*
Resources,Legal & Democratic Services,Premises,125009,Rents,05-Jun-2017,3291146-9198,553.67,RIVERGREEN DEVELOPMENTS PLC.
Resources,Legal & Democratic Services,Supplies and Services,338057,Services,05-Jun-2017,3290900-0000027116,"1,725.00",ALERE FORENSICS.
Resources,I.C.T. Services,Supplies and Services,344111,Telephones,05-Jun-2017,3291100-202381,"4,833.00",NETWORKS 2 BUSINESS LTD.
Resources - C A C,Welfare Assistance Fund,Third Party Payments,440999,Other Third Party Payments,05-Jun-2017,3291010-SIN005812,"4,750.00",FAMILY FUND TRADING LTD T/A FAMILY FUND BUSINESS SERVICES.
Adult and Health Services,Public Health,Third Party Payments,460802,Contract Payments,06-Jun-2017,3291280-FYR53/APR2017/EOHC,"1,830.29",BOOTS THE CHEMISTS LTD.*
Adult and Health Services,Public Health,Third Party Payments,460802,Contract Payments,06-Jun-2017,3291414-FED01/APR2017/EOHC,570.48,EMPHARM (NE) LTD T/A MILLER`S PHARMACY.
Adult and Health Services,Public Health,Third Party Payments,460803,Contract Payments,06-Jun-2017,3291326-A83042/QTR416-17/ALCOHOLSCREENING,575.96,DR FAIRLAMB.
Adult and Health Services,Public Health,Third Party Payments,460803,Contract Payments,06-Jun-2017,3291329-A83054/QTR4B16-17/ALCOHOLSCREENING,621.18,DR PRM JONES & PARTNERS.
Adult and Health Services,Public Health,Third Party Payments,460803,Contract Payments,06-Jun-2017,3291407-A83051/QTR416-17/ALCOHOLSCREENING,921.06,MARLBOROUGH SURGERY.
Adult and Health Services,Public Health,Supplies and Services,384899,Miscellaneous Expenses,06-Jun-2017,3291506-51442/APR-OCT17/CREE,"2,000.00",WINGATE & STATION TOWN FAMILY CENTRE.
Adult and Health Services,Head of Adults,Third Party Payments,470101,Purchase of Care,06-Jun-2017,3291443-31791,"110,058.53",PERCY HEDLEY FOUNDATION.
Adult and Health Services,Head of Adults,Third Party Payments,470101,Purchase of Care,06-Jun-2017,3291443-31841,"1,197.03",PERCY HEDLEY FOUNDATION.
Children and Young Peoples Services,Education,Transport,230003,Contract Hire,06-Jun-2017,3291334-7471,"20,104.00",DURHAM CITY COACHES.
Children and Young Peoples Services,Education,Transport,230008,Contract Hire,06-Jun-2017,3291459-W048/09,"1,691.00",S & S TRAVEL LTD.
Children and Young Peoples Services,Childrens Services,Supplies and Services,304252,Equipment and Materials,06-Jun-2017,3291248-35521955-61,677.79,ADT FIRE & SECURITY PLC.
Children and Young Peoples Services,Childrens Services,Supplies and Services,364340,Grants to Voluntary Organisations,06-Jun-2017,3291368-193,998.64,HOME ON THE RANGE LTD.
Children and Young Peoples Services,Childrens Services,Supplies and Services,364301,Grants to Voluntary Organisations,06-Jun-2017,3291342-CAS-06-2017-021,564.06,REDACTED - PAYMENT TO INDIVIDUAL
Children and Young Peoples Services,Childrens Services,Supplies and Services,364353,Grants to Voluntary Organisations,06-Jun-2017,3291380-CAS-06-2017-022,812.00,REDACTED - PAYMENT TO INDIVIDUAL
Children and Young Peoples Services,Education,Third Party Payments,440999,Other Third Party Payments,06-Jun-2017,3291347-5242,"4,960.20",FANE LTD.
Children and Young Peoples Services,Childrens Services,Third Party Payments,440027,Other Third Party Payments,06-Jun-2017,3291644-1195658,706.23,REDACTED - PAYMENT TO INDIVIDUAL
Children and Young Peoples Services,Childrens Services,Third Party Payments,440027,Other Third Party Payments,06-Jun-2017,3292179-1196884,739.86,REDACTED - PAYMENT TO INDIVIDUAL
Children and Young Peoples Services,Childrens Services,Third Party Payments,425020,Rendered by Voluntary Organisations,06-Jun-2017,3291299-015/18,"1,110.00",BUTTERWICK HOSPICE RETAIL LTD.
Children and Young Peoples Services,Childrens Services,Third Party Payments,425020,Rendered by Voluntary Organisations,06-Jun-2017,3291299-018/18,740.00,BUTTERWICK HOSPICE RETAIL LTD.
Children and Young Peoples Services,Childrens Services,Third Party Payments,425020,Rendered by Voluntary Organisations,06-Jun-2017,3291299-019/18,740.00,BUTTERWICK HOSPICE RETAIL LTD.
Children and Young Peoples Services,Childrens Services,Third Party Payments,425020,Rendered by Voluntary Organisations,06-Jun-2017,3291299-021/18,740.00,BUTTERWICK HOSPICE RETAIL LTD.
Children and Young Peoples Services,Childrens Services,Third Party Payments,425020,Rendered by Voluntary Organisations,06-Jun-2017,3291299-022/18,740.00,BUTTERWICK HOSPICE RETAIL LTD.
Children and Young Peoples Services,Childrens Services,Third Party Payments,425021,Rendered by Voluntary Organisations,06-Jun-2017,3291440-280120,"14,171.43",PEARTREE PROJECTS LTD.
Children and Young Peoples Services,Childrens Services,Third Party Payments,425023,Rendered by Voluntary Organisations,06-Jun-2017,3291440-280121,"14,171.43",PEARTREE PROJECTS LTD.
Dedicated Schools Grant,Dedicated Schools Grant,Central Support and Capital,689996,Unclassified,06-Jun-2017,3291475-CAS-06-2017-001,"2,062.55",STANLEY LEARNING PARTNERSHIP.
Regeneration and Local Services,Projects and Business services,Supplies and Services,352001,Conference Expenses,06-Jun-2017,3291344-WEB102,518.00,ENVIRONMENT MEDIA GROUP.*
Regeneration and Local Services,Neighbourhood central costs,Creditors,952031,Creditor-gas contract,06-Jun-2017,3291312-NEI-EXP-06-2017-001,"185,102.85",CORONA ENERGY RETAIL 2 LTD.
Regeneration and Local Services,Culture & Sport,Supplies and Services,304259,Equipment and Materials,06-Jun-2017,3291444-5144918,"2,575.74",PERFORMING RIGHT SOCIETY LTD T/A PRS FOR MUSIC.
Regeneration and Local Services,Spatial Policy Planning Assets & Environment,Supplies and Services,304999,Equipment and Materials,06-Jun-2017,3291321-01-040517,"6,996.00",DIVERSE SENSOR TECHNOLOGY LTD (DST).
Regeneration and Local Services,Technical Services,Supplies and Services,384194,Miscellaneous Expenses,06-Jun-2017,3291430-82987,"1,975.00",NIRAMAX GROUP LTD.
Regeneration and Local Services,Spatial Policy Planning Assets & Environment,Supplies and Services,384199,Miscellaneous Expenses,06-Jun-2017,3291458-SI-55,"2,720.00",RYHOPE COMMUNITY ASSOCIATION.
Regeneration and Local Services,Transport and Contracted Services,Third Party Payments,430106,Rendered by Private Contractors,06-Jun-2017,3291367-11495,"4,313.61",HODGSONS COACH OPERATORS LTD.
Regeneration and Local Services,Transport and Contracted Services,Third Party Payments,430106,Rendered by Private Contractors,06-Jun-2017,3291462-2430,"180,317.63",SCARLET BAND BUS & COACH LTD.
Regeneration and Local Services,Transport and Contracted Services,Third Party Payments,430106,Rendered by Private Contractors,06-Jun-2017,3291504-1787,"31,786.53",WEARDALE MOTOR SERVICES LTD.
Regeneration and Local Services,Direct Services,Third Party Payments,430100,Rendered by Private Contractors,06-Jun-2017,3291253-16203,"4,600.00",AMBIC LTD.
Regeneration and Local Services,Direct Services,Third Party Payments,430100,Rendered by Private Contractors,06-Jun-2017,3291262-30496,719.00,AYCLIFFE FABRICATIONS LTD.
Regeneration and Local Services,Direct Services,Third Party Payments,430100,Rendered by Private Contractors,06-Jun-2017,3291297-PRI022647,750.00,BROXAP LTD.
Regeneration and Local Services,Direct Services,Third Party Payments,430100,Rendered by Private Contractors,06-Jun-2017,3291300-2646,"3,973.32",CATHEDRAL LOCK & SAFE SERVICES LTD.
Regeneration and Local Services,Direct Services,Third Party Payments,430100,Rendered by Private Contractors,06-Jun-2017,3291300-2664,"1,158.48",CATHEDRAL LOCK & SAFE SERVICES LTD.
Regeneration and Local Services,Culture & Sport,Third Party Payments,430100,Rendered by Private Contractors,06-Jun-2017,3291474-NEI-HCL-06-2017-001,"7,500.00",STANLEY INDOOR BOWLS CENTRE.
Regeneration and Local Services,Direct Services,Transport,215005,Running Costs of Vehicles,06-Jun-2017,3291436-244695,"12,852.00",OIL NRG LTD.
Regeneration and Local Services,Direct Services,Transport,215022,Running Costs of Vehicles,06-Jun-2017,3291436-244696,"1,827.60",OIL NRG LTD.
Resources,I.C.T. Services,Supplies and Services,342033,Computers and Communications,06-Jun-2017,3291315-1603601,"4,023.38",CRITICAL POWER SUPPLIES LTD.
Resources,Legal & Democratic Services,Supplies and Services,338057,Services,06-Jun-2017,3291330-APRIL-17D,"1,050.00",DR SREE MUSSUNOOR.
Children and Young Peoples Services,Education,Transport,230007,Contract Hire,07-Jun-2017,307117-37,"1,064.00",REDACTED - PAYMENT TO INDIVIDUAL
Children and Young Peoples Services,Education,Transport,230008,Contract Hire,07-Jun-2017,3292547-S016-05-17,"1,957.00",REDACTED - PAYMENT TO INDIVIDUAL
Regeneration and Local Services,Culture & Sport,Supplies and Services,338047,Services,07-Jun-2017,3292462-02/17,"1,000.00",REDACTED - PAYMENT TO INDIVIDUAL
Adult and Health Services,Head of Adults,Supplies and Services,342033,Computers and Communications,07-Jun-2017,3292392-3380205,826.42,INSIGHT DIRECT (UK) LTD.
Adult and Health Services,Head of Adults,Supplies and Services,342051,Computers and Communications,07-Jun-2017,3292273-478482,"1,145.75",BYTES SOFTWARE SERVICES LTD.
Adult and Health Services,Planning & Service Strategy,Supplies and Services,342051,Computers and Communications,07-Jun-2017,3292472-94537976,"1,790.00",NORTHGATE ARINSO UK LTD.
Adult and Health Services,Head of Adults,Transport,230005,Contract Hire,07-Jun-2017,3292236-0021A,"1,320.00",AIRPORT TAXIS 4U.
Adult and Health Services,Head of Adults,Transport,230005,Contract Hire,07-Jun-2017,3292608-1103-26/05/2017,"1,260.00",WAYNE`S TAXIS.
Adult and Health Services,Head of Adults,Transport,230005,Contract Hire,07-Jun-2017,3292608-1104-26/05/2017,500.00,WAYNE`S TAXIS.
Adult and Health Services,Public Health,Third Party Payments,460803,Contract Payments,07-Jun-2017,3292551-1867B,"124,166.67",SOLUTIONS 4 HEALTH.
Adult and Health Services,Public Health,Third Party Payments,460803,Contract Payments,07-Jun-2017,3292596-9100068249,"11,666.00",UNIVERSITY OF NEWCASTLE UPON TYNE.
Adult and Health Services,Head of Adults,Premises,125009,Rents,07-Jun-2017,3292348-FTL0444,"9,699.32",FINCHALE TRADING LTD.
Adult and Health Services,Head of Adults,Premises,125009,Rents,07-Jun-2017,3292348-FTL0488,"4,250.00",FINCHALE TRADING LTD.
Adult and Health Services,Commissioning inc Supporting People,Third Party Payments,441001,Supporting People,07-Jun-2017,3292326-1966433,"20,819.76",DURHAM ACTION ON SINGLE HOUSING.
Adult and Health Services,Commissioning inc Supporting People,Third Party Payments,441001,Supporting People,07-Jun-2017,3292333-1966398,"5,483.40",EAST DURHAM COMMUNITY INITIATIVES LTD.
Adult and Health Services,Commissioning inc Supporting People,Third Party Payments,441001,Supporting People,07-Jun-2017,3292378-1966381,"18,082.80",HARBOUR SUPPORT SERVICES.
Adult and Health Services,Commissioning inc Supporting People,Third Party Payments,441001,Supporting People,07-Jun-2017,3292515-1966397,"9,423.88",RICHMOND FELLOWSHIP.
Adult and Health Services,Commissioning inc Supporting People,Third Party Payments,441001,Supporting People,07-Jun-2017,3292562-1966448,"54,465.72",STONHAM HOUSING ASSOCIATION LTD.
Adult and Health Services,Commissioning inc Supporting People,Third Party Payments,441001,Supporting People,07-Jun-2017,3292562-1966454,"15,342.48",STONHAM HOUSING ASSOCIATION LTD.
Adult and Health Services,Commissioning inc Supporting People,Third Party Payments,441001,Supporting People,07-Jun-2017,3292577-1966402,"19,231.20",THE CYRENIANS LTD T/A CHANGING LIVES.
Adult and Health Services,Commissioning inc Supporting People,Third Party Payments,441001,Supporting People,07-Jun-2017,3292579-1966421,"7,776.68",THIRTEEN CARE & SUPPORT.
Adult and Health Services,Commissioning inc Supporting People,Third Party Payments,441001,Supporting People,07-Jun-2017,3292579-1966422,"23,518.04",THIRTEEN CARE & SUPPORT.
Adult and Health Services,Commissioning inc Supporting People,Third Party Payments,441001,Supporting People,07-Jun-2017,3292602-1966399,"2,367.20",WADDINGTON STREET CENTRE LTD.
Adult and Health Services,Commissioning inc Supporting People,Third Party Payments,441001,Supporting People,07-Jun-2017,3292609-1966383,"7,157.00",WEAR VALLEY WOMENS AID.
Adult and Health Services,Commissioning inc Supporting People,Third Party Payments,442002,Supporting People,07-Jun-2017,3292262-1966401,"16,448.04",BID SERVICES WITH DEAF PEOPLE.
Adult and Health Services,Commissioning inc Supporting People,Third Party Payments,442002,Supporting People,07-Jun-2017,3292301-1966380,"19,868.48",CREATIVE SUPPORT LTD.
Adult and Health Services,Commissioning inc Supporting People,Third Party Payments,442002,Supporting People,07-Jun-2017,3292321-1966379,"5,668.48",DISC LTD.
Adult and Health Services,Commissioning inc Supporting People,Third Party Payments,442002,Supporting People,07-Jun-2017,3292321-1966430,"27,885.68",DISC LTD.
Adult and Health Services,Commissioning inc Supporting People,Third Party Payments,442002,Supporting People,07-Jun-2017,3292354-1966432,"19,776.44",FOUNDATION.
Adult and Health Services,Commissioning inc Supporting People,Third Party Payments,442002,Supporting People,07-Jun-2017,3292355-1966376,"32,194.64",FOUR HOUSING GROUP & CARE & REPAIR HANDYPERSON SERVICE.*
Adult and Health Services,Commissioning inc Supporting People,Third Party Payments,442002,Supporting People,07-Jun-2017,3292377-1966441,"3,297.48",HANOVER HOUSING ASSOCIATION.
Adult and Health Services,Commissioning inc Supporting People,Third Party Payments,442002,Supporting People,07-Jun-2017,3292434-1966382,"5,469.72",MENTAL HEALTH MATTERS.
Adult and Health Services,Commissioning inc Supporting People,Third Party Payments,442002,Supporting People,07-Jun-2017,3292444-1966442,"2,620.48",MOVING ON.
Adult and Health Services,Commissioning inc Supporting People,Third Party Payments,442002,Supporting People,07-Jun-2017,3292515-1966384,"7,356.72",RICHMOND FELLOWSHIP.
Adult and Health Services,Commissioning inc Supporting People,Third Party Payments,442002,Supporting People,07-Jun-2017,3292539-1966443,"6,331.08",SHAID.
Adult and Health Services,Commissioning inc Supporting People,Third Party Payments,442002,Supporting People,07-Jun-2017,3292562-1966378,"113,942.68",STONHAM HOUSING ASSOCIATION LTD.
Adult and Health Services,Commissioning inc Supporting People,Third Party Payments,442002,Supporting People,07-Jun-2017,3292562-1966453,"27,962.72",STONHAM HOUSING ASSOCIATION LTD.
Adult and Health Services,Commissioning inc Supporting People,Third Party Payments,442002,Supporting People,07-Jun-2017,3292579-1966420,"5,088.84",THIRTEEN CARE & SUPPORT.
Adult and Health Services,Commissioning inc Supporting People,Third Party Payments,443001,Supporting People,07-Jun-2017,3292326-1966434,"1,475.92",DURHAM ACTION ON SINGLE HOUSING.
Adult and Health Services,Commissioning inc Supporting People,Third Party Payments,443001,Supporting People,07-Jun-2017,3292326-1966436,"4,981.23",DURHAM ACTION ON SINGLE HOUSING.
Adult and Health Services,Commissioning inc Supporting People,Third Party Payments,443001,Supporting People,07-Jun-2017,3292562-1966404,529.76,STONHAM HOUSING ASSOCIATION LTD.
Adult and Health Services,Commissioning inc Supporting People,Third Party Payments,443001,Supporting People,07-Jun-2017,3292562-1966409,578.88,STONHAM HOUSING ASSOCIATION LTD.
Adult and Health Services,Commissioning inc Supporting People,Third Party Payments,443001,Supporting People,07-Jun-2017,3292562-1966450,"11,506.84",STONHAM HOUSING ASSOCIATION LTD.
Adult and Health Services,Commissioning inc Supporting People,Third Party Payments,444002,Supporting People,07-Jun-2017,3292515-1966385,"4,068.24",RICHMOND FELLOWSHIP.
Children and Young Peoples Services,Childrens Services,Employees,080025,Agency Staff,07-Jun-2017,3292317-1001145,"115,424.82",DE POEL MANAGED SERVICES LTD.
Children and Young Peoples Services,Education,Construction Work,908105,Construction work,07-Jun-2017,3292282-2671,"2,133.04",CATHEDRAL LOCK & SAFE SERVICES LTD.
Children and Young Peoples Services,Education,Construction Work,908105,Construction work,07-Jun-2017,3292424-50252,"2,575.00",LUCION ENVIRONMENTAL LLP LTD.
Children and Young Peoples Services,Education,Construction Work,908105,Construction work,07-Jun-2017,3292605-3109772,"2,900.00",WATERMAN INFRASTRUCTURE & ENVIRONMENT LTD.
Children and Young Peoples Services,Education,Transport,230013,Contract Hire,07-Jun-2017,3292254-03589,988.00,ATLAS TAXIS CONSETT.
Children and Young Peoples Services,Education,Transport,230007,Contract Hire,07-Jun-2017,3292224-MAY-02,"1,330.00",A & P TAXIS.
Children and Young Peoples Services,Education,Transport,230007,Contract Hire,07-Jun-2017,3292224-MAY-03,"1,330.00",A & P TAXIS.
Children and Young Peoples Services,Education,Transport,230007,Contract Hire,07-Jun-2017,3292243-117,532.00,ANDY CABS.
Children and Young Peoples Services,Education,Transport,230007,Contract Hire,07-Jun-2017,3292254-03587,513.00,ATLAS TAXIS CONSETT.
Children and Young Peoples Services,Education,Transport,230007,Contract Hire,07-Jun-2017,3292254-03588,703.00,ATLAS TAXIS CONSETT.
Children and Young Peoples Services,Education,Transport,230007,Contract Hire,07-Jun-2017,3292396-1932,608.00,J YOUNG T/A VIP TAXIS.
Children and Young Peoples Services,Education,Transport,230007,Contract Hire,07-Jun-2017,3292396-1933,684.00,J YOUNG T/A VIP TAXIS.
Children and Young Peoples Services,Education,Transport,230007,Contract Hire,07-Jun-2017,3292396-1934,684.00,J YOUNG T/A VIP TAXIS.
Children and Young Peoples Services,Education,Transport,230007,Contract Hire,07-Jun-2017,3292399-2645,"1,994.81",JEFF ANDERSON COACHES LTD.
Children and Young Peoples Services,Education,Transport,230007,Contract Hire,07-Jun-2017,3292399-2646,"1,785.81",JEFF ANDERSON COACHES LTD.
Children and Young Peoples Services,Education,Transport,230007,Contract Hire,07-Jun-2017,3292447-64,969.00,MR JOHN ALLINSON T/A AALPHA TAXIS.
Children and Young Peoples Services,Education,Transport,230007,Contract Hire,07-Jun-2017,3292453-TN042,687.42,MR THOMAS G GRIFFITHS T/A TNL TAXIS.
Children and Young Peoples Services,Education,Transport,230007,Contract Hire,07-Jun-2017,3292487-1574,"2,090.00",PAUL WATSON TRAVEL.
Children and Young Peoples Services,Education,Transport,230007,Contract Hire,07-Jun-2017,3292487-1575,"1,140.00",PAUL WATSON TRAVEL.
Children and Young Peoples Services,Education,Transport,230007,Contract Hire,07-Jun-2017,3292487-1576,"1,520.00",PAUL WATSON TRAVEL.
Children and Young Peoples Services,Education,Transport,230007,Contract Hire,07-Jun-2017,3292487-1577,"2,280.00",PAUL WATSON TRAVEL.
Children and Young Peoples Services,Education,Transport,230007,Contract Hire,07-Jun-2017,3292570-05/2017/005,608.00,TARNS TAXIS LTD.
Children and Young Peoples Services,Education,Transport,230007,Contract Hire,07-Jun-2017,3292575-6032/H26,"1,710.00",TED WILFORD COACHES.
Children and Young Peoples Services,Education,Transport,230007,Contract Hire,07-Jun-2017,3292603-85-26/05/2017,912.00,WALTONS TAXIS.
Children and Young Peoples Services,Education,Transport,230007,Contract Hire,07-Jun-2017,3292611-5875,"1,501.00",WEARDALE PRIVATE HIRE.
Children and Young Peoples Services,Education,Transport,230007,Contract Hire,07-Jun-2017,3292611-5876,608.00,WEARDALE PRIVATE HIRE.
Children and Young Peoples Services,Education,Transport,230007,Contract Hire,07-Jun-2017,3292611-5877,"1,282.50",WEARDALE PRIVATE HIRE.
Children and Young Peoples Services,Education,Transport,230007,Contract Hire,07-Jun-2017,3292611-5878,"3,881.51",WEARDALE PRIVATE HIRE.
Children and Young Peoples Services,Education,Transport,230007,Contract Hire,07-Jun-2017,3292614-DCC33/4309,570.00,WEZ CABS.
Children and Young Peoples Services,Education,Transport,230007,Contract Hire,07-Jun-2017,3292615-DC121,"1,140.00",WHITTONSTALL TAXIS SERVICE.
Children and Young Peoples Services,Education,Transport,230009,Contract Hire,07-Jun-2017,3292224-MAY-01,855.00,A & P TAXIS.
Children and Young Peoples Services,Education,Transport,230009,Contract Hire,07-Jun-2017,3292396-1939,570.00,J YOUNG T/A VIP TAXIS.
Children and Young Peoples Services,Education,Transport,230006,Contract Hire,07-Jun-2017,3292254-03590,960.00,ATLAS TAXIS CONSETT.
Children and Young Peoples Services,Education,Transport,230006,Contract Hire,07-Jun-2017,3292450-044,510.00,MR LJ TARRY T/A TARRY`S TAXI`S.
Children and Young Peoples Services,Education,Transport,230012,Contract Hire,07-Jun-2017,3292225-5/1/17,"1,354.70",ABA TAXIS.
Children and Young Peoples Services,Education,Transport,230012,Contract Hire,07-Jun-2017,3292226-O351,"1,596.00",ABC & OUSTON CABS.
Children and Young Peoples Services,Education,Transport,230012,Contract Hire,07-Jun-2017,3292237-30MO,836.00,AJ ADAMSON (TONY`S TAXIS).
Children and Young Peoples Services,Education,Transport,230012,Contract Hire,07-Jun-2017,3292389-42,"1,235.00",IAN SHEPLEY T/A SHEPPA`S TAXIS.
Children and Young Peoples Services,Education,Transport,230012,Contract Hire,07-Jun-2017,3292396-1940,"1,482.00",J YOUNG T/A VIP TAXIS.
Children and Young Peoples Services,Education,Transport,230012,Contract Hire,07-Jun-2017,3292542-72614,"1,520.00",SHOTTON PRIVATE HIRE.
Children and Young Peoples Services,Education,Transport,230012,Contract Hire,07-Jun-2017,3292549-420A,"1,235.00",SJ MACKENZIE T/A SCOTTS TAXIS.
Children and Young Peoples Services,Education,Transport,230012,Contract Hire,07-Jun-2017,3292612-0517,"1,515.00",WEST AUCKLAND TOWN TRAVEL (WATT).
Children and Young Peoples Services,Education,Transport,230008,Contract Hire,07-Jun-2017,3292226-O350,"1,083.00",ABC & OUSTON CABS.
Children and Young Peoples Services,Education,Transport,230008,Contract Hire,07-Jun-2017,3292253-DCC13MAY17,"1,691.00",ATLAS TAXIS BISHOP AUCKLAND.
Children and Young Peoples Services,Education,Transport,230008,Contract Hire,07-Jun-2017,3292256-26517,"2,057.32",AVALON TAXIS.
Children and Young Peoples Services,Education,Transport,230008,Contract Hire,07-Jun-2017,3292316-0035,"2,850.00",DAVID WALKER TAXIS.
Children and Young Peoples Services,Education,Transport,230008,Contract Hire,07-Jun-2017,3292396-1931,"1,296.94",J YOUNG T/A VIP TAXIS.
Children and Young Peoples Services,Education,Transport,230008,Contract Hire,07-Jun-2017,3292396-1936,"1,007.00",J YOUNG T/A VIP TAXIS.
Children and Young Peoples Services,Education,Transport,230008,Contract Hire,07-Jun-2017,3292396-1937,"1,121.00",J YOUNG T/A VIP TAXIS.
Children and Young Peoples Services,Education,Transport,230008,Contract Hire,07-Jun-2017,3292396-1942,760.00,J YOUNG T/A VIP TAXIS.
Children and Young Peoples Services,Education,Transport,230008,Contract Hire,07-Jun-2017,3292399-2643,"1,548.31",JEFF ANDERSON COACHES LTD.
Children and Young Peoples Services,Education,Transport,230008,Contract Hire,07-Jun-2017,3292399-2644,"1,472.31",JEFF ANDERSON COACHES LTD.
Children and Young Peoples Services,Education,Transport,230008,Contract Hire,07-Jun-2017,3292493-0548,"1,189.00",PETER`S PRIVATE HIRE/PETER BEST.
Children and Young Peoples Services,Education,Transport,230008,Contract Hire,07-Jun-2017,3292527-W056/09-31/05/2017,"2,714.00",S & S TRAVEL LTD.
Children and Young Peoples Services,Education,Transport,230008,Contract Hire,07-Jun-2017,3292542-72613,"3,040.00",SHOTTON PRIVATE HIRE.
Children and Young Peoples Services,Education,Transport,230008,Contract Hire,07-Jun-2017,3292549-416A,"1,045.00",SJ MACKENZIE T/A SCOTTS TAXIS.
Children and Young Peoples Services,Education,Transport,230008,Contract Hire,07-Jun-2017,3292549-417A,"1,330.00",SJ MACKENZIE T/A SCOTTS TAXIS.
Children and Young Peoples Services,Education,Transport,230008,Contract Hire,07-Jun-2017,3292568-B884,"1,368.00",TALBOTS TRAVEL LTD.
Children and Young Peoples Services,Education,Transport,230008,Contract Hire,07-Jun-2017,3292568-B885,610.00,TALBOTS TRAVEL LTD.
Children and Young Peoples Services,Education,Transport,230008,Contract Hire,07-Jun-2017,3292568-B888,"1,049.40",TALBOTS TRAVEL LTD.
Children and Young Peoples Services,Education,Transport,230008,Contract Hire,07-Jun-2017,3292570-05/2017/002,"1,140.00",TARNS TAXIS LTD.
Children and Young Peoples Services,Education,Transport,230008,Contract Hire,07-Jun-2017,3292570-05/2017/004,945.00,TARNS TAXIS LTD.
Children and Young Peoples Services,Education,Transport,230008,Contract Hire,07-Jun-2017,3292570-05/2017/007,"1,080.00",TARNS TAXIS LTD.
Children and Young Peoples Services,Education,Transport,230008,Contract Hire,07-Jun-2017,3292572-DCC/2016/149,"1,444.00",TAYLOR`S TAXIS.
Children and Young Peoples Services,Education,Transport,230008,Contract Hire,07-Jun-2017,3292572-DCC/2016/150,"1,501.00",TAYLOR`S TAXIS.
Children and Young Peoples Services,Education,Transport,230008,Contract Hire,07-Jun-2017,3292572-DCC/2016/151,"1,539.00",TAYLOR`S TAXIS.
Children and Young Peoples Services,Education,Transport,230008,Contract Hire,07-Jun-2017,3292589-22,768.60,TRIDENT TAXIS.
Children and Young Peoples Services,Education,Transport,230008,Contract Hire,07-Jun-2017,3292608-1102-26/05/2017,"2,280.00",WAYNE`S TAXIS.
Children and Young Peoples Services,Central Charges (CYPS),Creditors,952258,Creditor-West Durham Cluster,07-Jun-2017,307182-031617,"1,463.15",WHL JOPLING.
Children and Young Peoples Services,Childrens Services,Supplies and Services,304259,Equipment and Materials,07-Jun-2017,3292476-CN19445728,590.94,OCS GROUP UK LTD T/A CANNON HYGIENE.
Children and Young Peoples Services,Childrens Services,Supplies and Services,364352,Grants to Voluntary Organisations,07-Jun-2017,3292353-306,"11,000.00",FOREVER CARE.
Children and Young Peoples Services,Childrens Services,Supplies and Services,364353,Grants to Voluntary Organisations,07-Jun-2017,3292304-CAS-06-2017-032,520.00,CW ESTATES.
Children and Young Peoples Services,Childrens Services,Supplies and Services,364358,Grants to Voluntary Organisations,07-Jun-2017,3292439-CAS-06-2017-028,"1,333.34",REDACTED - PAYMENT TO INDIVIDUAL
Children and Young Peoples Services,Childrens Services,Supplies and Services,384199,Miscellaneous Expenses,07-Jun-2017,3292289-1325,600.00,CITY OF SUNDERLAND YMCA LTD.
Children and Young Peoples Services,Childrens Services,Supplies and Services,384199,Miscellaneous Expenses,07-Jun-2017,3292428-4100572640,"1,080.00",MARGOT SKELTON T/A JITTABUGS DURHAM.
Children and Young Peoples Services,Education,Supplies and Services,384199,Miscellaneous Expenses,07-Jun-2017,3292507-232,"4,999.00",QUALITY FOR LEARNING & SKILLS.
Children and Young Peoples Services,Education,Supplies and Services,384871,Miscellaneous Expenses,07-Jun-2017,3292229-0517/08,500.00,ADAM BUSHNELL LTD.
Children and Young Peoples Services,Education,Transfer Payments,510026,School Children,07-Jun-2017,3292584-SI-2556,"2,558.76",TM NURSERY ENTERPRISES LTD T/A JACK IN THE BOX DAYCARE.
Children and Young Peoples Services,Education,Transfer Payments,510028,School Children,07-Jun-2017,3292607-CAS-06-2017-035,"5,000.00",WAYMAN DEVELOPMENTS LTD T/A CHILDSPLAY PRIVATE NURSERY.
Children and Young Peoples Services,Childrens Services,Premises,108099,Service Repairs and Maintenance,07-Jun-2017,3292231-35296836-61,"1,085.05",ADT FIRE & SECURITY PLC.
Children and Young Peoples Services,Childrens Services,Supplies and Services,338044,Services,07-Jun-2017,3292303-RES-06-2017-020,544.38,CW BOOTH & CO.
Regeneration and Local Services,Transport and Contracted Services,Supplies and Services,336005,Advertising,07-Jun-2017,3292468-19893827,831.02,NEWSQUEST (YORKSHIRE & NORTH EAST) LTD.
Regeneration and Local Services,Economic Development and Housing,Cap Exp on Grants & Other Financial Assistance (REFCUS),918401,Capital grants,07-Jun-2017,3292383-RED-06-2017-020,"4,483.00",HES GROUP UK LTD.
Regeneration and Local Services,Economic Development and Housing,Cap Exp on Grants & Other Financial Assistance (REFCUS),918401,Capital grants,07-Jun-2017,3292383-RED-06-2017-027,"2,955.00",HES GROUP UK LTD.
Regeneration and Local Services,Economic Development and Housing,Cap Exp on Grants & Other Financial Assistance (REFCUS),918401,Capital grants,07-Jun-2017,3292383-RED-06-2017-028,"2,285.00",HES GROUP UK LTD.
Regeneration and Local Services,Economic Development and Housing,Cap Exp on Grants & Other Financial Assistance (REFCUS),918401,Capital grants,07-Jun-2017,3292406-RED-06-2017-026,"22,474.55",K HARRISON (BUILDER) NE LTD.
Regeneration and Local Services,Economic Development and Housing,Cap Exp on Grants & Other Financial Assistance (REFCUS),918401,Capital grants,07-Jun-2017,3292406-RED-06-2017-033,"1,993.44",K HARRISON (BUILDER) NE LTD.
Regeneration and Local Services,Economic Development and Housing,Cap Exp on Grants & Other Financial Assistance (REFCUS),918401,Capital grants,07-Jun-2017,3292423-RED-06-2017-036,"11,519.00",REDACTED - PAYMENT TO INDIVIDUAL
Regeneration and Local Services,Economic Development and Housing,Cap Exp on Grants & Other Financial Assistance (REFCUS),918401,Capital grants,07-Jun-2017,3292488-RED-06-2017-015,"1,682.00",PEART ACCESS RAMPS.
Regeneration and Local Services,Economic Development and Housing,Cap Exp on Grants & Other Financial Assistance (REFCUS),918401,Capital grants,07-Jun-2017,3292488-RED-06-2017-019,"3,327.00",PEART ACCESS RAMPS.
Regeneration and Local Services,Economic Development and Housing,Cap Exp on Grants & Other Financial Assistance (REFCUS),918401,Capital grants,07-Jun-2017,3292488-RED-06-2017-021,"2,295.00",PEART ACCESS RAMPS.
Regeneration and Local Services,Economic Development and Housing,Cap Exp on Grants & Other Financial Assistance (REFCUS),918401,Capital grants,07-Jun-2017,3292488-RED-06-2017-022,"3,189.00",PEART ACCESS RAMPS.
Regeneration and Local Services,Economic Development and Housing,Cap Exp on Grants & Other Financial Assistance (REFCUS),918401,Capital grants,07-Jun-2017,3292488-RED-06-2017-030,"4,989.00",PEART ACCESS RAMPS.
Regeneration and Local Services,Economic Development and Housing,Cap Exp on Grants & Other Financial Assistance (REFCUS),918401,Capital grants,07-Jun-2017,3292509-RED-06-2017-035,"3,354.00",R LIGHTFOOT LTD.
Regeneration and Local Services,Economic Development and Housing,Cap Exp on Grants & Other Financial Assistance (REFCUS),918401,Capital grants,07-Jun-2017,3292563-RED-06-2017-017,"2,949.80",SUNTER LTD.
Regeneration and Local Services,Economic Development and Housing,Cap Exp on Grants & Other Financial Assistance (REFCUS),918401,Capital grants,07-Jun-2017,3292563-RED-06-2017-018,"2,382.56",SUNTER LTD.
Regeneration and Local Services,Economic Development and Housing,Cap Exp on Grants & Other Financial Assistance (REFCUS),918401,Capital grants,07-Jun-2017,3292582-RED-06-2017-016,"3,916.00",THYSSENKRUPP ENCASA A DIVISION OF THYSSENKRUPP ACCESS LTD.
Regeneration and Local Services,Economic Development and Housing,Cap Exp on Grants & Other Financial Assistance (REFCUS),918401,Capital grants,07-Jun-2017,3292582-RED-06-2017-023,"2,187.00",THYSSENKRUPP ENCASA A DIVISION OF THYSSENKRUPP ACCESS LTD.
Regeneration and Local Services,Economic Development and Housing,Cap Exp on Grants & Other Financial Assistance (REFCUS),918401,Capital grants,07-Jun-2017,3292582-RED-06-2017-024,"3,509.42",THYSSENKRUPP ENCASA A DIVISION OF THYSSENKRUPP ACCESS LTD.
Regeneration and Local Services,Economic Development and Housing,Cap Exp on Grants & Other Financial Assistance (REFCUS),918401,Capital grants,07-Jun-2017,3292582-RED-06-2017-025,"3,782.69",THYSSENKRUPP ENCASA A DIVISION OF THYSSENKRUPP ACCESS LTD.
Regeneration and Local Services,Economic Development and Housing,Cap Exp on Grants & Other Financial Assistance (REFCUS),918401,Capital grants,07-Jun-2017,3292582-RED-06-2017-029,"4,495.00",THYSSENKRUPP ENCASA A DIVISION OF THYSSENKRUPP ACCESS LTD.
Regeneration and Local Services,Economic Development and Housing,Cap Exp on Grants & Other Financial Assistance (REFCUS),918401,Capital grants,07-Jun-2017,3292582-RED-06-2017-031,995.00,THYSSENKRUPP ENCASA A DIVISION OF THYSSENKRUPP ACCESS LTD.
Regeneration and Local Services,Projects and Business services,Fees,901002,Professional fees,07-Jun-2017,3292349-2745,"223,000.00",FIRMSTEP LTD.
Regeneration and Local Services,Technical Services,Third Party Payments,460224,Contract Payments,07-Jun-2017,3292481-SIN200503,"44,404.92",OWEN PUGH GDC LTD.*
Regeneration and Local Services,Technical Services,Third Party Payments,460351,Contract Payments,07-Jun-2017,3292471-035738,725.00,NORTHERN DISPOSAL SERVICES LTD.
Regeneration and Local Services,Economic Development and Housing,Premises,120021,Energy Costs,07-Jun-2017,3292553-7616300800039,"1,491.47",SOUTHERN ELECTRIC.*
Regeneration and Local Services,Technical Services,Supplies and Services,304221,Equipment and Materials,07-Jun-2017,3292235-24859007,"1,135.90",AGGREGATE INDUSTRIES UK LTD.
Regeneration and Local Services,Technical Services,Supplies and Services,304221,Equipment and Materials,07-Jun-2017,3292235-24868881,"1,243.97",AGGREGATE INDUSTRIES UK LTD.
Regeneration and Local Services,Technical Services,Supplies and Services,304221,Equipment and Materials,07-Jun-2017,3292235-24868882,"3,615.06",AGGREGATE INDUSTRIES UK LTD.
Regeneration and Local Services,Technical Services,Supplies and Services,304221,Equipment and Materials,07-Jun-2017,3292235-24868883,626.38,AGGREGATE INDUSTRIES UK LTD.
Regeneration and Local Services,Technical Services,Supplies and Services,304221,Equipment and Materials,07-Jun-2017,3292235-24868884,"4,971.58",AGGREGATE INDUSTRIES UK LTD.
Regeneration and Local Services,Technical Services,Supplies and Services,304221,Equipment and Materials,07-Jun-2017,3292235-24868885,614.02,AGGREGATE INDUSTRIES UK LTD.
Regeneration and Local Services,Technical Services,Supplies and Services,304221,Equipment and Materials,07-Jun-2017,3292325-158134,"6,080.00",DUNHOUSE QUARRY CO LTD.
Regeneration and Local Services,Technical Services,Supplies and Services,304221,Equipment and Materials,07-Jun-2017,3292325-158163,"4,560.00",DUNHOUSE QUARRY CO LTD.
Regeneration and Local Services,Technical Services,Supplies and Services,304221,Equipment and Materials,07-Jun-2017,3292325-158223,"6,080.00",DUNHOUSE QUARRY CO LTD.
Regeneration and Local Services,Direct Services,Supplies and Services,304221,Equipment and Materials,07-Jun-2017,3292356-175872,525.64,FRED WILLIAMSON & SONS LTD.*
Regeneration and Local Services,Direct Services,Supplies and Services,304221,Equipment and Materials,07-Jun-2017,3292405-BAI285899,"3,196.66",JT DOVE LTD.
Regeneration and Local Services,Direct Services,Supplies and Services,304221,Equipment and Materials,07-Jun-2017,3292405-PHBI133994,675.26,JT DOVE LTD.
Regeneration and Local Services,Technical Services,Supplies and Services,304221,Equipment and Materials,07-Jun-2017,3292461-NC57/C443/BW,"1,462.80",NEDCO CONTRACTS (NE) LTD.
Regeneration and Local Services,Technical Services,Supplies and Services,304221,Equipment and Materials,07-Jun-2017,3292585-29252,"2,676.60",TODDS HIGHWAY MAINTENANCE LTD.
Regeneration and Local Services,Technical Services,Supplies and Services,304221,Equipment and Materials,07-Jun-2017,3292593-173596,639.75,TYNEDALE ROADSTONE LTD.
Regeneration and Local Services,Culture & Sport,Supplies and Services,304259,Equipment and Materials,07-Jun-2017,3292476-CN19471180,"1,962.96",OCS GROUP UK LTD T/A CANNON HYGIENE.
Regeneration and Local Services,Culture & Sport,Supplies and Services,304259,Equipment and Materials,07-Jun-2017,3292508-SI-95010,"8,642.71",R & B GROUP.
Regeneration and Local Services,Spatial Policy Planning Assets & Environment,Supplies and Services,304245,Equipment and Materials,07-Jun-2017,3292324-15486,"7,351.50",DTW ADVERTISING & MARKETING LTD T/A DTW.
Regeneration and Local Services,Transport and Contracted Services,Supplies and Services,384540,Miscellaneous Expenses,07-Jun-2017,3292294-0000078338,"1,020.00",COOK HAMMOND & KELL (CHK LTD).
Regeneration and Local Services,Transport and Contracted Services,Supplies and Services,384540,Miscellaneous Expenses,07-Jun-2017,3292294-0000078483,600.00,COOK HAMMOND & KELL (CHK LTD).
Regeneration and Local Services,Spatial Policy Planning Assets & Environment,Supplies and Services,384199,Miscellaneous Expenses,07-Jun-2017,3292410-1182,"17,867.00",LADYCRAFT LTD.
Regeneration and Local Services,Transport and Contracted Services,Third Party Payments,440999,Other Third Party Payments,07-Jun-2017,3292258-48576,"6,501.15",BAYDALE CONTROL SYSTEMS LTD.
Regeneration and Local Services,Projects and Business services,Supplies and Services,340001,Postages,07-Jun-2017,3292524-9053943832,"15,413.30",ROYAL MAIL GROUP PLC.
Regeneration and Local Services,Direct Services,Third Party Payments,430105,Rendered by Private Contractors,07-Jun-2017,3292460-403,"2,668.30",NE GREEN WASTE RECYCLING LTD.
Regeneration and Local Services,Direct Services,Third Party Payments,430105,Rendered by Private Contractors,07-Jun-2017,3292460-411,"4,428.02",NE GREEN WASTE RECYCLING LTD.
Regeneration and Local Services,Transport and Contracted Services,Third Party Payments,430100,Rendered by Private Contractors,07-Jun-2017,3292250-CONCFAREPAY17-2JUNV1,"780,993.00",ARRIVA DURHAM COUNTY LTD.
Regeneration and Local Services,Transport and Contracted Services,Third Party Payments,430100,Rendered by Private Contractors,07-Jun-2017,3292302-CONCFAREPAY17-2JUNV1,920.82,CUMBRIA CLASSIC COACHES LTD.
Regeneration and Local Services,Direct Services,Third Party Payments,430100,Rendered by Private Contractors,07-Jun-2017,3292310-4410,"1,200.00",D STEWART SCAFFOLDING LTD.
Regeneration and Local Services,Transport and Contracted Services,Third Party Payments,430100,Rendered by Private Contractors,07-Jun-2017,3292367-CONCFAREPAY17-2JUNV1,"790,137.00",GO GATESHEAD LTD.
Regeneration and Local Services,Transport and Contracted Services,Third Party Payments,430100,Rendered by Private Contractors,07-Jun-2017,3292370-CONCFAREPAY17-2JUNV1,"1,345.69",GRAHAMS MOTOR SERVICES.
Regeneration and Local Services,Technical Services,Third Party Payments,430100,Rendered by Private Contractors,07-Jun-2017,3292384-2654,"125,123.67",HIGHWAY CONSTRUCTION SERVICES LTD.
Regeneration and Local Services,Transport and Contracted Services,Third Party Payments,430100,Rendered by Private Contractors,07-Jun-2017,3292385-CONCFAREPAY17-2JUNV1,917.19,HODGSONS COACH OPERATORS LTD.
Regeneration and Local Services,Transport and Contracted Services,Third Party Payments,430100,Rendered by Private Contractors,07-Jun-2017,3292403-CONCFAREPAY17-2JUNV1,"4,504.38",JOHN JAMES BRUNSKILL.
Regeneration and Local Services,Technical Services,Third Party Payments,430100,Rendered by Private Contractors,07-Jun-2017,3292413-INV01324607,"7,700.00",LANES GROUP PLC.
Regeneration and Local Services,Transport and Contracted Services,Third Party Payments,430100,Rendered by Private Contractors,07-Jun-2017,3292530-CONCFAREPAY17-2JUNV1,"11,458.44",SB TRAVEL.
Regeneration and Local Services,Transport and Contracted Services,Third Party Payments,430100,Rendered by Private Contractors,07-Jun-2017,3292531-CONCFAREPAY17-2JUNV1,"26,537.75",SCARLET BAND BUS & COACH LTD.
Regeneration and Local Services,Direct Services,Third Party Payments,430100,Rendered by Private Contractors,07-Jun-2017,3292555-5770,"5,300.00",ST ASTIER LTD.
Regeneration and Local Services,Transport and Contracted Services,Third Party Payments,430100,Rendered by Private Contractors,07-Jun-2017,3292557-CONCFAREPAY17-2JUNV1,"8,361.67",STANLEY TRAVEL (NORTH EAST) LTD.
Regeneration and Local Services,Transport and Contracted Services,Third Party Payments,430100,Rendered by Private Contractors,07-Jun-2017,3292610-CONCFAREPAY17-2JUNV1,"1,890.14",WEARDALE MOTOR SERVICES LTD.
Regeneration and Local Services,Transport and Contracted Services,Third Party Payments,430100,Rendered by Private Contractors,07-Jun-2017,3292610-CONCFAREPAY17-2JUNV1X21,"19,832.82",WEARDALE MOTOR SERVICES LTD.
Regeneration and Local Services,Culture & Sport,Supplies and Services,338047,Services,07-Jun-2017,307112-2137,"4,566.53",ALAN FIELD ASSOCIATES.
Regeneration and Local Services,Culture & Sport,Supplies and Services,338047,Services,07-Jun-2017,3292373-FBC717,600.00,GROWLING CLOWN.
Regeneration and Local Services,Technical Services,Stock,926900,Stock in hand-Inventory system,07-Jun-2017,3292372-06/634125,"1,728.06",GREENHAM TRADING LTD.
Regeneration and Local Services,Technical Services,Stock,926900,Stock in hand-Inventory system,07-Jun-2017,3292372-06/634516,721.98,GREENHAM TRADING LTD.
Regeneration and Local Services,Technical Services,Stock,926900,Stock in hand-Inventory system,07-Jun-2017,3292372-06/640712,"1,777.61",GREENHAM TRADING LTD.
Regeneration and Local Services,Technical Services,Stock,926900,Stock in hand-Inventory system,07-Jun-2017,3292372-06/641115,957.42,GREENHAM TRADING LTD.
Regeneration and Local Services,Technical Services,Stock,926900,Stock in hand-Inventory system,07-Jun-2017,3292405-STI457628,646.40,JT DOVE LTD.
Regeneration and Local Services,Technical Services,Stock,926900,Stock in hand-Inventory system,07-Jun-2017,3292569-9036228414,"1,046.85",TARMAC TRADING LTD.
Regeneration and Local Services,Technical Services,Stock,926900,Stock in hand-Inventory system,07-Jun-2017,3292580-N/IN197177,725.46,THOMAS OWEN & SONS (NEWCASTLE) LTD.
Regeneration and Local Services,Technical Services,Stock,926900,Stock in hand-Inventory system,07-Jun-2017,3292580-N/IN197230,"1,035.11",THOMAS OWEN & SONS (NEWCASTLE) LTD.
Regeneration and Local Services,Economic Development and Housing,Premises,135005,Water Services,07-Jun-2017,3292475-4026430,985.42,NWG BUSINESS LTD (NORTHUMBRIAN WATER GROUP).
Regeneration and Local Services,Economic Development and Housing,Premises,135005,Water Services,07-Jun-2017,3292475-4064017,942.22,NWG BUSINESS LTD (NORTHUMBRIAN WATER GROUP).
Regeneration and Local Services,Economic Development and Housing,Premises,135005,Water Services,07-Jun-2017,3292475-4065461,550.86,NWG BUSINESS LTD (NORTHUMBRIAN WATER GROUP).
Resources,I.C.T. Services,Vehicles Equipment Furniture and Fittings,912701,Computer equipment,07-Jun-2017,3292512-SIN050724,"4,500.00",REDWAY NETWORKS LTD.
Resources,I.C.T. Services,Supplies and Services,342033,Computers and Communications,07-Jun-2017,3292512-SIN050723,"4,500.00",REDWAY NETWORKS LTD.
Resources,I.C.T. Services,Supplies and Services,342053,Computers and Communications,07-Jun-2017,3292511-INV-27763,"3,180.00",REDSTOR LTD.
Resources,I.C.T. Services,Debtors,930167,Debtor-Telephone Holding Account,07-Jun-2017,3292426-100088,"18,473.55",MAINTEL EUROPE LTD.
Resources,I.C.T. Services,Supplies and Services,304252,Equipment and Materials,07-Jun-2017,3292464-92332743,"2,321.22",NEOPOST LTD.
Resources,I.C.T. Services,Supplies and Services,304303,Equipment and Materials,07-Jun-2017,3292390-SIN406123,"11,545.00",INFORMATION & DATA NETWORK SUPPLIES LTD (IDN).
Resources,Financial Services,Supplies and Services,384180,Miscellaneous Expenses,07-Jun-2017,3292422-0959338,"4,609.12",LOOMIS UK LTD.
Resources,Legal & Democratic Services,Supplies and Services,384199,Miscellaneous Expenses,07-Jun-2017,3292491-13057,"1,360.00",PETER PENTLAND SIGNS.
Resources,I.C.T. Services,Supplies and Services,340001,Postages,07-Jun-2017,3292524-9054204539,"14,513.42",ROYAL MAIL GROUP PLC.
Resources,Legal & Democratic Services,Supplies and Services,340001,Postages,07-Jun-2017,3292524-9054326554,"39,934.21",ROYAL MAIL GROUP PLC.
Resources,I.C.T. Services,Supplies and Services,340001,Postages,07-Jun-2017,3292524-9054369555,"13,929.58",ROYAL MAIL GROUP PLC.
Resources,Legal & Democratic Services,Supplies and Services,340001,Postages,07-Jun-2017,3292524-9054424548,"3,715.83",ROYAL MAIL GROUP PLC.
Resources,I.C.T. Services,Supplies and Services,332029,Printing Stationery and Gen Off Exps,07-Jun-2017,3292502-644534,671.00,POTTS PRINTERS LTD.
Resources,I.C.T. Services,Employees,040149,Recruitment Instruction and Training,07-Jun-2017,3292286-12156,"1,250.00",CIA TRAINING LTD.
Resources,Legal & Democratic Services,Supplies and Services,338042,Services,07-Jun-2017,3292556-140111,"3,300.00",ST PAULS CHAMBERS.
Resources,Legal & Democratic Services,Supplies and Services,338057,Services,07-Jun-2017,3292238-0000027137,"2,475.00",ALERE FORENSICS.
Resources,Corporate Finance,Supplies and Services,338221,Services,07-Jun-2017,3292381-2406,"1,204.16",HEALTH ASSURED LTD.
Resources,I.C.T. Services,Stock,926900,Stock in hand-Inventory system,07-Jun-2017,3292435-0000094513,"9,902.00",MILLENNIUM BUSINESS SYSTEMS LTD.
Resources,Legal & Democratic Services,Supplies and Services,372009,Subscriptions,07-Jun-2017,3292414-1856,500.00,LAWYERS IN LOCAL GOVERNMENT (LLG).
Resources,I.C.T. Services,Supplies and Services,344015,Telephones,07-Jun-2017,3292601-KC48647,580.00,VODAFONE LTD.
Resources,I.C.T. Services,Supplies and Services,344137,Telephones,07-Jun-2017,3292426-679821,"58,368.80",MAINTEL EUROPE LTD.
Resources,I.C.T. Services,Supplies and Services,344033,Telephones,07-Jun-2017,3292512-SIN050722,"4,024.00",REDWAY NETWORKS LTD.
Transformation and Partnerships,Policy & Communications Division,Supplies and Services,384540,Miscellaneous Expenses,07-Jun-2017,3292459-321104/0,"18,099.95",NATIONAL LEAFLET CO LTD.
Regeneration and Local Services,Culture & Sport,Supplies and Services,384199,Miscellaneous Expenses,08-Jun-2017,3292736-CDGT00000006,562.50,REDACTED - PAYMENT TO INDIVIDUAL
Adult and Health Services,Head of Adults,Transport,230005,Contract Hire,08-Jun-2017,3292653-NCL0517,"1,020.00",AIRPORT CARS DURHAM
Adult and Health Services,Head of Adults,Transport,230005,Contract Hire,08-Jun-2017,3292676-DCC1MAY17,"1,785.00",ATLAS TAXIS BISHOP AUCKLAND.
Adult and Health Services,Public Health,Third Party Payments,460803,Contract Payments,08-Jun-2017,3292695-090,640.00,BRIDGET WOODHEAD T/A TRAINCON.
Adult and Health Services,Public Health,Third Party Payments,460803,Contract Payments,08-Jun-2017,3292764-20016244,"50,000.00",DURHAM POLICE & CRIME COMMISSIONER.
Adult and Health Services,EnvironmentHealth & Consumer Protection,Third Party Payments,430100,Rendered by Private Contractors,08-Jun-2017,3292955-759,550.00,PETE`S REMOVALS & CLEARANCES.
Adult and Health Services,Head of Adults,Supplies and Services,338066,Services,08-Jun-2017,3292755-30517160517,712.88,DR CHRISTIAN OKOLI.
Adult and Health Services,Head of Adults,Supplies and Services,338066,Services,08-Jun-2017,3292756-30517160517,887.88,DR DAVID NEILL T/A NOBAS LTD.
Adult and Health Services,Head of Adults,Supplies and Services,338066,Services,08-Jun-2017,3292758-30517160517,"2,147.70",DR IPSITA MITRA.
Adult and Health Services,Head of Adults,Supplies and Services,338066,Services,08-Jun-2017,3292759-30517160517,"1,870.20",DR MARK S APPLETON.
Adult and Health Services,Head of Adults,Supplies and Services,338066,Services,08-Jun-2017,3292762-30517160517,"1,462.96",DR STEPHEN WILKINSON.
Adult and Health Services,Head of Adults,Supplies and Services,338066,Services,08-Jun-2017,3293093-30517160517,"2,332.24",ZM MEDICAL CONSULTANTS LIMITED.
Children and Young Peoples Services,Education,Transport,230013,Contract Hire,08-Jun-2017,3292646-37-2017,570.00,ABLE NOVAK TAXIS.
Children and Young Peoples Services,Education,Transport,230007,Contract Hire,08-Jun-2017,3292643-X5/SK,"1,140.00",AABAT TAXIS.
Children and Young Peoples Services,Education,Transport,230007,Contract Hire,08-Jun-2017,3292646-36-3329,"1,121.00",ABLE NOVAK TAXIS.
Children and Young Peoples Services,Education,Transport,230007,Contract Hire,08-Jun-2017,3292647-611,950.00,AC TAXIS.
Children and Young Peoples Services,Education,Transport,230007,Contract Hire,08-Jun-2017,3292653-ESH0517,551.00,AIRPORT CARS DURHAM
Children and Young Peoples Services,Education,Transport,230007,Contract Hire,08-Jun-2017,3292653-ESH20517,551.00,AIRPORT CARS DURHAM
Children and Young Peoples Services,Education,Transport,230009,Contract Hire,08-Jun-2017,3292686-04-G026,760.00,BILL`S TAXIS.
Children and Young Peoples Services,Education,Transport,230004,Contract Hire,08-Jun-2017,3292647-610,874.00,AC TAXIS.
Children and Young Peoples Services,Education,Transport,230006,Contract Hire,08-Jun-2017,3292641-68124,848.00,A & C TAXIS.
Children and Young Peoples Services,Education,Transport,230012,Contract Hire,08-Jun-2017,3292643-X8/22/2017,"1,216.00",AABAT TAXIS.
Children and Young Peoples Services,Education,Transport,230012,Contract Hire,08-Jun-2017,3292681-SMITH/10MAY17,"1,622.79",BEELINE PRIVATE HIRE.
Children and Young Peoples Services,Education,Transport,230008,Contract Hire,08-Jun-2017,3292643-X10/SV,931.00,AABAT TAXIS.
Children and Young Peoples Services,Education,Transport,230008,Contract Hire,08-Jun-2017,3292643-X14/SA,"2,280.00",AABAT TAXIS.
Children and Young Peoples Services,Education,Transport,230008,Contract Hire,08-Jun-2017,3292643-X17/SC,"1,805.00",AABAT TAXIS.
Children and Young Peoples Services,Education,Transport,230008,Contract Hire,08-Jun-2017,3292643-X19/SR,"1,691.00",AABAT TAXIS.
Children and Young Peoples Services,Education,Transport,230008,Contract Hire,08-Jun-2017,3292643-X2/SF,931.00,AABAT TAXIS.
Children and Young Peoples Services,Education,Transport,230008,Contract Hire,08-Jun-2017,3292643-X3/SG,"1,121.00",AABAT TAXIS.
Children and Young Peoples Services,Education,Transport,230008,Contract Hire,08-Jun-2017,3292643-X6/SJ,"1,691.00",AABAT TAXIS.
Children and Young Peoples Services,Education,Transport,230008,Contract Hire,08-Jun-2017,3292643-X7/SP/2017,"2,280.00",AABAT TAXIS.
Children and Young Peoples Services,Education,Transport,230008,Contract Hire,08-Jun-2017,3292646-35-W158,950.00,ABLE NOVAK TAXIS.
Children and Young Peoples Services,Education,Transport,230008,Contract Hire,08-Jun-2017,3292654-153909,"1,320.50",ALAN SOUTHERN T/A ALANS TAXIS PELTON FELL.
Children and Young Peoples Services,Education,Transport,230008,Contract Hire,08-Jun-2017,3292665-0032,"1,105.00",ANDREW SIMPSON T/A ANDY`S CABS.
Children and Young Peoples Services,Education,Transport,230008,Contract Hire,08-Jun-2017,3292680-657,"1,474.40",BEELINE MINI BUSES.
Children and Young Peoples Services,Education,Transport,230008,Contract Hire,08-Jun-2017,3292680-659,"1,423.67",BEELINE MINI BUSES.
Children and Young Peoples Services,Education,Transport,230008,Contract Hire,08-Jun-2017,3292680-660,663.29,BEELINE MINI BUSES.
Children and Young Peoples Services,Education,Transport,230008,Contract Hire,08-Jun-2017,3292681-SMITH/MAY17,"1,336.27",BEELINE PRIVATE HIRE.
Children and Young Peoples Services,Education,Transport,230008,Contract Hire,08-Jun-2017,3292693-BZ00227,"1,539.00",BREZ`S TAXIS.
Children and Young Peoples Services,Education,Transport,230008,Contract Hire,08-Jun-2017,3292694-6,551.00,BRIAN PURVIS T/A BJ`S TAXIS.
Children and Young Peoples Services,Education,Transport,230008,Contract Hire,08-Jun-2017,3292699-PS0161,"1,200.80",BURNDALE PRIVATE HIRE.
Children and Young Peoples Services,Education,Transport,230008,Contract Hire,08-Jun-2017,3292699-PS0162,543.40,BURNDALE PRIVATE HIRE.
Children and Young Peoples Services,Education,Transport,230008,Contract Hire,08-Jun-2017,3292701-BIL0102,"1,697.65",CA MUSGROVE.
Children and Young Peoples Services,Education,Transport,230008,Contract Hire,08-Jun-2017,3292948-SC-117,"1,805.00",PAUL BURRELL T/A PAUL BURRELL TAXIS.
Children and Young Peoples Services,Education,Transport,230008,Contract Hire,08-Jun-2017,3293028-1428,"1,155.00",TALBOTS TAXIS.
Children and Young Peoples Services,Education,Transport,230008,Contract Hire,08-Jun-2017,3293028-1430,"1,619.00",TALBOTS TAXIS.
Children and Young Peoples Services,Childrens Services,Supplies and Services,384199,Miscellaneous Expenses,08-Jun-2017,3293087-32859,755.50,WRIXON SECURITY SERVICES LTD T/A WRIXON CARE.
Children and Young Peoples Services,Education,Third Party Payments,440999,Other Third Party Payments,08-Jun-2017,3292931-1988,"1,872.00",NORTH EAST DANCE CIC.
Children and Young Peoples Services,Education,Third Party Payments,440999,Other Third Party Payments,08-Jun-2017,3292931-1989,"2,814.74",NORTH EAST DANCE CIC.
Children and Young Peoples Services,Childrens Services,Transport,235073,Public Transport,08-Jun-2017,3292781-10/4/17,540.00,ELLIOTTS OF TRIMDON.
Children and Young Peoples Services,Childrens Services,Supplies and Services,338044,Services,08-Jun-2017,3292728-101305,794.77,COMPLEMENT GENOMICS LTD.
Children and Young Peoples Services,Childrens Services,Supplies and Services,338044,Services,08-Jun-2017,3292728-101306,692.00,COMPLEMENT GENOMICS LTD.
Regeneration and Local Services,Economic Development and Housing,Cap Exp on Grants & Other Financial Assistance (REFCUS),918401,Capital grants,08-Jun-2017,3293078-RED-06-2017-042,"13,937.68",REDACTED - PAYMENT TO INDIVIDUAL
Regeneration and Local Services,Technical Services,Supplies and Services,342051,Computers and Communications,08-Jun-2017,3293027-170086,"1,050.00",SYMOLOGY LTD.
Regeneration and Local Services,Technical Services,Supplies and Services,342007,Computers and Communications,08-Jun-2017,3293027-170085,"3,540.00",SYMOLOGY LTD.
Regeneration and Local Services,Technical Services,Construction Work,908105,Construction work,08-Jun-2017,3292675-MS1701141,"1,160.00",ATG ACCESS LTD.
Regeneration and Local Services,Technical Services,Construction Work,908105,Construction work,08-Jun-2017,3292853-20442,963.60,JACK COUPE & SONS LTD T/A COUPE LINE.
Regeneration and Local Services,Technical Services,Fees,901002,Professional fees,08-Jun-2017,3293026-8142,"2,400.00",SURVEY & MARKETING SERVICES LTD T/A SMS MARKET RESEARCH.
Regeneration and Local Services,Economic Development and Housing,Premises,120009,Energy Costs,08-Jun-2017,3292938-NNO7YYPT,"1,539.34",NPOWER.
Regeneration and Local Services,Culture & Sport,Supplies and Services,304337,Equipment and Materials,08-Jun-2017,3292658-100953,"1,001.10",ALISON BLACK LTD T/A SPORTMAX.
Regeneration and Local Services,Technical Services,Supplies and Services,304221,Equipment and Materials,08-Jun-2017,3292651-24874859,"1,242.71",AGGREGATE INDUSTRIES UK LTD.
Regeneration and Local Services,Technical Services,Supplies and Services,304221,Equipment and Materials,08-Jun-2017,3292651-24874860,"2,437.16",AGGREGATE INDUSTRIES UK LTD.
Regeneration and Local Services,Technical Services,Supplies and Services,304221,Equipment and Materials,08-Jun-2017,3292651-24874861,764.65,AGGREGATE INDUSTRIES UK LTD.
Regeneration and Local Services,Technical Services,Supplies and Services,304221,Equipment and Materials,08-Jun-2017,3292651-24874862,714.71,AGGREGATE INDUSTRIES UK LTD.
Regeneration and Local Services,Direct Services,Supplies and Services,304221,Equipment and Materials,08-Jun-2017,3292775-059-204918,760.00,EDMUNDSON ELECTRICAL LTD.
Regeneration and Local Services,Direct Services,Supplies and Services,304221,Equipment and Materials,08-Jun-2017,3292796-1705-098280,615.59,FLAME HEATING SPARES LTD.
Regeneration and Local Services,Direct Services,Supplies and Services,304221,Equipment and Materials,08-Jun-2017,3292801-SI05589420,590.33,FRED WILLIAMSON & SONS LTD.*
Regeneration and Local Services,Direct Services,Supplies and Services,304221,Equipment and Materials,08-Jun-2017,3292801-SI05749506,543.90,FRED WILLIAMSON & SONS LTD.*
Regeneration and Local Services,Direct Services,Supplies and Services,304221,Equipment and Materials,08-Jun-2017,3292829-4558850,603.54,HEADLAM (FLOORCOVERING DISTRIBUTORS) LTD.
Regeneration and Local Services,Technical Services,Supplies and Services,304221,Equipment and Materials,08-Jun-2017,3292896-ZBB1234937,"5,178.00",MARSHALLS MONO LTD.
Regeneration and Local Services,Technical Services,Supplies and Services,304221,Equipment and Materials,08-Jun-2017,3293004-714560050688,"4,656.30",SIG TRADING LTD.
Regeneration and Local Services,Direct Services,Supplies and Services,304221,Equipment and Materials,08-Jun-2017,3293050-31069,"1,048.00",TOTAL PUMP SOLUTIONS LTD.
Regeneration and Local Services,Direct Services,Supplies and Services,304221,Equipment and Materials,08-Jun-2017,3293085-42927549,"4,895.40",WOLSELEY UK LTD.
Regeneration and Local Services,Direct Services,Supplies and Services,304221,Equipment and Materials,08-Jun-2017,3293085-42927550,"1,660.29",WOLSELEY UK LTD.
Regeneration and Local Services,Direct Services,Supplies and Services,304221,Equipment and Materials,08-Jun-2017,3293085-42927551,654.03,WOLSELEY UK LTD.
Regeneration and Local Services,Technical Services,Supplies and Services,304259,Equipment and Materials,08-Jun-2017,3292768-D13589,"1,039.50",DYNAMIC INITIATIVES LTD.
Regeneration and Local Services,Direct Services,Supplies and Services,304259,Equipment and Materials,08-Jun-2017,3292772-7041913,"1,018.32",EAST RIDING HORTICULTURE LTD.
Regeneration and Local Services,Direct Services,Supplies and Services,304259,Equipment and Materials,08-Jun-2017,3292922-063427,"1,536.20",NEW ROW FARM NURSERIES.
Regeneration and Local Services,Technical Services,Supplies and Services,304358,Equipment and Materials,08-Jun-2017,3292678-MG05425,600.00,BAILEY CONCRETE PUMPING LTD.
Regeneration and Local Services,Technical Services,Supplies and Services,304358,Equipment and Materials,08-Jun-2017,3292864-26727,940.00,JOHN R BUTTERFIELD LTD.
Regeneration and Local Services,Technical Services,Supplies and Services,304358,Equipment and Materials,08-Jun-2017,3292869-1607,"1,060.00",KEVIN SNOWDON GROUNDWORKS LTD.
Regeneration and Local Services,Technical Services,Supplies and Services,304358,Equipment and Materials,08-Jun-2017,3292869-1631,850.00,KEVIN SNOWDON GROUNDWORKS LTD.
Regeneration and Local Services,Technical Services,Supplies and Services,304358,Equipment and Materials,08-Jun-2017,3292869-1632,740.00,KEVIN SNOWDON GROUNDWORKS LTD.
Regeneration and Local Services,Technical Services,Supplies and Services,304358,Equipment and Materials,08-Jun-2017,3292869-1633,"1,003.00",KEVIN SNOWDON GROUNDWORKS LTD.
Regeneration and Local Services,Technical Services,Supplies and Services,304358,Equipment and Materials,08-Jun-2017,3292869-1634,"1,016.50",KEVIN SNOWDON GROUNDWORKS LTD.
Regeneration and Local Services,Technical Services,Supplies and Services,304358,Equipment and Materials,08-Jun-2017,3292869-1635,"1,016.50",KEVIN SNOWDON GROUNDWORKS LTD.
Regeneration and Local Services,Technical Services,Supplies and Services,304358,Equipment and Materials,08-Jun-2017,3292869-1636,851.50,KEVIN SNOWDON GROUNDWORKS LTD.
Regeneration and Local Services,Technical Services,Supplies and Services,304358,Equipment and Materials,08-Jun-2017,3292869-1637,"1,071.50",KEVIN SNOWDON GROUNDWORKS LTD.
Regeneration and Local Services,Technical Services,Supplies and Services,304358,Equipment and Materials,08-Jun-2017,3292869-1640,589.00,KEVIN SNOWDON GROUNDWORKS LTD.
Regeneration and Local Services,Technical Services,Supplies and Services,304358,Equipment and Materials,08-Jun-2017,3292869-1641,"1,179.00",KEVIN SNOWDON GROUNDWORKS LTD.
Regeneration and Local Services,Technical Services,Supplies and Services,304358,Equipment and Materials,08-Jun-2017,3292869-1642,585.00,KEVIN SNOWDON GROUNDWORKS LTD.
Regeneration and Local Services,Technical Services,Supplies and Services,304358,Equipment and Materials,08-Jun-2017,3292869-1643,794.00,KEVIN SNOWDON GROUNDWORKS LTD.
Regeneration and Local Services,Technical Services,Supplies and Services,304358,Equipment and Materials,08-Jun-2017,3292869-1644,"1,626.50",KEVIN SNOWDON GROUNDWORKS LTD.
Regeneration and Local Services,Technical Services,Supplies and Services,304358,Equipment and Materials,08-Jun-2017,3292873-1954,536.00,L & G PLANT HIRE & SALES LTD.
Regeneration and Local Services,Technical Services,Supplies and Services,304358,Equipment and Materials,08-Jun-2017,3292887-61A,"4,928.00",M & E & MR WALTON.
Regeneration and Local Services,Projects and Business services,Supplies and Services,304358,Equipment and Materials,08-Jun-2017,3292887-7BB,500.00,M & E & MR WALTON.
Regeneration and Local Services,Technical Services,Supplies and Services,304358,Equipment and Materials,08-Jun-2017,3293002-2016067,"1,170.20",SHIREHAVEN LTD.
Regeneration and Local Services,Direct Services,Supplies and Services,304358,Equipment and Materials,08-Jun-2017,3293074-43264,544.00,W MARLEY AGRICULTURAL CONTRACTORS LTD.
Regeneration and Local Services,Technical Services,Supplies and Services,304358,Equipment and Materials,08-Jun-2017,3293091-6310,509.38,YOULL CONSTRUCTION LTD.
Regeneration and Local Services,Technical Services,Supplies and Services,304358,Equipment and Materials,08-Jun-2017,3293091-6313,536.00,YOULL CONSTRUCTION LTD.
Regeneration and Local Services,Technical Services,Supplies and Services,304358,Equipment and Materials,08-Jun-2017,3293091-6321,690.00,YOULL CONSTRUCTION LTD.
Regeneration and Local Services,Technical Services,Supplies and Services,304357,Equipment and Materials,08-Jun-2017,3292804-DCC210517,"17,868.45",GAP GROUP LTD.
Regeneration and Local Services,Spatial Policy Planning Assets & Environment,Supplies and Services,304999,Equipment and Materials,08-Jun-2017,3292697-89545,"1,239.99",BRUNEL MICROSCOPES LTD.
Regeneration and Local Services,Economic Development and Housing,Supplies and Services,384700,Miscellaneous Expenses,08-Jun-2017,3292673-RED-06-2017-041,"1,000.00",ASPIRE LEARNING SUPPORT & WELLBEING CIC.
Regeneration and Local Services,Economic Development and Housing,Supplies and Services,324117,Provisions,08-Jun-2017,3292684-74704895,729.60,BIDFOOD.
Regeneration and Local Services,Technical Services,Employees,040149,Recruitment Instruction and Training,08-Jun-2017,3292840-4189,600.00,HSF TRAINING LTD.
Regeneration and Local Services,Technical Services,Third Party Payments,430127,Rendered by Private Contractors,08-Jun-2017,3292893-5433,528.00,MAKEPEACE MOTORS.
Regeneration and Local Services,Technical Services,Third Party Payments,430127,Rendered by Private Contractors,08-Jun-2017,3292893-5435,988.00,MAKEPEACE MOTORS.
Regeneration and Local Services,Technical Services,Third Party Payments,430127,Rendered by Private Contractors,08-Jun-2017,3292893-5436,988.00,MAKEPEACE MOTORS.
Regeneration and Local Services,Direct Services,Third Party Payments,430100,Rendered by Private Contractors,08-Jun-2017,3292677-1681,"1,350.00",AWR ROOFING & ALUMIN RAINWATER SYSTEMS LTD.
Regeneration and Local Services,Direct Services,Third Party Payments,430100,Rendered by Private Contractors,08-Jun-2017,3292746-302353,667.80,DENNIS EAGLE LTD.
Regeneration and Local Services,Direct Services,Third Party Payments,430100,Rendered by Private Contractors,08-Jun-2017,3292787-83102,"3,764.02",EVANS HALSHAW.
Regeneration and Local Services,Direct Services,Third Party Payments,430100,Rendered by Private Contractors,08-Jun-2017,3292857-5082,580.00,JAMES INGLEFORD SCAFFOLDING LTD.
Regeneration and Local Services,Direct Services,Third Party Payments,430100,Rendered by Private Contractors,08-Jun-2017,3292883-SI2685601,550.00,LINDEN FLUID POWER LTD.
Regeneration and Local Services,Technical Services,Third Party Payments,430100,Rendered by Private Contractors,08-Jun-2017,3292935-DI20268332,"1,585.10",NORTHERN POWERGRID (NORTHEAST) LTD.
Regeneration and Local Services,Direct Services,Third Party Payments,430100,Rendered by Private Contractors,08-Jun-2017,3292964-144925,"1,200.00",PREMIER TRAFFIC MANAGEMENT LTD.
Regeneration and Local Services,Transport and Contracted Services,Third Party Payments,430100,Rendered by Private Contractors,08-Jun-2017,3293055-RED-06-2017-044,"8,000.00",TRAFFIC ENFORCEMENT CENTRE (TEC).
Regeneration and Local Services,Technical Services,Third Party Payments,430100,Rendered by Private Contractors,08-Jun-2017,3293063-INV042451,"1,934.21",URBIS SCHREDER LTD.
Regeneration and Local Services,Direct Services,Third Party Payments,430100,Rendered by Private Contractors,08-Jun-2017,3293065-170417,"27,911.97",VAN ELLE LTD.
Regeneration and Local Services,Direct Services,Transport,210057,Repair and Maintenance of Vehicles,08-Jun-2017,3292933-21772904,"2,463.77",NORTH EAST TRUCK & VAN LTD.
Regeneration and Local Services,Direct Services,Transport,215005,Running Costs of Vehicles,08-Jun-2017,3292941-246472,"13,791.80",OIL NRG LTD.
Regeneration and Local Services,Direct Services,Transport,215022,Running Costs of Vehicles,08-Jun-2017,3292941-241437,"1,767.20",OIL NRG LTD.
Regeneration and Local Services,Direct Services,Transport,215022,Running Costs of Vehicles,08-Jun-2017,3292941-246473,953.80,OIL NRG LTD.
Regeneration and Local Services,Culture & Sport,Supplies and Services,338047,Services,08-Jun-2017,3293054-00006542,564.46,TRAFALGAR RELEASING LTD T/A PICTUREHOUSE ENTERTAINMENT LTD.
Regeneration and Local Services,Spatial Policy Planning Assets & Environment,Supplies and Services,338066,Services,08-Jun-2017,3293064-25000096262016,"3,158.19",VALUATION OFFICE AGENCY ADMINISTRATION (VOA).
Regeneration and Local Services,Technical Services,Stock,926900,Stock in hand-Inventory system,08-Jun-2017,3292724-196640,"1,457.28",COLAS LTD.
Resources,I.C.T. Services,Supplies and Services,342051,Computers and Communications,08-Jun-2017,3292917-E953420,630.00,NCC SERVICES LTD.
Resources,I.C.T. Services,Supplies and Services,304303,Equipment and Materials,08-Jun-2017,3293052-120880,"1,277.32",TP ELECTRICAL SUPPLIES & FIXINGS LTD.
Resources,Legal & Democratic Services,Supplies and Services,332029,Printing Stationery and Gen Off Exps,08-Jun-2017,3292648-PSI0012743,"42,265.16",ADARE INSPIRED COMMUNICATIONS.
Resources,Legal & Democratic Services,Supplies and Services,338042,Services,08-Jun-2017,3292747-330470/INVNC225,"2,880.00",DERE STREET BARRISTERS.
Resources,Legal & Democratic Services,Supplies and Services,338042,Services,08-Jun-2017,3292908-244255,780.00,MR JUSTIN GRAY.
Resources,Legal & Democratic Services,Supplies and Services,338042,Services,08-Jun-2017,3293092-INV/PW8,800.00,ZENITH CHAMBERS.
Resources,I.C.T. Services,Stock,926900,Stock in hand-Inventory system,08-Jun-2017,3293089-BN35862,603.24,XMA LTD.
Resources,Corporate Finance,Supplies and Services,372009,Subscriptions,08-Jun-2017,3292806-103025104,"5,000.00",GATESHEAD COUNCIL.
Resources,I.C.T. Services,Supplies and Services,344111,Telephones,08-Jun-2017,3292696-VP90592270M14301,"3,319.80",BRITISH TELECOMMUNICATIONS PLC.
Transformation and Partnerships,Policy & Communications Division,Supplies and Services,304259,Equipment and Materials,08-Jun-2017,3292845-3428,639.60,INGRAM AV LTD T/A INGRAMSOUNDS.
Transformation and Partnerships,Policy & Communications Division,Supplies and Services,384199,Miscellaneous Expenses,08-Jun-2017,3292943-12470,"4,623.00",OXFORD COMPUTER CONSULTANTS LTD.
Transformation and Partnerships,Policy & Communications Division,Supplies and Services,384199,Miscellaneous Expenses,08-Jun-2017,3292943-12621,"2,732.00",OXFORD COMPUTER CONSULTANTS LTD.
Adult and Health Services,Commissioning inc Supporting People,Premises,145050,Cleaning and Domestic Supplies,09-Jun-2017,3293113-63482,"11,011.21",ANLABY OFFICE CLEANING SERVICES LTD.
Adult and Health Services,Head of Adults,Transport,230005,Contract Hire,09-Jun-2017,3293136-1475,"1,050.00",BOBBY DOVE.
Adult and Health Services,Head of Adults,Transport,230005,Contract Hire,09-Jun-2017,3293374-733,"1,869.00",MOLLYS TAXIS.
Adult and Health Services,Head of Adults,Transport,230005,Contract Hire,09-Jun-2017,3293553-019-06/06/2017,565.00,TRUDY`S.
Adult and Health Services,Central/Other,Debtors,930133,Debtor IC+ Out of Hours - Home Care,09-Jun-2017,3293293-DOO35,"8,333.33",HOMECARE SUPPORT LTD T/A THE HUMAN SUPPORT GROUP.
Adult and Health Services,Central/Other,Debtors,930133,Debtor IC+ Out of Hours - Home Care,09-Jun-2017,3293293-DOO37,"8,333.33",HOMECARE SUPPORT LTD T/A THE HUMAN SUPPORT GROUP.
Adult and Health Services,Central/Other,Debtors,930133,Debtor IC+ Out of Hours - Home Care,09-Jun-2017,3293293-DOO38,"8,333.33",HOMECARE SUPPORT LTD T/A THE HUMAN SUPPORT GROUP.
Adult and Health Services,Public Health,Supplies and Services,384155,Miscellaneous Expenses,09-Jun-2017,3293407-1000052140,"61,137.55",NHS BUSINESS SERVICES AUTHORITY (NHSBSA).
Adult and Health Services,Commissioning inc Supporting People,Third Party Payments,479111,Purchase of Care,09-Jun-2017,3293162-3077,"4,706.93",CARERS FEDERATION LTD.
Adult and Health Services,Commissioning inc Supporting People,Third Party Payments,470111,Purchase of Care,09-Jun-2017,3293348-RINVTP/00439106,"3,994.97",LEONARD CHESHIRE DISABILITY.
Adult and Health Services,Commissioning inc Supporting People,Third Party Payments,470111,Purchase of Care,09-Jun-2017,3293348-RINVTP/00442170,"4,128.14",LEONARD CHESHIRE DISABILITY.
Adult and Health Services,Commissioning inc Supporting People,Third Party Payments,470111,Purchase of Care,09-Jun-2017,3293348-RINVTP/00442188,"4,128.14",LEONARD CHESHIRE DISABILITY.
Adult and Health Services,Head of Adults,Third Party Payments,478151,Purchase of Care,09-Jun-2017,3293188-421R123765,"3,910.68",COMMUNITY INTEGRATED CARE LTD.
Adult and Health Services,Head of Adults,Third Party Payments,478151,Purchase of Care,09-Jun-2017,3293443-00002104,"1,704.08",POTENSIAL LTD T/A POTENS
Adult and Health Services,Head of Adults,Third Party Payments,478151,Purchase of Care,09-Jun-2017,3293443-00002539,"1,704.08",POTENSIAL LTD T/A POTENS
Adult and Health Services,Head of Adults,Third Party Payments,478151,Purchase of Care,09-Jun-2017,3293443-00002654,"1,809.48",POTENSIAL LTD T/A POTENS
Adult and Health Services,Planning & Service Strategy,Supplies and Services,338091,Services,09-Jun-2017,3293264-984A,595.00,FIRST IN TRAINING LTD.
Children and Young Peoples Services,Education,Construction Work,908105,Construction work,09-Jun-2017,3293355-50436,500.00,LUCION ENVIRONMENTAL LLP LTD.
Children and Young Peoples Services,Education,Transport,230007,Contract Hire,09-Jun-2017,3293135-42-MAY2017,"1,140.00",BL TAXIS.
Children and Young Peoples Services,Education,Transport,230007,Contract Hire,09-Jun-2017,3293137-59,760.00,BOBS TAXIS.
Children and Young Peoples Services,Education,Transport,230007,Contract Hire,09-Jun-2017,3293154-326009-MAY17,570.00,C & R TAXIS.
Children and Young Peoples Services,Education,Transport,230007,Contract Hire,09-Jun-2017,3293195-DCC/4118/MAY17,"4,484.00",COUNTY COACHES.
Children and Young Peoples Services,Education,Transport,230007,Contract Hire,09-Jun-2017,3293210-192,874.00,D MCDONNELL.
Children and Young Peoples Services,Education,Transport,230007,Contract Hire,09-Jun-2017,3293211-1521,760.00,DA TAXIS.
Children and Young Peoples Services,Education,Transport,230007,Contract Hire,09-Jun-2017,3293237-24612,"2,663.04",DURHAM CITY COACHES.
Children and Young Peoples Services,Education,Transport,230007,Contract Hire,09-Jun-2017,3293252-5182/0517,810.10,ELLIOTTS OF TRIMDON.
Children and Young Peoples Services,Education,Transport,230007,Contract Hire,09-Jun-2017,3293253-0721,954.37,EN ROUTE TRAVEL.
Children and Young Peoples Services,Education,Transport,230003,Contract Hire,09-Jun-2017,3293237-24613,"2,565.00",DURHAM CITY COACHES.
Children and Young Peoples Services,Education,Transport,230003,Contract Hire,09-Jun-2017,3293386-0025,950.00,MR PM MULLEN T/A CATHEDRAL TAXIS.
Children and Young Peoples Services,Education,Transport,230003,Contract Hire,09-Jun-2017,3293518-41905,"3,501.12",T MOORE & SON.
Children and Young Peoples Services,Education,Transport,230006,Contract Hire,09-Jun-2017,3293154-F67709,931.00,C & R TAXIS.
Children and Young Peoples Services,Education,Transport,230006,Contract Hire,09-Jun-2017,3293197-N220/MAY/17,807.12,CRAIG RAMSHAW T/A CRAIG`S CABS.
Children and Young Peoples Services,Education,Transport,230006,Contract Hire,09-Jun-2017,3293211-1525,945.00,DA TAXIS.
Children and Young Peoples Services,Education,Transport,230006,Contract Hire,09-Jun-2017,3293212-225,"1,045.00",DA TRAVEL.
Children and Young Peoples Services,Education,Transport,230006,Contract Hire,09-Jun-2017,3293230-17/29,"1,088.00",DMG PRIVATE HIRE.
Children and Young Peoples Services,Education,Transport,230006,Contract Hire,09-Jun-2017,3293343-1119,528.00,LD TAXIS.
Children and Young Peoples Services,Education,Transport,230006,Contract Hire,09-Jun-2017,3293351-3628,"1,835.50",LINCAB TAXIS.
Children and Young Peoples Services,Education,Transport,230006,Contract Hire,09-Jun-2017,3293351-3629,"1,863.90",LINCAB TAXIS.
Children and Young Peoples Services,Education,Transport,230006,Contract Hire,09-Jun-2017,3293354-12-26/05/2017,"1,680.00",LORRAINES TAXIS.
Children and Young Peoples Services,Education,Transport,230006,Contract Hire,09-Jun-2017,3293356-59,936.00,LUMLEY TAXIS.
Children and Young Peoples Services,Education,Transport,230006,Contract Hire,09-Jun-2017,3293386-0024,989.00,MR PM MULLEN T/A CATHEDRAL TAXIS.
Children and Young Peoples Services,Education,Transport,230006,Contract Hire,09-Jun-2017,3293547-0001850,"1,900.00",TONY RIDLEY T/A COLORS TAXIS LTD.
Children and Young Peoples Services,Education,Transport,230006,Contract Hire,09-Jun-2017,3293547-0001859,"1,050.00",TONY RIDLEY T/A COLORS TAXIS LTD.
Children and Young Peoples Services,Education,Transport,230012,Contract Hire,09-Jun-2017,3293216-A24,"1,710.00",DAVES TAXIS.
Children and Young Peoples Services,Education,Transport,230012,Contract Hire,09-Jun-2017,3293322-26/05/17D,"1,653.00",JL EBDON. T/A DIAL-A-CAB.
Children and Young Peoples Services,Education,Transport,230008,Contract Hire,09-Jun-2017,3293134-21,760.00,BL CARS.
Children and Young Peoples Services,Education,Transport,230008,Contract Hire,09-Jun-2017,3293154-M10809,"1,462.50",C & R TAXIS.
Children and Young Peoples Services,Education,Transport,230008,Contract Hire,09-Jun-2017,3293154-W15309,"1,001.00",C & R TAXIS.
Children and Young Peoples Services,Education,Transport,230008,Contract Hire,09-Jun-2017,3293178-CB19,570.00,CHIPPERS TAXIS.
Children and Young Peoples Services,Education,Transport,230008,Contract Hire,09-Jun-2017,3293178-CW9,759.00,CHIPPERS TAXIS.
Children and Young Peoples Services,Education,Transport,230008,Contract Hire,09-Jun-2017,3293178-SS9,684.00,CHIPPERS TAXIS.
Children and Young Peoples Services,Education,Transport,230008,Contract Hire,09-Jun-2017,3293178-SW9,828.00,CHIPPERS TAXIS.
Children and Young Peoples Services,Education,Transport,230008,Contract Hire,09-Jun-2017,3293197-N069/MAY/17,"1,461.10",CRAIG RAMSHAW T/A CRAIG`S CABS.
Children and Young Peoples Services,Education,Transport,230008,Contract Hire,09-Jun-2017,3293209-TOW009,950.00,D IRVING T/A BJ TAXIS.
Children and Young Peoples Services,Education,Transport,230008,Contract Hire,09-Jun-2017,3293211-1520,"1,311.00",DA TAXIS.
Children and Young Peoples Services,Education,Transport,230008,Contract Hire,09-Jun-2017,3293212-228,526.40,DA TRAVEL.
Children and Young Peoples Services,Education,Transport,230008,Contract Hire,09-Jun-2017,3293215-3118,"1,813.17",DAVES MINIBUSES.
Children and Young Peoples Services,Education,Transport,230008,Contract Hire,09-Jun-2017,3293215-3119,"1,471.41",DAVES MINIBUSES.
Children and Young Peoples Services,Education,Transport,230008,Contract Hire,09-Jun-2017,3293215-3120,"2,147.00",DAVES MINIBUSES.
Children and Young Peoples Services,Education,Transport,230008,Contract Hire,09-Jun-2017,3293215-3121,"1,900.00",DAVES MINIBUSES.
Children and Young Peoples Services,Education,Transport,230008,Contract Hire,09-Jun-2017,3293215-3122,"2,422.50",DAVES MINIBUSES.
Children and Young Peoples Services,Education,Transport,230008,Contract Hire,09-Jun-2017,3293216-A25,"1,425.00",DAVES TAXIS.
Children and Young Peoples Services,Education,Transport,230008,Contract Hire,09-Jun-2017,3293216-A26,560.00,DAVES TAXIS.
Children and Young Peoples Services,Education,Transport,230008,Contract Hire,09-Jun-2017,3293252-E014/0517,"1,518.10",ELLIOTTS OF TRIMDON.
Children and Young Peoples Services,Education,Transport,230008,Contract Hire,09-Jun-2017,3293253-0722,"1,527.22",EN ROUTE TRAVEL.
Children and Young Peoples Services,Education,Transport,230008,Contract Hire,09-Jun-2017,3293260-E046031,"2,413.00",FERRYHILL VILLAGE TRAVEL.
Children and Young Peoples Services,Education,Transport,230008,Contract Hire,09-Jun-2017,3293260-N060009,"1,086.50",FERRYHILL VILLAGE TRAVEL.
Children and Young Peoples Services,Education,Transport,230008,Contract Hire,09-Jun-2017,3293260-N071009,"1,710.00",FERRYHILL VILLAGE TRAVEL.
Children and Young Peoples Services,Education,Transport,230008,Contract Hire,09-Jun-2017,3293260-S033009,"1,530.00",FERRYHILL VILLAGE TRAVEL.
Children and Young Peoples Services,Education,Transport,230008,Contract Hire,09-Jun-2017,3293260-W053009,"1,429.75",FERRYHILL VILLAGE TRAVEL.
Children and Young Peoples Services,Education,Transport,230008,Contract Hire,09-Jun-2017,3293322-26/05/17/G,"1,140.00",JL EBDON. T/A DIAL-A-CAB.
Children and Young Peoples Services,Education,Transport,230008,Contract Hire,09-Jun-2017,3293322-26/05/17A,"1,007.00",JL EBDON. T/A DIAL-A-CAB.
Children and Young Peoples Services,Education,Transport,230008,Contract Hire,09-Jun-2017,3293322-26/05/17B,"1,672.00",JL EBDON. T/A DIAL-A-CAB.
Children and Young Peoples Services,Education,Transport,230008,Contract Hire,09-Jun-2017,3293322-26/05/17C,"1,606.00",JL EBDON. T/A DIAL-A-CAB.
Children and Young Peoples Services,Education,Transport,230008,Contract Hire,09-Jun-2017,3293322-26/05/17E,"1,292.00",JL EBDON. T/A DIAL-A-CAB.
Children and Young Peoples Services,Education,Transport,230008,Contract Hire,09-Jun-2017,3293322-26/05/17F,"1,862.00",JL EBDON. T/A DIAL-A-CAB.
Children and Young Peoples Services,Education,Transport,230008,Contract Hire,09-Jun-2017,3293324-37,"1,567.50",JOHN CRAKE & SONS MINI BUSES LTD.
Children and Young Peoples Services,Education,Transport,230008,Contract Hire,09-Jun-2017,3293339-5C-26/05/2017,"1,292.00",L & R PRIVATE HIRE.
Children and Young Peoples Services,Education,Transport,230008,Contract Hire,09-Jun-2017,3293339-SBMAY17,"1,015.00",L & R PRIVATE HIRE.
Children and Young Peoples Services,Education,Transport,230008,Contract Hire,09-Jun-2017,3293360-30,"1,330.00",MALCOLM CARR T/A CARLY CABS.
Children and Young Peoples Services,Education,Transport,230008,Contract Hire,09-Jun-2017,3293374-732,"1,634.00",MOLLYS TAXIS.
Children and Young Peoples Services,Education,Transport,230008,Contract Hire,09-Jun-2017,3293380-3A,"1,121.00",MR BW YOUNG T/A ESH TAXIS.
Children and Young Peoples Services,Education,Transport,230008,Contract Hire,09-Jun-2017,3293383-132-X79-05,"1,820.96",MR GS ANDERSON.
Children and Young Peoples Services,Education,Transport,230008,Contract Hire,09-Jun-2017,3293387-2966,"1,546.41",MR S BOWERS T/A DH7 TAXIS.
Children and Young Peoples Services,Education,Transport,230008,Contract Hire,09-Jun-2017,3293387-2967,720.00,MR S BOWERS T/A DH7 TAXIS.
Children and Young Peoples Services,Education,Transport,230008,Contract Hire,09-Jun-2017,3293398-213,"1,980.00",NEVILLE FORBES T/A FORBES TAXIS.
Children and Young Peoples Services,Education,Transport,230008,Contract Hire,09-Jun-2017,3293547-0001862,"1,615.00",TONY RIDLEY T/A COLORS TAXIS LTD.
Children and Young Peoples Services,Education,Supplies and Services,304259,Equipment and Materials,09-Jun-2017,3293357-INV-0208,500.00,LYNCH HEALTHCARE LTD.
Children and Young Peoples Services,Childrens Services,Supplies and Services,304252,Equipment and Materials,09-Jun-2017,3293107-46259,"1,032.24",ALARM RADIO MONITORING LTD.
Children and Young Peoples Services,Childrens Services,Supplies and Services,384638,Miscellaneous Expenses,09-Jun-2017,3293236-02-2017-18,"5,625.00",DURHAM AREA DISABILITY LEISURE GROUP.
Children and Young Peoples Services,Childrens Services,Supplies and Services,384638,Miscellaneous Expenses,09-Jun-2017,3293236-2017-18,"4,900.00",DURHAM AREA DISABILITY LEISURE GROUP.
Children and Young Peoples Services,Childrens Services,Supplies and Services,384638,Miscellaneous Expenses,09-Jun-2017,3293236-600-2017-18,600.00,DURHAM AREA DISABILITY LEISURE GROUP.
Children and Young Peoples Services,Education,Supplies and Services,384540,Miscellaneous Expenses,09-Jun-2017,3293202-1150,940.00,CURIOUS 12 LTD.
Children and Young Peoples Services,Education,Supplies and Services,384540,Miscellaneous Expenses,09-Jun-2017,3293202-1151,590.00,CURIOUS 12 LTD.
Children and Young Peoples Services,Childrens Services,Supplies and Services,384540,Miscellaneous Expenses,09-Jun-2017,3293405-20080159,"1,695.00",NEWSQUEST (YORKSHIRE & NORTH EAST) LTD.
Children and Young Peoples Services,Childrens Services,Supplies and Services,384540,Miscellaneous Expenses,09-Jun-2017,3293405-20080169,"1,180.00",NEWSQUEST (YORKSHIRE & NORTH EAST) LTD.
Children and Young Peoples Services,Childrens Services,Supplies and Services,384540,Miscellaneous Expenses,09-Jun-2017,3293405-20085811,"1,950.00",NEWSQUEST (YORKSHIRE & NORTH EAST) LTD.
Children and Young Peoples Services,Childrens Services,Supplies and Services,384199,Miscellaneous Expenses,09-Jun-2017,3293304-581,"4,088.49",IMPACT FAMILY SERVICES.
Children and Young Peoples Services,Education,Third Party Payments,440999,Other Third Party Payments,09-Jun-2017,3293193-17/18021,"3,383.00",CORNFORTH PARTNERSHIP.
Children and Young Peoples Services,Education,Third Party Payments,440999,Other Third Party Payments,09-Jun-2017,3293411-1990,"1,844.14",NORTH EAST DANCE CIC.
Children and Young Peoples Services,Education,Third Party Payments,440999,Other Third Party Payments,09-Jun-2017,3293433-1507,"17,019.44",PENSHAW VIEW TRAINING.
Dedicated Schools Grant,Dedicated Schools Grant,Transport,230010,Contract Hire,09-Jun-2017,3293383-131-W7804,"1,530.00",MR GS ANDERSON.
Dedicated Schools Grant,Dedicated Schools Grant,Transport,230010,Contract Hire,09-Jun-2017,3293387-2969,532.00,MR S BOWERS T/A DH7 TAXIS.
Dedicated Schools Grant,Dedicated Schools Grant,Transport,230010,Contract Hire,09-Jun-2017,3293387-2970,"1,128.00",MR S BOWERS T/A DH7 TAXIS.
Dedicated Schools Grant,Dedicated Schools Grant,Supplies and Services,304639,Equipment and Materials,09-Jun-2017,3293435-2591767782,"1,447.00",PHONAK UK LTD.
Regeneration and Local Services,Technical Services,Construction Work,908108,Capital - Surface Dressing,09-Jun-2017,3293314-20436,996.10,JACK COUPE & SONS LTD T/A COUPE LINE.
Regeneration and Local Services,Economic Development and Housing,Cap Exp on Grants & Other Financial Assistance (REFCUS),918401,Capital grants,09-Jun-2017,3293201-RED-06-2017-049,624.00,CUMMINGS ARCHITECTS LTD.
Regeneration and Local Services,Economic Development and Housing,Cap Exp on Grants & Other Financial Assistance (REFCUS),918401,Capital grants,09-Jun-2017,3293201-RED-06-2017-051,624.00,CUMMINGS ARCHITECTS LTD.
Regeneration and Local Services,Economic Development and Housing,Cap Exp on Grants & Other Financial Assistance (REFCUS),918401,Capital grants,09-Jun-2017,3293431-RED-06-2017-048,"3,589.00",PEART ACCESS RAMPS.
Regeneration and Local Services,Economic Development and Housing,Cap Exp on Grants & Other Financial Assistance (REFCUS),918401,Capital grants,09-Jun-2017,3293545-RED-06-2017-045,"2,850.00",THYSSENKRUPP ENCASA A DIVISION OF THYSSENKRUPP ACCESS LTD.
Regeneration and Local Services,Economic Development and Housing,Cap Exp on Grants & Other Financial Assistance (REFCUS),918401,Capital grants,09-Jun-2017,3293545-RED-06-2017-046,"1,885.00",THYSSENKRUPP ENCASA A DIVISION OF THYSSENKRUPP ACCESS LTD.
Regeneration and Local Services,Economic Development and Housing,Cap Exp on Grants & Other Financial Assistance (REFCUS),918401,Capital grants,09-Jun-2017,3293545-RED-06-2017-047,"2,282.00",THYSSENKRUPP ENCASA A DIVISION OF THYSSENKRUPP ACCESS LTD.
Regeneration and Local Services,Culture & Sport,Premises,106080,Centrally Controlled Rep and Maint,09-Jun-2017,3293452-RI5532,"4,612.00",PROMANEX (TOTAL FM & ENVIRONMENTAL SERVICES) LTD.
Regeneration and Local Services,Direct Services,Construction Work,908105,Construction work,09-Jun-2017,3293175-168364,"1,760.00",CHAS LONG & SON (AGGREGATES) LTD.
Regeneration and Local Services,Spatial Policy Planning Assets & Environment,Construction Work,908105,Construction work,09-Jun-2017,3293291-142,"34,492.62",HERITAGE BUILDING & CONSERVATION.
Regeneration and Local Services,Spatial Policy Planning Assets & Environment,Construction Work,908105,Construction work,09-Jun-2017,3293368-RED-06-2017-059,500.00,REDACTED - PAYMENT TO INDIVIDUAL
Regeneration and Local Services,Direct Services,Transport,230005,Contract Hire,09-Jun-2017,3293552-16482,"1,420.66",TRASH UK LTD.
Regeneration and Local Services,Direct Services,Transport,230005,Contract Hire,09-Jun-2017,3293573-73177,518.50,WARREN ACCESS LTD.
Regeneration and Local Services,Technical Services,Third Party Payments,460151,Contract Payments,09-Jun-2017,3293307-582136,"1,283.36",INSTARMAC GROUP PLC.
Regeneration and Local Services,Spatial Policy Planning Assets & Environment,Supplies and Services,377015,County Durham Development,09-Jun-2017,3293108-42826,513.00,ALLWAG PROMOTIONS LTD.
Regeneration and Local Services,Technical Services,Supplies and Services,304221,Equipment and Materials,09-Jun-2017,3293099-001598,642.60,A PARRY MOBILE WELDING & FABRICATION.
Regeneration and Local Services,Technical Services,Supplies and Services,304221,Equipment and Materials,09-Jun-2017,3293099-001600,915.60,A PARRY MOBILE WELDING & FABRICATION.
Regeneration and Local Services,Direct Services,Supplies and Services,304221,Equipment and Materials,09-Jun-2017,3293164-851701190,888.00,CARLISLE CONSTRUCTION MATERIALS LTD.
Regeneration and Local Services,Technical Services,Supplies and Services,304221,Equipment and Materials,09-Jun-2017,3293329-BII224094,"1,014.70",JT DOVE LTD.
Regeneration and Local Services,Direct Services,Supplies and Services,304221,Equipment and Materials,09-Jun-2017,3293422-6598-52,606.55,OPUS BUILDING SERVICES LTD.
Regeneration and Local Services,Direct Services,Supplies and Services,304221,Equipment and Materials,09-Jun-2017,3293442-1738ADP786,"1,252.00",PLUMBING TRADE SUPPLIES LTD.
Regeneration and Local Services,Direct Services,Supplies and Services,304221,Equipment and Materials,09-Jun-2017,3293541-46219,"1,299.73",THE ROOF TRUSS CO (NORTHERN) LTD.
Regeneration and Local Services,Culture & Sport,Supplies and Services,304259,Equipment and Materials,09-Jun-2017,3293100-116307487,"1,077.05",AC ENTERTAINMENT TECHNOLOGIES.
Regeneration and Local Services,Direct Services,Supplies and Services,304259,Equipment and Materials,09-Jun-2017,3293175-168365,"1,870.00",CHAS LONG & SON (AGGREGATES) LTD.
Regeneration and Local Services,Direct Services,Supplies and Services,304259,Equipment and Materials,09-Jun-2017,3293175-170676,"1,870.00",CHAS LONG & SON (AGGREGATES) LTD.
Regeneration and Local Services,Direct Services,Supplies and Services,304259,Equipment and Materials,09-Jun-2017,3293175-171402,"1,870.00",CHAS LONG & SON (AGGREGATES) LTD.
Regeneration and Local Services,Direct Services,Supplies and Services,304259,Equipment and Materials,09-Jun-2017,3293300-7088,825.00,IBA FABRICATIONS LTD.
Regeneration and Local Services,Direct Services,Supplies and Services,304259,Equipment and Materials,09-Jun-2017,3293401-063569,731.15,NEW ROW FARM NURSERIES.
Regeneration and Local Services,Direct Services,Supplies and Services,304259,Equipment and Materials,09-Jun-2017,3293401-063571,503.00,NEW ROW FARM NURSERIES.
Regeneration and Local Services,Direct Services,Supplies and Services,304259,Equipment and Materials,09-Jun-2017,3293401-063576,"1,621.70",NEW ROW FARM NURSERIES.
Regeneration and Local Services,Direct Services,Supplies and Services,304259,Equipment and Materials,09-Jun-2017,3293401-063615,"2,496.66",NEW ROW FARM NURSERIES.
Regeneration and Local Services,Direct Services,Supplies and Services,304259,Equipment and Materials,09-Jun-2017,3293401-063634,776.00,NEW ROW FARM NURSERIES.
Regeneration and Local Services,Direct Services,Supplies and Services,304259,Equipment and Materials,09-Jun-2017,3293462-RSIN0215425,"3,180.00",RIGBY TAYLOR LTD.
Regeneration and Local Services,Technical Services,Supplies and Services,304358,Equipment and Materials,09-Jun-2017,3293325-26569,960.70,JOHN R BUTTERFIELD LTD.
Regeneration and Local Services,Technical Services,Supplies and Services,304358,Equipment and Materials,09-Jun-2017,3293325-26631,"1,168.00",JOHN R BUTTERFIELD LTD.
Regeneration and Local Services,Technical Services,Supplies and Services,304358,Equipment and Materials,09-Jun-2017,3293325-26730,"1,054.00",JOHN R BUTTERFIELD LTD.
Regeneration and Local Services,Technical Services,Supplies and Services,304358,Equipment and Materials,09-Jun-2017,3293338-1962,510.00,L & G PLANT HIRE & SALES LTD.
Regeneration and Local Services,Direct Services,Supplies and Services,304358,Equipment and Materials,09-Jun-2017,3293573-73201,520.00,WARREN ACCESS LTD.
Regeneration and Local Services,Technical Services,Supplies and Services,304358,Equipment and Materials,09-Jun-2017,3293586-6330,510.00,YOULL CONSTRUCTION LTD.
Regeneration and Local Services,Technical Services,Supplies and Services,304358,Equipment and Materials,09-Jun-2017,3293586-6365,725.00,YOULL CONSTRUCTION LTD.
Regeneration and Local Services,Transport and Contracted Services,Supplies and Services,304245,Equipment and Materials,09-Jun-2017,3293554-3IN/10299210,"9,443.35",TUNSTALL HEALTHCARE (UK) LTD.
Regeneration and Local Services,Economic Development and Housing,Supplies and Services,368008,Incentives to Industrialists,09-Jun-2017,3293534-11798,"8,013.53",THE GREENHOUSE COMPANY (GROUNDWORK) LTD.
Regeneration and Local Services,Culture & Sport,Supplies and Services,384899,Miscellaneous Expenses,09-Jun-2017,3293142-RES-06-2017-032,"150,000.00",BOWES MUSEUM.
Regeneration and Local Services,Economic Development and Housing,Supplies and Services,384437,Miscellaneous Expenses,09-Jun-2017,3293110-2017-159-141-009990,"9,968.45",AMERICAN EXPRESS SERVICES EUROPE LTD.
Regeneration and Local Services,Economic Development and Housing,Supplies and Services,384700,Miscellaneous Expenses,09-Jun-2017,3293217-RED-06-2017-054,"1,500.00",DAVID COULSON CONSTRUCTION LTD.
Regeneration and Local Services,Economic Development and Housing,Supplies and Services,384700,Miscellaneous Expenses,09-Jun-2017,3293301-RED-06-2017-055,"1,500.00",IK UK LTD.
Regeneration and Local Services,Culture & Sport,Supplies and Services,384199,Miscellaneous Expenses,09-Jun-2017,3293309-20170203DUR,"15,515.00",INTELLIGENT HEALTH LTD.
Regeneration and Local Services,Economic Development and Housing,Supplies and Services,384199,Miscellaneous Expenses,09-Jun-2017,3293402-1595,"1,100.00",NEWCASTLE GATESHEAD INITIATIVE.
Regeneration and Local Services,Economic Development and Housing,Supplies and Services,384199,Miscellaneous Expenses,09-Jun-2017,3293500-853842,"1,289.90",SP SERVICES (UK) LTD.
Regeneration and Local Services,Spatial Policy Planning Assets & Environment,Supplies and Services,384199,Miscellaneous Expenses,09-Jun-2017,3293529-11,"1,500.00",THE BARN AT EASINGTON.
Regeneration and Local Services,Economic Development and Housing,Third Party Payments,440999,Other Third Party Payments,09-Jun-2017,3293412-54008,885.00,NORTHERN HOUSING CONSORTIUM LTD.
Regeneration and Local Services,Economic Development and Housing,Third Party Payments,440999,Other Third Party Payments,09-Jun-2017,3293532-SI1000000328,"5,000.00",THE CYRENIANS LTD T/A CHANGING LIVES.
Regeneration and Local Services,Economic Development and Housing,Supplies and Services,340001,Postages,09-Jun-2017,3293397-RED-06-2017-053,"1,000.00",NEOPOST CREDIFON.
Regeneration and Local Services,Culture & Sport,Supplies and Services,324001,Provisions,09-Jun-2017,3293165-843812891,"1,069.90",CARLSBERG UK LTD.
Regeneration and Local Services,Technical Services,Employees,040149,Recruitment Instruction and Training,09-Jun-2017,3293308-IOSINV012557,640.00,INSTITUTE OF SWIMMING.
Regeneration and Local Services,Technical Services,Third Party Payments,430100,Rendered by Private Contractors,09-Jun-2017,3293099-001596,"2,956.80",A PARRY MOBILE WELDING & FABRICATION.
Regeneration and Local Services,Technical Services,Third Party Payments,430100,Rendered by Private Contractors,09-Jun-2017,3293099-001604,"1,848.00",A PARRY MOBILE WELDING & FABRICATION.
Regeneration and Local Services,Technical Services,Third Party Payments,430100,Rendered by Private Contractors,09-Jun-2017,3293099-001605,"3,326.40",A PARRY MOBILE WELDING & FABRICATION.
Regeneration and Local Services,Technical Services,Third Party Payments,430100,Rendered by Private Contractors,09-Jun-2017,3293123-IN30024,"25,143.47",BALFOUR BEATTY LIVING PLACES LTD.*
Regeneration and Local Services,Direct Services,Third Party Payments,430100,Rendered by Private Contractors,09-Jun-2017,3293125-DCC/2017016,956.60,BEACON BUILDING & ASSOCIATED SERVICES LTD.
Regeneration and Local Services,Direct Services,Third Party Payments,430100,Rendered by Private Contractors,09-Jun-2017,3293125-DCC/2017018,792.30,BEACON BUILDING & ASSOCIATED SERVICES LTD.
Regeneration and Local Services,Direct Services,Third Party Payments,430100,Rendered by Private Contractors,09-Jun-2017,3293148-27APRIL2017,880.00,BRIAN YOUNGER T/A B & E YOUNGER FLOORING.
Regeneration and Local Services,Direct Services,Third Party Payments,430100,Rendered by Private Contractors,09-Jun-2017,3293149-82583580,"2,352.56",BRISTOL STREET MOTORS.
Regeneration and Local Services,Direct Services,Third Party Payments,430100,Rendered by Private Contractors,09-Jun-2017,3293149-82583582,695.12,BRISTOL STREET MOTORS.
Regeneration and Local Services,Technical Services,Third Party Payments,430100,Rendered by Private Contractors,09-Jun-2017,3293235-6863,"1,450.00",DUNELM GEOTECHNICAL & ENVIRONMENTAL LTD.
Regeneration and Local Services,Direct Services,Third Party Payments,430100,Rendered by Private Contractors,09-Jun-2017,3293315-4883,"10,981.60",JAMES INGLEFORD SCAFFOLDING LTD.
Regeneration and Local Services,Direct Services,Third Party Payments,430100,Rendered by Private Contractors,09-Jun-2017,3293329-GO1166/D,"2,246.83",JT DOVE LTD.
Regeneration and Local Services,Direct Services,Third Party Payments,430100,Rendered by Private Contractors,09-Jun-2017,3293329-GOI158/D,"2,246.83",JT DOVE LTD.
Regeneration and Local Services,Technical Services,Third Party Payments,430100,Rendered by Private Contractors,09-Jun-2017,3293395-NC5/C520/BW,"12,652.38",NEDCO CONTRACTS (NE) LTD.
Regeneration and Local Services,Direct Services,Third Party Payments,430100,Rendered by Private Contractors,09-Jun-2017,3293422-6598-51,"1,031.25",OPUS BUILDING SERVICES LTD.
Regeneration and Local Services,Direct Services,Third Party Payments,430100,Rendered by Private Contractors,09-Jun-2017,3293447-144278,800.00,PREMIER TRAFFIC MANAGEMENT LTD.
Regeneration and Local Services,Direct Services,Third Party Payments,430100,Rendered by Private Contractors,09-Jun-2017,3293447-144279,"2,240.00",PREMIER TRAFFIC MANAGEMENT LTD.
Regeneration and Local Services,Direct Services,Third Party Payments,430100,Rendered by Private Contractors,09-Jun-2017,3293447-144430,660.00,PREMIER TRAFFIC MANAGEMENT LTD.
Regeneration and Local Services,Direct Services,Third Party Payments,430100,Rendered by Private Contractors,09-Jun-2017,3293447-144766,"1,120.00",PREMIER TRAFFIC MANAGEMENT LTD.
Regeneration and Local Services,Technical Services,Third Party Payments,430100,Rendered by Private Contractors,09-Jun-2017,3293447-144950,"8,744.51",PREMIER TRAFFIC MANAGEMENT LTD.
Regeneration and Local Services,Direct Services,Third Party Payments,430100,Rendered by Private Contractors,09-Jun-2017,3293522-25553128,592.50,TC HARRISON JCB.
Regeneration and Local Services,Direct Services,Third Party Payments,430100,Rendered by Private Contractors,09-Jun-2017,3293525-7142,"1,090.00",TEAM VALLEY TRANSMISSIONS LTD.
Regeneration and Local Services,Direct Services,Third Party Payments,430100,Rendered by Private Contractors,09-Jun-2017,3293590-109590,"1,597.48",ZOELLER WASTE SYSTEMS LTD.
Regeneration and Local Services,Direct Services,Third Party Payments,430101,Rendered by Private Contractors,09-Jun-2017,3293227-IV884423,"1,294.20",DIRECT TYRE MANAGEMENT (DTM).
Regeneration and Local Services,Spatial Policy Planning Assets & Environment,Premises,125009,Rents,09-Jun-2017,3293327-748658,"413,138.14",JONES LANG LASALLE.
Regeneration and Local Services,Direct Services,Transport,210057,Repair and Maintenance of Vehicles,09-Jun-2017,3293167-217443,713.40,CARRS BILLINGTON AGRICULTURE.
Regeneration and Local Services,Direct Services,Transport,210057,Repair and Maintenance of Vehicles,09-Jun-2017,3293590-SI88421,"1,909.82",ZOELLER WASTE SYSTEMS LTD.
Regeneration and Local Services,Technical Services,Supplies and Services,338027,Services,09-Jun-2017,3293514-26045,"1,800.00",SUBSCAN UDS LTD.
Regeneration and Local Services,Culture & Sport,Supplies and Services,338047,Services,09-Jun-2017,3293299-0015,700.00,IAN ST JAMES LTD.
Regeneration and Local Services,Technical Services,Stock,926900,Stock in hand-Inventory system,09-Jun-2017,3293244-059-205194,"3,571.19",EDMUNDSON ELECTRICAL LTD.
Regeneration and Local Services,Technical Services,Stock,926900,Stock in hand-Inventory system,09-Jun-2017,3293307-583155,"2,612.96",INSTARMAC GROUP PLC.
Regeneration and Local Services,Technical Services,Stock,926900,Stock in hand-Inventory system,09-Jun-2017,3293426-XL200027,"1,074.75",PARK ELECTRICAL DISTRIBUTORS LTD.
Regeneration and Local Services,Transport and Contracted Services,Premises,135005,Water Services,09-Jun-2017,3293416-4043479,784.75,NWG BUSINESS LTD (NORTHUMBRIAN WATER GROUP).
Regeneration and Local Services,Redundant Direct Services,Premises,135005,Water Services,09-Jun-2017,3293416-4050592,"2,614.65",NWG BUSINESS LTD (NORTHUMBRIAN WATER GROUP).
Regeneration and Local Services,Transport and Contracted Services,Premises,135005,Water Services,09-Jun-2017,3293416-4060263,"15,293.55",NWG BUSINESS LTD (NORTHUMBRIAN WATER GROUP).
Resources,I.C.T. Services,Supplies and Services,342051,Computers and Communications,09-Jun-2017,3293153-478762,"34,372.23",BYTES SOFTWARE SERVICES LTD.
Resources,I.C.T. Services,Supplies and Services,304259,Equipment and Materials,09-Jun-2017,3293094-286490,720.80,(PASS) PORTABLE APPLIANCE SAFETY SERVICES LTD.
Resources,I.C.T. Services,Supplies and Services,304303,Equipment and Materials,09-Jun-2017,3293331-38718,"2,637.08",KBR IT & NETWORKING SOLUTIONS.
Resources,I.C.T. Services,Supplies and Services,304303,Equipment and Materials,09-Jun-2017,3293331-38733,"4,094.16",KBR IT & NETWORKING SOLUTIONS.
Resources,I.C.T. Services,Supplies and Services,340001,Postages,09-Jun-2017,3293468-9054412438,"18,828.62",ROYAL MAIL GROUP PLC.
Resources,Legal & Democratic Services,Supplies and Services,338042,Services,09-Jun-2017,3293224-327844/INVRR53,540.00,DERE STREET BARRISTERS.
Resources,Legal & Democratic Services,Supplies and Services,338042,Services,09-Jun-2017,3293224-329818/INVHMU119,540.00,DERE STREET BARRISTERS.
Resources,Legal & Democratic Services,Supplies and Services,338057,Services,09-Jun-2017,3293233-PB120,"2,202.00",DR PAUL BARRETT.
Resources,Legal & Democratic Services,Supplies and Services,338057,Services,09-Jun-2017,3293233-PB121,"2,198.10",DR PAUL BARRETT.
Resources,I.C.T. Services,Stock,926900,Stock in hand-Inventory system,09-Jun-2017,3293584-BN39520,890.00,XMA LTD.
Resources,I.C.T. Services,Stock,926900,Stock in hand-Inventory system,09-Jun-2017,3293584-BN40930,712.68,XMA LTD.
Regeneration and Local Services,Spatial Policy Planning Assets & Environment,Supplies and Services,384199,Miscellaneous Expenses,12-Jun-2017,3293792-4100579614,500.00,REDACTED - PAYMENT TO INDIVIDUAL
Adult and Health Services,Commissioning inc Supporting People,Transport,240045,Car Allowances,12-Jun-2017,3293979-7083,"8,965.03",SUPPORTIVE SRC LTD.
Adult and Health Services,Commissioning inc Supporting People,Premises,145050,Cleaning and Domestic Supplies,12-Jun-2017,3293617-64470,"10,983.70",ANLABY OFFICE CLEANING SERVICES LTD.
Adult and Health Services,Head of Adults,Transport,230005,Contract Hire,12-Jun-2017,3293791-1118,"1,290.45",JDS PRIVATE HIRE DURHAM.
Adult and Health Services,Head of Adults,Transport,230005,Contract Hire,12-Jun-2017,3293802-DM1479,791.00,JOVIAL PRIVATE HIRE.
Adult and Health Services,Head of Adults,Transport,230005,Contract Hire,12-Jun-2017,3293802-DM14920,"1,370.00",JOVIAL PRIVATE HIRE.
Adult and Health Services,Head of Adults,Transport,230005,Contract Hire,12-Jun-2017,3293814-KW746,630.00,KWIK CABS.
Adult and Health Services,Head of Adults,Transport,230005,Contract Hire,12-Jun-2017,3293856-JK751,"1,470.00",MR JOHN KNIGHTON T/A JK TAXIS.
Adult and Health Services,Head of Adults,Transport,230005,Contract Hire,12-Jun-2017,3293857-201719,650.00,MR JR FORT.
Adult and Health Services,Public Health,Third Party Payments,460802,Contract Payments,12-Jun-2017,3293821-6504156201,536.00,LEEDS CITY COUNCIL.
Adult and Health Services,Public Health,Third Party Payments,460802,Contract Payments,12-Jun-2017,3294025-10300203975,"8,133.00",VIRGIN CARE PROVIDER SERVICES LTD.
Adult and Health Services,Public Health,Third Party Payments,460803,Contract Payments,12-Jun-2017,3293976-146,"5,000.00",SUCCESS NORTH EAST COMMUNITY INTEREST COMPANY (CIC).
Adult and Health Services,Head of Adults,Supplies and Services,304252,Equipment and Materials,12-Jun-2017,3293868-1081899/P,995.00,NEVILLE LANGLEY PAINTER AND DECORATOR.
Adult and Health Services,Head of Adults,Supplies and Services,308011,Furniture,12-Jun-2017,3293750-1,"2,430.00",GM DECORATORS.
Adult and Health Services,Head of Adults,Third Party Payments,470101,Purchase of Care,12-Jun-2017,3293924-1,"22,080.00",RESILIENCE NORTH EAST LTD.
Adult and Health Services,Head of Adults,Third Party Payments,478151,Purchase of Care,12-Jun-2017,3293675-421R125507,"3,744.00",COMMUNITY INTEGRATED CARE LTD.
Adult and Health Services,Head of Adults,Third Party Payments,478151,Purchase of Care,12-Jun-2017,3293675-421R126347,597.71,COMMUNITY INTEGRATED CARE LTD.
Adult and Health Services,Head of Adults,Third Party Payments,478151,Purchase of Care,12-Jun-2017,3293720-KINGVOID080617,"2,292.96",EMBRACING CARE.
Adult and Health Services,Head of Adults,Third Party Payments,478151,Purchase of Care,12-Jun-2017,3293954-1617,"3,289.20",SOVEREIGN CARE NORTH EAST LTD T/A MAPLE HOUSE.
Adult and Health Services,Head of Adults,Premises,125009,Rents,12-Jun-2017,3293993-4810009987,"9,885.17",TEES ESK & WEAR VALLEYS NHS FOUNDATION TRUST.
Adult and Health Services,Head of Adults,Supplies and Services,338370,Services,12-Jun-2017,3293844-40059A,"123,127.59",MEDEQUIP ASSISTIVE TECHNOLOGY LTD.
Adult and Health Services,Planning & Service Strategy,Supplies and Services,338089,Services,12-Jun-2017,3293779-5230,"1,350.00",IN TRAC TRAINING & CONSULTANCY LTD.
Children and Young Peoples Services,Childrens Services,Employees,080025,Agency Staff,12-Jun-2017,3293988-243348,610.00,TEACHERACTIVE LTD.
Children and Young Peoples Services,Childrens Services,Supplies and Services,352001,Conference Expenses,12-Jun-2017,3293707-PU37703,"1,750.00",DODS PARLIAMENTARY COMMUNICATIONS.
Children and Young Peoples Services,Education,Transport,230007,Contract Hire,12-Jun-2017,3293592-51701,539.00,24/7 TAXI SERVICES LTD.
Children and Young Peoples Services,Education,Transport,230007,Contract Hire,12-Jun-2017,3293592-51704,682.00,24/7 TAXI SERVICES LTD.
Children and Young Peoples Services,Education,Transport,230007,Contract Hire,12-Jun-2017,3293667-45841,"1,425.00",CJ GRIERSON T/A GRIERSONS COACHES.
Children and Young Peoples Services,Education,Transport,230007,Contract Hire,12-Jun-2017,3293742-19269,"2,223.00",GARNETTS LTD (COACHES).
Children and Young Peoples Services,Education,Transport,230007,Contract Hire,12-Jun-2017,3293742-19271,"14,193.57",GARNETTS LTD (COACHES).
Children and Young Peoples Services,Education,Transport,230007,Contract Hire,12-Jun-2017,3293742-19274,"2,242.00",GARNETTS LTD (COACHES).
Children and Young Peoples Services,Education,Transport,230007,Contract Hire,12-Jun-2017,3293742-19275,"2,641.00",GARNETTS LTD (COACHES).
Children and Young Peoples Services,Education,Transport,230007,Contract Hire,12-Jun-2017,3293742-19276,"2,261.00",GARNETTS LTD (COACHES).
Children and Young Peoples Services,Education,Transport,230007,Contract Hire,12-Jun-2017,3293745-3852,"1,083.00",GEM TRAVEL.
Children and Young Peoples Services,Education,Transport,230007,Contract Hire,12-Jun-2017,3293770-11506,"1,124.80",HODGSONS COACH OPERATORS LTD.
Children and Young Peoples Services,Education,Transport,230007,Contract Hire,12-Jun-2017,3293770-11507,820.80,HODGSONS COACH OPERATORS LTD.
Children and Young Peoples Services,Education,Transport,230007,Contract Hire,12-Jun-2017,3293770-11508,"1,888.60",HODGSONS COACH OPERATORS LTD.
Children and Young Peoples Services,Education,Transport,230007,Contract Hire,12-Jun-2017,3293770-11509,"3,173.00",HODGSONS COACH OPERATORS LTD.
Children and Young Peoples Services,Education,Transport,230007,Contract Hire,12-Jun-2017,3293770-11510,"2,090.00",HODGSONS COACH OPERATORS LTD.
Children and Young Peoples Services,Education,Transport,230007,Contract Hire,12-Jun-2017,3293770-11511,558.60,HODGSONS COACH OPERATORS LTD.
Children and Young Peoples Services,Education,Transport,230007,Contract Hire,12-Jun-2017,3293770-11512,"1,799.30",HODGSONS COACH OPERATORS LTD.
Children and Young Peoples Services,Education,Transport,230007,Contract Hire,12-Jun-2017,3293770-11513,"1,330.00",HODGSONS COACH OPERATORS LTD.
Children and Young Peoples Services,Education,Transport,230007,Contract Hire,12-Jun-2017,3293770-11514,"2,470.50",HODGSONS COACH OPERATORS LTD.
Children and Young Peoples Services,Education,Transport,230007,Contract Hire,12-Jun-2017,3293770-11516,"1,795.50",HODGSONS COACH OPERATORS LTD.
Children and Young Peoples Services,Education,Transport,230007,Contract Hire,12-Jun-2017,3293770-11517,"1,501.00",HODGSONS COACH OPERATORS LTD.
Children and Young Peoples Services,Education,Transport,230007,Contract Hire,12-Jun-2017,3293770-11518,"1,510.50",HODGSONS COACH OPERATORS LTD.
Children and Young Peoples Services,Education,Transport,230007,Contract Hire,12-Jun-2017,3293801-63,950.00,JOHN WARE T/A J & K TAXIS.
Children and Young Peoples Services,Education,Transport,230003,Contract Hire,12-Jun-2017,3293740-100276,"2,482.54",G & P JOHNSON LTD T/A NIGHTINGALE COACHES.
Children and Young Peoples Services,Education,Transport,230003,Contract Hire,12-Jun-2017,3293740-100277,"1,938.00",G & P JOHNSON LTD T/A NIGHTINGALE COACHES.
Children and Young Peoples Services,Education,Transport,230003,Contract Hire,12-Jun-2017,3293740-100278,"1,786.00",G & P JOHNSON LTD T/A NIGHTINGALE COACHES.
Children and Young Peoples Services,Education,Transport,230003,Contract Hire,12-Jun-2017,3293742-19278,"3,021.00",GARNETTS LTD (COACHES).
Children and Young Peoples Services,Education,Transport,230003,Contract Hire,12-Jun-2017,3293745-3853,"1,867.13",GEM TRAVEL.
Children and Young Peoples Services,Education,Transport,230003,Contract Hire,12-Jun-2017,3293745-3854,"1,330.00",GEM TRAVEL.
Children and Young Peoples Services,Education,Transport,230003,Contract Hire,12-Jun-2017,3293797-2017/07,"1,580.80",JM HUMBLE COACH HIRE.
Children and Young Peoples Services,Education,Transport,230003,Contract Hire,12-Jun-2017,3293797-2017/08,969.00,JM HUMBLE COACH HIRE.
Children and Young Peoples Services,Education,Transport,230009,Contract Hire,12-Jun-2017,3293809-7301MAY17,760.00,KDH TAXIS.
Children and Young Peoples Services,Education,Transport,230006,Contract Hire,12-Jun-2017,3293763-HT275,"1,520.00",HARRY`S TAXI`S.
Children and Young Peoples Services,Education,Transport,230006,Contract Hire,12-Jun-2017,3293791-1110,"1,165.00",JDS PRIVATE HIRE DURHAM.
Children and Young Peoples Services,Education,Transport,230006,Contract Hire,12-Jun-2017,3293806-F702MAY17,"1,786.00",K & R TAXIS.
Children and Young Peoples Services,Education,Transport,230006,Contract Hire,12-Jun-2017,3293853-00517,618.00,MR DEREK HENDERSON.
Children and Young Peoples Services,Education,Transport,230006,Contract Hire,12-Jun-2017,3293859-00232,722.00,MR P GARBUTT.
Children and Young Peoples Services,Education,Transport,230012,Contract Hire,12-Jun-2017,3293806-M004MAY17,760.00,K & R TAXIS.
Children and Young Peoples Services,Education,Transport,230008,Contract Hire,12-Jun-2017,3293592-51717,"1,246.00",24/7 TAXI SERVICES LTD.
Children and Young Peoples Services,Education,Transport,230008,Contract Hire,12-Jun-2017,3293594-566-SO35,570.00,A BARKER.
Children and Young Peoples Services,Education,Transport,230008,Contract Hire,12-Jun-2017,3293608-388909,"1,557.50",ALAN SOUTHERN T/A ALANS TAXIS PELTON FELL.
Children and Young Peoples Services,Education,Transport,230008,Contract Hire,12-Jun-2017,3293763-HT272,"1,710.00",HARRY`S TAXI`S.
Children and Young Peoples Services,Education,Transport,230008,Contract Hire,12-Jun-2017,3293763-HT274,"2,470.00",HARRY`S TAXI`S.
Children and Young Peoples Services,Education,Transport,230008,Contract Hire,12-Jun-2017,3293767-9MAY,855.00,HENRY FOREMAN T/A HENRY`S TAXIS.
Children and Young Peoples Services,Education,Transport,230008,Contract Hire,12-Jun-2017,3293771-INV159,"1,235.00",HORNDALE TAXIS LTD.
Children and Young Peoples Services,Education,Transport,230008,Contract Hire,12-Jun-2017,3293773-IR1705001,"2,511.04",I & R EXECUTIVE TRAVEL.
Children and Young Peoples Services,Education,Transport,230008,Contract Hire,12-Jun-2017,3293773-IR1705002,"2,059.79",I & R EXECUTIVE TRAVEL.
Children and Young Peoples Services,Education,Transport,230008,Contract Hire,12-Jun-2017,3293773-IR1705003,"1,140.00",I & R EXECUTIVE TRAVEL.
Children and Young Peoples Services,Education,Transport,230008,Contract Hire,12-Jun-2017,3293787-A116I,"1,140.00",JAFFAS TAXIS.
Children and Young Peoples Services,Education,Transport,230008,Contract Hire,12-Jun-2017,3293787-AA086I,"1,140.00",JAFFAS TAXIS.
Children and Young Peoples Services,Education,Transport,230008,Contract Hire,12-Jun-2017,3293791-1124,"1,387.00",JDS PRIVATE HIRE DURHAM.
Children and Young Peoples Services,Education,Transport,230008,Contract Hire,12-Jun-2017,3293791-1128,"2,305.00",JDS PRIVATE HIRE DURHAM.
Children and Young Peoples Services,Education,Transport,230008,Contract Hire,12-Jun-2017,3293797-2017/09,851.20,JM HUMBLE COACH HIRE.
Children and Young Peoples Services,Education,Transport,230008,Contract Hire,12-Jun-2017,3293808-79MAY17,912.00,KD TAXIS.
Children and Young Peoples Services,Education,Transport,230008,Contract Hire,12-Jun-2017,3293814-KW740,"1,140.00",KWIK CABS.
Children and Young Peoples Services,Education,Transport,230008,Contract Hire,12-Jun-2017,3293814-KW741,612.00,KWIK CABS.
Children and Young Peoples Services,Education,Transport,230008,Contract Hire,12-Jun-2017,3293814-KW742,"1,045.00",KWIK CABS.
Children and Young Peoples Services,Education,Transport,230008,Contract Hire,12-Jun-2017,3293814-KW743,950.00,KWIK CABS.
Children and Young Peoples Services,Education,Transport,230008,Contract Hire,12-Jun-2017,3293825-3630,"1,734.20",LINCAB TAXIS.
Children and Young Peoples Services,Education,Transport,230008,Contract Hire,12-Jun-2017,3293854-21,"1,537.50",MR G FREELAND T/A HUNWICK CARS.
Children and Young Peoples Services,Education,Transport,230008,Contract Hire,12-Jun-2017,3293855-0304853,"1,732.80",MR GN ROBBINS T/A GNR MINIBUS HIRE.
Children and Young Peoples Services,Education,Transport,230008,Contract Hire,12-Jun-2017,3293856-JK444,950.00,MR JOHN KNIGHTON T/A JK TAXIS.
Children and Young Peoples Services,Education,Transport,230008,Contract Hire,12-Jun-2017,3293862-10-EO45,"1,444.00",REDACTED - PAYMENT TO INDIVIDUAL
Children and Young Peoples Services,Education,Transport,230008,Contract Hire,12-Jun-2017,3293972-14,"1,805.00",STEVEN HENDERSON T/A HENDYS TAXIS.
Children and Young Peoples Services,Education,Transport,230005,Contract Hire,12-Jun-2017,3294032-004/2017,950.00,WAYSIDE TAXIS.
Children and Young Peoples Services,Education,Supplies and Services,304259,Equipment and Materials,12-Jun-2017,3293904-6404,"2,645.00",PHIL PARKER LTD (MUSIC SHOP).
Children and Young Peoples Services,Childrens Services,Supplies and Services,304252,Equipment and Materials,12-Jun-2017,3294040-92465176,670.00,WRIGHT COTTRELL & CO.
Children and Young Peoples Services,Childrens Services,Supplies and Services,364353,Grants to Voluntary Organisations,12-Jun-2017,3293696-CAS-06-2017-057,625.00,REDACTED - PAYMENT TO INDIVIDUAL
Children and Young Peoples Services,Childrens Services,Supplies and Services,384638,Miscellaneous Expenses,12-Jun-2017,3293710-294,"30,000.00",DURHAM COUNTY CARERS SUPPORT.
Children and Young Peoples Services,Childrens Services,Supplies and Services,384638,Miscellaneous Expenses,12-Jun-2017,3293743-2017-05-264,"1,000.00",GATEWAY NORTH EAST.
Children and Young Peoples Services,Childrens Services,Supplies and Services,384638,Miscellaneous Expenses,12-Jun-2017,3293743-2017-05-265,"1,000.00",GATEWAY NORTH EAST.
Children and Young Peoples Services,Education,Supplies and Services,384159,Miscellaneous Expenses,12-Jun-2017,3293967-11262,"7,682.40",STEADFAST SECURITY SYSTEMS LTD.
Children and Young Peoples Services,Childrens Services,Third Party Payments,440999,Other Third Party Payments,12-Jun-2017,3293783-0022017,"11,869.00",INVESTING IN CHILDREN CIC.
Children and Young Peoples Services,Childrens Services,Third Party Payments,425020,Rendered by Voluntary Organisations,12-Jun-2017,3293963-6077,"7,308.00",ST OSWALD`S HOSPICE.
Children and Young Peoples Services,Childrens Services,Third Party Payments,486053,Service Level Agreements,12-Jun-2017,3293664-CACD347,"2,220.67",CITIZENS ADVICE COUNTY DURHAM.
Children and Young Peoples Services,Childrens Services,Third Party Payments,486029,Service Level Agreements,12-Jun-2017,3293727-21738,"17,993.08",FAMILY ACTION.
Children and Young Peoples Services,Childrens Services,Supplies and Services,338078,Services,12-Jun-2017,3293611-06877,"1,503.60",ALL EVENTS SECURITY LTD (AES).
Children and Young Peoples Services,Childrens Services,Supplies and Services,338078,Services,12-Jun-2017,3293611-06896,"1,503.60",ALL EVENTS SECURITY LTD (AES).
Children and Young Peoples Services,Childrens Services,Supplies and Services,372009,Subscriptions,12-Jun-2017,3293682-17-FMLA/00736/MEM,"9,033.87",CORAM CHILDRENS LEGAL CENTRE.
Regeneration and Local Services,Spatial Policy Planning Assets & Environment,Supplies and Services,336005,Advertising,12-Jun-2017,3293871-20194328,695.82,NEWSQUEST (YORKSHIRE & NORTH EAST) LTD.
Regeneration and Local Services,Technical Services,Employees,080025,Agency Staff,12-Jun-2017,3293604-28307575,"4,620.10",AECOM LTD.
Regeneration and Local Services,Technical Services,Construction Work,908108,Capital - Surface Dressing,12-Jun-2017,3293785-20444,"2,908.95",JACK COUPE & SONS LTD T/A COUPE LINE.
Regeneration and Local Services,Culture & Sport,Premises,106080,Centrally Controlled Rep and Maint,12-Jun-2017,3293723-17501310,713.09,ENER-G COMBINED POWER LTD.
Regeneration and Local Services,Culture & Sport,Premises,106080,Centrally Controlled Rep and Maint,12-Jun-2017,3293723-17501311,884.62,ENER-G COMBINED POWER LTD.
Regeneration and Local Services,Direct Services,Premises,106082,Centrally Controlled Rep and Maint,12-Jun-2017,3293599-IN3254,"6,551.18",ACROL AIR CONDITIONING CO LTD.
Regeneration and Local Services,Direct Services,Premises,106082,Centrally Controlled Rep and Maint,12-Jun-2017,3294045-603866,"4,101.08",ZIP HEATERS (UK) LTD.
Regeneration and Local Services,Culture & Sport,Premises,145023,Cleaning and Domestic Supplies,12-Jun-2017,3293754-06/644198,723.84,GREENHAM TRADING LTD.
Regeneration and Local Services,Direct Services,Premises,145023,Cleaning and Domestic Supplies,12-Jun-2017,3293754-06/644648,754.34,GREENHAM TRADING LTD.
Regeneration and Local Services,Economic Development and Housing,Construction Work,908105,Construction work,12-Jun-2017,3293611-06903,559.38,ALL EVENTS SECURITY LTD (AES).
Regeneration and Local Services,Transport and Contracted Services,Construction Work,908105,Construction work,12-Jun-2017,3293649-24155,"3,411.86",BUS SHELTERS LTD.
Regeneration and Local Services,Direct Services,Construction Work,908105,Construction work,12-Jun-2017,3293759-ROSEBERRYSPORTSCOLLEGE,"79,487.76",HALL CONSTRUCTION SERVICES LTD.
Regeneration and Local Services,Technical Services,Construction Work,908105,Construction work,12-Jun-2017,5-20374REMATCH,"4,399.34",JACK COUPE & SONS LTD T/A COUPE LINE.
Regeneration and Local Services,Direct Services,Transport,230005,Contract Hire,12-Jun-2017,3293881-IW03411748,781.36,NORTHGATE VEHICLE HIRE LTD.
Regeneration and Local Services,Culture & Sport,Debtors,930178,Debtor - Consett Academy FM,12-Jun-2017,3293930-I/CONSETT44599,"14,029.64",ROBERTSON FACILITIES MANAGEMENT.
Regeneration and Local Services,Economic Development and Housing,Premises,120021,Energy Costs,12-Jun-2017,3293684-12059864,633.37,CORONA ENERGY RETAIL 2 LTD.
Regeneration and Local Services,Economic Development and Housing,Premises,120021,Energy Costs,12-Jun-2017,3293684-12060261,"1,010.55",CORONA ENERGY RETAIL 2 LTD.
Regeneration and Local Services,Economic Development and Housing,Premises,120021,Energy Costs,12-Jun-2017,3293684-12060730,"1,030.70",CORONA ENERGY RETAIL 2 LTD.
Regeneration and Local Services,Technical Services,Supplies and Services,304221,Equipment and Materials,12-Jun-2017,3293607-24887607,"1,213.87",AGGREGATE INDUSTRIES UK LTD.
Regeneration and Local Services,Technical Services,Supplies and Services,304221,Equipment and Materials,12-Jun-2017,3293607-24887609,"2,704.70",AGGREGATE INDUSTRIES UK LTD.
Regeneration and Local Services,Technical Services,Supplies and Services,304221,Equipment and Materials,12-Jun-2017,3293607-24887610,"1,164.78",AGGREGATE INDUSTRIES UK LTD.
Regeneration and Local Services,Technical Services,Supplies and Services,304221,Equipment and Materials,12-Jun-2017,3293607-24887611,600.13,AGGREGATE INDUSTRIES UK LTD.
Regeneration and Local Services,Technical Services,Supplies and Services,304221,Equipment and Materials,12-Jun-2017,3293607-24895751,"1,245.22",AGGREGATE INDUSTRIES UK LTD.
Regeneration and Local Services,Technical Services,Supplies and Services,304221,Equipment and Materials,12-Jun-2017,3293607-24895753,"2,528.89",AGGREGATE INDUSTRIES UK LTD.
Regeneration and Local Services,Technical Services,Supplies and Services,304221,Equipment and Materials,12-Jun-2017,3293607-24895754,575.38,AGGREGATE INDUSTRIES UK LTD.
Regeneration and Local Services,Technical Services,Supplies and Services,304221,Equipment and Materials,12-Jun-2017,3293607-24895755,640.79,AGGREGATE INDUSTRIES UK LTD.
Regeneration and Local Services,Direct Services,Supplies and Services,304221,Equipment and Materials,12-Jun-2017,3293652-851700877,"2,903.04",CARLISLE CONSTRUCTION MATERIALS LTD.
Regeneration and Local Services,Technical Services,Supplies and Services,304221,Equipment and Materials,12-Jun-2017,3293657-3009628687,"1,330.20",CEMEX UK MATERIALS LTD.
Regeneration and Local Services,Direct Services,Supplies and Services,304221,Equipment and Materials,12-Jun-2017,3293708-722936,811.21,DONWOOD (DOUBLE GLAZING) LTD.
Regeneration and Local Services,Direct Services,Supplies and Services,304221,Equipment and Materials,12-Jun-2017,3293716-059-203813,"4,736.35",EDMUNDSON ELECTRICAL LTD.
Regeneration and Local Services,Direct Services,Supplies and Services,304221,Equipment and Materials,12-Jun-2017,3293716-059-205248,775.04,EDMUNDSON ELECTRICAL LTD.
Regeneration and Local Services,Direct Services,Supplies and Services,304221,Equipment and Materials,12-Jun-2017,3293716-059-205344,770.00,EDMUNDSON ELECTRICAL LTD.
Regeneration and Local Services,Technical Services,Supplies and Services,304221,Equipment and Materials,12-Jun-2017,3293749-730034,"2,580.84",GLASDON UK LTD.
Regeneration and Local Services,Direct Services,Supplies and Services,304221,Equipment and Materials,12-Jun-2017,3293805-GOI181/D,"1,734.49",JT DOVE LTD.
Regeneration and Local Services,Direct Services,Supplies and Services,304221,Equipment and Materials,12-Jun-2017,3293805-GOI188/D,"1,345.68",JT DOVE LTD.
Regeneration and Local Services,Direct Services,Supplies and Services,304221,Equipment and Materials,12-Jun-2017,3293805-HEI670246,900.99,JT DOVE LTD.
Regeneration and Local Services,Direct Services,Supplies and Services,304221,Equipment and Materials,12-Jun-2017,3293805-STI455670,"2,321.20",JT DOVE LTD.
Regeneration and Local Services,Direct Services,Supplies and Services,304221,Equipment and Materials,12-Jun-2017,3293827-3989373,"1,486.18",LONDON GENERAL SALES LTD.
Regeneration and Local Services,Direct Services,Supplies and Services,304221,Equipment and Materials,12-Jun-2017,3293827-3989374,740.64,LONDON GENERAL SALES LTD.
Regeneration and Local Services,Technical Services,Supplies and Services,304221,Equipment and Materials,12-Jun-2017,3293839-ZJB0045295,822.00,MARSHALLS MONO LTD.
Regeneration and Local Services,Direct Services,Supplies and Services,304221,Equipment and Materials,12-Jun-2017,3293895-XL200171,"6,420.38",PARK ELECTRICAL DISTRIBUTORS LTD.
Regeneration and Local Services,Direct Services,Supplies and Services,304221,Equipment and Materials,12-Jun-2017,3293895-XL200181,"1,989.87",PARK ELECTRICAL DISTRIBUTORS LTD.
Regeneration and Local Services,Direct Services,Supplies and Services,304221,Equipment and Materials,12-Jun-2017,3293903-2733841,926.69,PEW ELECTRICAL DISTRIBUTORS LTD.
Regeneration and Local Services,Technical Services,Supplies and Services,304221,Equipment and Materials,12-Jun-2017,3293917-98942,550.00,PROTECTOR SECURITY GROUP LTD.
Regeneration and Local Services,Technical Services,Supplies and Services,304221,Equipment and Materials,12-Jun-2017,3293917-99236,550.00,PROTECTOR SECURITY GROUP LTD.
Regeneration and Local Services,Technical Services,Supplies and Services,304221,Equipment and Materials,12-Jun-2017,3293917-99360,550.00,PROTECTOR SECURITY GROUP LTD.
Regeneration and Local Services,Technical Services,Supplies and Services,304221,Equipment and Materials,12-Jun-2017,3293975-093588,565.36,STONEGRAVE AGGREGATES LTD.
Regeneration and Local Services,Technical Services,Supplies and Services,304221,Equipment and Materials,12-Jun-2017,3293985-9036252065,611.73,TARMAC TRADING LTD.
Regeneration and Local Services,Technical Services,Supplies and Services,304221,Equipment and Materials,12-Jun-2017,3294016-173721,663.97,TYNEDALE ROADSTONE LTD.
Regeneration and Local Services,Technical Services,Supplies and Services,304221,Equipment and Materials,12-Jun-2017,3294030-20729,"1,899.90",WARD TIMBER LTD.
Regeneration and Local Services,Direct Services,Supplies and Services,304221,Equipment and Materials,12-Jun-2017,3294037-2145640,"5,624.00",WILKIES.
Regeneration and Local Services,Technical Services,Supplies and Services,304259,Equipment and Materials,12-Jun-2017,3293625-1684,"4,062.00",AUTO ITEMS LTD.
Regeneration and Local Services,Culture & Sport,Supplies and Services,304259,Equipment and Materials,12-Jun-2017,3293679-SI-178548,"1,645.00",CONTINENTAL SPORTS LTD.
Regeneration and Local Services,Culture & Sport,Supplies and Services,304259,Equipment and Materials,12-Jun-2017,3293887-INV13818,"1,115.00",OMNEX PRO FILM LTD.
Regeneration and Local Services,Direct Services,Supplies and Services,304259,Equipment and Materials,12-Jun-2017,3293946-CD970466904,532.24,SHERRIFF AMENITY.
Regeneration and Local Services,Culture & Sport,Supplies and Services,304259,Equipment and Materials,12-Jun-2017,3294029-AT1008,"1,515.00",WALLY ANDERSON T/A ALL TECHNIC.
Regeneration and Local Services,Transport and Contracted Services,Supplies and Services,304245,Equipment and Materials,12-Jun-2017,3293648-51959,600.00,BUDDI.
Regeneration and Local Services,Economic Development and Housing,Supplies and Services,384540,Miscellaneous Expenses,12-Jun-2017,3293871-20195403,510.08,NEWSQUEST (YORKSHIRE & NORTH EAST) LTD.
Regeneration and Local Services,Economic Development and Housing,Supplies and Services,384437,Miscellaneous Expenses,12-Jun-2017,3293813-DCC117INT,516.00,KLARA MORVAI.
Regeneration and Local Services,Culture & Sport,Supplies and Services,384956,Miscellaneous Expenses,12-Jun-2017,3294017-UKAMEM/60305,"3,407.50",UKACTIVE.
Regeneration and Local Services,Culture & Sport,Supplies and Services,384700,Miscellaneous Expenses,12-Jun-2017,3293711-19/05/2017,"1,000.00",DURHAM PRIDE UK.
Regeneration and Local Services,Spatial Policy Planning Assets & Environment,Supplies and Services,384700,Miscellaneous Expenses,12-Jun-2017,3293973-BURSARYJUN17,582.00,REDACTED - PAYMENT TO INDIVIDUAL
Regeneration and Local Services,Culture & Sport,Supplies and Services,384199,Miscellaneous Expenses,12-Jun-2017,3293951-RS/21762,"3,300.00",SMITH ENGINEERING (GB) LTD.
Regeneration and Local Services,Culture & Sport,Supplies and Services,312013,Newspapers Books and Periodicals,12-Jun-2017,3293870-004956,569.40,NEWSMARKET.
Regeneration and Local Services,Culture & Sport,Supplies and Services,312017,Newspapers Books and Periodicals,12-Jun-2017,3293621-5413478,565.52,ASKEWS & HOLTS LIBRARY SERVICES LTD.
Regeneration and Local Services,Projects and Business services,Supplies and Services,340001,Postages,12-Jun-2017,3293933-9054418585,"1,639.52",ROYAL MAIL GROUP PLC.
Regeneration and Local Services,Technical Services,Employees,040149,Recruitment Instruction and Training,12-Jun-2017,3293776-0049,"8,050.00",IGNITE GAS TRAINING LTD.
Regeneration and Local Services,Direct Services,Third Party Payments,430100,Rendered by Private Contractors,12-Jun-2017,3293629-DCC/2017027,869.25,BEACON BUILDING & ASSOCIATED SERVICES LTD.
Regeneration and Local Services,Direct Services,Third Party Payments,430100,Rendered by Private Contractors,12-Jun-2017,3293643-2NDMAY2017,"1,945.52",BRIAN YOUNGER T/A B & E YOUNGER FLOORING.
Regeneration and Local Services,Direct Services,Third Party Payments,430100,Rendered by Private Contractors,12-Jun-2017,3293669-8118355,"2,390.25",CLOVER CONTROLS LTD.
Regeneration and Local Services,Technical Services,Third Party Payments,430100,Rendered by Private Contractors,12-Jun-2017,3293917-98941,550.00,PROTECTOR SECURITY GROUP LTD.
Regeneration and Local Services,Technical Services,Third Party Payments,430100,Rendered by Private Contractors,12-Jun-2017,3293917-98943,550.00,PROTECTOR SECURITY GROUP LTD.
Regeneration and Local Services,Technical Services,Third Party Payments,430100,Rendered by Private Contractors,12-Jun-2017,3293917-99235,550.00,PROTECTOR SECURITY GROUP LTD.
Regeneration and Local Services,Technical Services,Third Party Payments,430100,Rendered by Private Contractors,12-Jun-2017,3293917-99237,550.00,PROTECTOR SECURITY GROUP LTD.
Regeneration and Local Services,Technical Services,Third Party Payments,430100,Rendered by Private Contractors,12-Jun-2017,3293917-99359,550.00,PROTECTOR SECURITY GROUP LTD.
Regeneration and Local Services,Technical Services,Third Party Payments,430100,Rendered by Private Contractors,12-Jun-2017,3293917-99361,550.00,PROTECTOR SECURITY GROUP LTD.
Regeneration and Local Services,Technical Services,Third Party Payments,430100,Rendered by Private Contractors,12-Jun-2017,3293939-1186,"2,620.00",SCHMUCK WHORLTON LTD.
Regeneration and Local Services,Technical Services,Third Party Payments,430100,Rendered by Private Contractors,12-Jun-2017,3293939-1188,"1,140.00",SCHMUCK WHORLTON LTD.
Regeneration and Local Services,Technical Services,Third Party Payments,430100,Rendered by Private Contractors,12-Jun-2017,3293939-1189,608.00,SCHMUCK WHORLTON LTD.
Regeneration and Local Services,Technical Services,Third Party Payments,430100,Rendered by Private Contractors,12-Jun-2017,3293939-1190,"1,064.00",SCHMUCK WHORLTON LTD.
Regeneration and Local Services,Direct Services,Third Party Payments,430100,Rendered by Private Contractors,12-Jun-2017,3293984-C999/3/WH/SM,"7,284.98",T MANNERS & SONS LTD.
Regeneration and Local Services,Direct Services,Third Party Payments,430100,Rendered by Private Contractors,12-Jun-2017,3294038-43738,"1,584.00",WILLOWCRETE MANUFACTURING COMPANY LTD (MFG).
Regeneration and Local Services,Direct Services,Third Party Payments,430100,Rendered by Private Contractors,12-Jun-2017,3294038-43745,"1,939.56",WILLOWCRETE MANUFACTURING COMPANY LTD (MFG).
Regeneration and Local Services,Direct Services,Transport,215005,Running Costs of Vehicles,12-Jun-2017,3293886-244655,"12,854.75",OIL NRG LTD.
Regeneration and Local Services,Direct Services,Transport,215005,Running Costs of Vehicles,12-Jun-2017,3293886-244660,"3,702.00",OIL NRG LTD.
Regeneration and Local Services,Direct Services,Transport,215022,Running Costs of Vehicles,12-Jun-2017,3293886-244663,938.80,OIL NRG LTD.
Regeneration and Local Services,Direct Services,Premises,108099,Service Repairs and Maintenance,12-Jun-2017,3293799-00600,"1,870.00",JN KEARTON.
Regeneration and Local Services,Technical Services,Supplies and Services,338027,Services,12-Jun-2017,3293786-B2107200-019,"5,024.29",JACOBS UK LTD.
Regeneration and Local Services,Technical Services,Supplies and Services,338027,Services,12-Jun-2017,3293786-B225H005-026,"2,644.59",JACOBS UK LTD.
Regeneration and Local Services,Economic Development and Housing,Supplies and Services,338027,Services,12-Jun-2017,3293997-INV001252,750.00,THE EMPLOYMENT & SKILLS GROUP.
Regeneration and Local Services,Culture & Sport,Supplies and Services,338047,Services,12-Jun-2017,3293769-HBBATH66,700.00,HILARITY BITES COMEDY CLUB.
Regeneration and Local Services,Technical Services,Stock,926900,Stock in hand-Inventory system,12-Jun-2017,3293624-SIN353180,738.00,ATF SUPPLIES LTD.
Regeneration and Local Services,Technical Services,Stock,926900,Stock in hand-Inventory system,12-Jun-2017,3293652-851701233,"3,344.68",CARLISLE CONSTRUCTION MATERIALS LTD.
Regeneration and Local Services,Technical Services,Stock,926900,Stock in hand-Inventory system,12-Jun-2017,3293716-059-205184,540.00,EDMUNDSON ELECTRICAL LTD.
Regeneration and Local Services,Technical Services,Stock,926900,Stock in hand-Inventory system,12-Jun-2017,3293895-XL200294,560.90,PARK ELECTRICAL DISTRIBUTORS LTD.
Regeneration and Local Services,Technical Services,Stock,926900,Stock in hand-Inventory system,12-Jun-2017,3293949-73906,"2,539.26",SIMMONSIGNS LTD.
Regeneration and Local Services,Technical Services,Stock,926900,Stock in hand-Inventory system,12-Jun-2017,3293952-190416,"3,424.32",SNAPFAST.
Regeneration and Local Services,Technical Services,Supplies and Services,372009,Subscriptions,12-Jun-2017,3293622-2016205,"2,040.00","ASSOCIATION OF DIRECTORS OF ENVIRONMENT, ECONOMY, PLANNING & TRANSPORT (ADEPT)."
Regeneration and Local Services,Spatial Policy Planning Assets & Environment,Supplies and Services,372009,Subscriptions,12-Jun-2017,3293724-CRCS9628367,"1,290.00",ENVIRONMENT AGENCY.
Regeneration and Local Services,Economic Development and Housing,Premises,135005,Water Services,12-Jun-2017,3293884-4084290,597.33,NWG BUSINESS LTD (NORTHUMBRIAN WATER GROUP).
Regeneration and Local Services,Economic Development and Housing,Premises,135005,Water Services,12-Jun-2017,3293884-4084975,519.74,NWG BUSINESS LTD (NORTHUMBRIAN WATER GROUP).
Regeneration and Local Services,Economic Development and Housing,Premises,135005,Water Services,12-Jun-2017,3293884-4085182,"1,621.56",NWG BUSINESS LTD (NORTHUMBRIAN WATER GROUP).
Regeneration and Local Services,Economic Development and Housing,Premises,135005,Water Services,12-Jun-2017,3293884-4086756,586.42,NWG BUSINESS LTD (NORTHUMBRIAN WATER GROUP).
Resources,Legal & Democratic Services,Creditors,952238,Chairmans Charity,12-Jun-2017,3294024-RES-06-2017-040,"5,185.32",VETERANS AT EASE.
Resources,I.C.T. Services,Supplies and Services,342033,Computers and Communications,12-Jun-2017,3293981-125799,"1,376.00",SWITCHSHOP LTD.
Resources,Legal & Democratic Services,Supplies and Services,342051,Computers and Communications,12-Jun-2017,3293830-INVLT09001110,"4,000.00",LUMI TECHNOLOGIES T/A IML INTERACTIVE UK LTD.
Resources,I.C.T. Services,Supplies and Services,304303,Equipment and Materials,12-Jun-2017,3293780-3386085,820.00,INSIGHT DIRECT (UK) LTD.
Resources,Legal & Democratic Services,Supplies and Services,384960,Miscellaneous Expenses,12-Jun-2017,3293966-25307,"1,525.00",STANLEY TRAVEL (NORTH EAST) LTD.
Resources,Legal & Democratic Services,Supplies and Services,338042,Services,12-Jun-2017,3293700-329797/INVHMU121,540.00,DERE STREET BARRISTERS.
Resources,I.C.T. Services,Stock,926900,Stock in hand-Inventory system,12-Jun-2017,3293780-3385912,"2,572.20",INSIGHT DIRECT (UK) LTD.
Resources,I.C.T. Services,Stock,926900,Stock in hand-Inventory system,12-Jun-2017,3293780-3386164,"1,960.00",INSIGHT DIRECT (UK) LTD.
Resources,I.C.T. Services,Stock,926900,Stock in hand-Inventory system,12-Jun-2017,3293780-3386845,611.52,INSIGHT DIRECT (UK) LTD.
Resources,Corporate Finance,Supplies and Services,372009,Subscriptions,12-Jun-2017,3293876-112011977,"128,105.00",NORTH EAST PROCUREMENT ORGANISATION.
Resources - C A C,Non Distributed Costs,Supplies and Services,336005,Advertising,12-Jun-2017,3293841-86851,650.00,MASCOT SERVICES.
Transformation and Partnerships,Partnerships & Community Engagement Div.,Cap Exp on Grants & Other Financial Assistance (REFCUS),918004,Contributions to other bodies,12-Jun-2017,3293642-VOUCHER16NB-MDUR036,"1,788.00",BRANCEPETH COMMUNITY ASSOCIATION.
Transformation and Partnerships,Partnerships & Community Engagement Div.,Cap Exp on Grants & Other Financial Assistance (REFCUS),918004,Contributions to other bodies,12-Jun-2017,3293690-VOUCHERCCL7,"92,521.42",CROOK COMMUNITY LEISURE LTD.
Transformation and Partnerships,Partnerships & Community Engagement Div.,Cap Exp on Grants & Other Financial Assistance (REFCUS),918004,Contributions to other bodies,12-Jun-2017,3293958-VOUCHER16NB-SPEN029,"15,500.00",SPENNYMOOR TOWN COUNCIL.
Transformation and Partnerships,Partnerships & Community Engagement Div.,Cap Exp on Grants & Other Financial Assistance (REFCUS),918004,Contributions to other bodies,12-Jun-2017,3293961-VOUCHER16AB-DVLY012,"11,000.00",ST JOHN AMBULANCE.
Transformation and Partnerships,Partnerships & Community Engagement Div.,Cap Exp on Grants & Other Financial Assistance (REFCUS),918004,Contributions to other bodies,12-Jun-2017,3293962-VOUCHER16NB-BASH049,"2,000.00",ST JOHN`S CHURCH (SHILDON).
Transformation and Partnerships,Partnerships & Community Engagement Div.,Cap Exp on Grants & Other Financial Assistance (REFCUS),918004,Contributions to other bodies,12-Jun-2017,3293964-VOUCHER16NB-TEES037,"3,000.00",STAINTON & STREATLAM PARISH COUNCIL.
Transformation and Partnerships,Partnerships & Community Engagement Div.,Cap Exp on Grants & Other Financial Assistance (REFCUS),918004,Contributions to other bodies,12-Jun-2017,3294010-VOUCHER16NB-EDRC035,"2,500.00",TRIMDON FOUNDRY PARISH COUNCIL.
Transformation and Partnerships,Partnerships & Community Engagement Div.,Supplies and Services,384086,Miscellaneous Expenses,12-Jun-2017,3293703-VOUCHER16NB-GAMP027,"2,216.00",DHN AYCLIFFE & SHILDON:HOLY FAMILY.
